2CCN - Level 2 Cost Centre Name,,9CCN - Level 9 Cost Centre Name,9CCC - Level 9 Cost Centre Code,9AN - Level 9 Account Name,9AC - Level 9 Account Code,Slt Description,Date Paid,Transaction Reference,Analysed Amount,2AC - Level 2 Account Codes,Supplier Name,Supplier Code
Gloucester City Council,,Tic Stamp Sales,LT102,Postages,5400,STAMPS ORDER,29/08/2013 00:00,369804,1251.6,NET,Royal Mail Retail,59246G
Gloucester City Council,,Historic Buildings,PH100,Conservation Grants,7101,SIGNS,26/04/2013 00:00,362650,1450,NET,Pryor Sign,01969B
Gloucester City Council,,Crematorium,HC200,Fees For Services Received,5350,#EMPTY,06/06/2013 00:00,13724,513.2,NET,Dr C M Stretton,00306P
REDACTED,,REDACTED,REDACTED,REDACTED,REDACTED,REDACTED,REDACTED,REDACTED,568.06,REDACTED,REDACTED,05722B
Gloucester City Council,,Environmental Planning,LM340,Repair/Maint Of Monuments,3004,WAR MEMORIAL,31/07/2013 00:00,368246,718,NET,F J Cambridge & Co Ltd,48841N
Gloucester City Council,,Improvement Grants,CY013,Disabled Facility Grants,74,GRANT REF MDF4977,10/04/2013 00:00,361702,1200,CAP,Tpg Disableaids,51324R
Gloucester City Council,,Nms Contract,HI102,Advertising And Publicity,5702,ADVERTS MAR 2013,29/04/2013 00:00,361481,600,NET,Local World Ltd,08556P
Gloucester City Council,,Asset Management,RS300,Basic Pay -Admin /Prof Staff,2601,Professional Services May 2013,06/06/2013 00:00,365050,6400,NET,Ardley Associates,09369F
Gloucester City Council,,Asset Management,RS300,Basic Pay -Admin /Prof Staff,2601,April 2013 professional services,07/05/2013 00:00,363199,6955.6,NET,Ardley Associates,09369F
Gloucester City Council,,Legal Services,RS200,Fees For Services Received,5350,Civica Legal Implementation Services,09/09/2013 00:00,353686,15500,NET,Civica Uk Ltd,10841X
Gloucester City Council,,Civica Contract Revs & Bens,RT250,Contracted Services,6970,June13 core revs & bens service,07/05/2013 00:00,363098,136180.09,NET,Civica Uk Ltd,10841X
Gloucester City Council,,Civica Contract Revs & Bens,RT250,Contracted Services,6970,FOD Yr1 Q2 core revs & benefits service,07/05/2013 00:00,361070,188750,NET,Civica Uk Ltd,10841X
Gloucester City Council,,General Drainage Works,PY241,Contract Payments,20,Harwell Close flood prevention works,26/04/2013 00:00,362769,3100,CAP,Js Builders & Landscaping Services,11078J
Gloucester City Council,,Homelessness,CH120,Rent In Advance,5516,REDACTED,18/04/2013 00:00,362330,733.84,NET,Chawda Holdings Ltd,02488P
Gloucester City Council,,Legal Services,RS200,Basic Pay - Temporary Staff,2751,REDACTED,23/07/2013 00:00,367793,526.14,NET,Sellick Partnership Group Ltd,11057C
Gloucester City Council,,Utilities,PT502,Electricity Supply,3110,ROBINSWOOD HILL,06/06/2013 00:00,365031,749,NET,Npower,03929V
Gloucester City Council,,Active Space At Abbeydale,LY149,Contract Payments,20,picnic tables,01/05/2013 00:00,362693,1292,CAP,Centrewire Ltd,54156P
Gloucester City Council,,Blackfriars Inn,RY191,Contract Payments,20,Blackfriars Inn works - certificate 3,24/04/2013 00:00,362525,53857.34,CAP,King Builders (Gloucester) Ltd,25810S
Gloucester City Council,,Business Planning & Performanc,RL500,Fees For Services Received,5350,REDACTED,21/05/2013 00:00,362800,619,NET,Knowledge Academy Ltd,13625B
Gloucester City Council,,Pest Control,HD400,Fees For Services Received,5350,EGG OILING,22/05/2013 00:00,364012,4320,NET,Nbc Bird & Pest Solutions,13801P
Gloucester City Council,,Hillfield Gardens S106,LY112,Contract Payments,20,PLANTS,16/04/2013 00:00,362075,858,CAP,Readyhedge Ltd,13555X
Gloucester City Council,,Homelessness Prevention,CH122,Fees For Services Received,5350,#EMPTY,08/04/2013 00:00,361621,550,NET,REDACTED,13695D
Gloucester City Council,,Museum Phase 2 Hlf,GY001,Contract Payments,20,CITY MUSEUM,05/08/2013 00:00,368502,3500,CAP,Ravenhill Design,13928D
Gloucester City Council,,Human Resources,EH100,Maintenance Of Equipment,5030,credit re inv DEBT102140,17/05/2013 00:00,363085,-20,NET,Tewkesbury Borough Council,43800C
Gloucester City Council,,Homelessness,CH120,Rent In Advance,5516,REDACTED,09/05/2013 00:00,363427,576.92,NET,REDACTED,09706K
Gloucester City Council,,Financial Services,RT200,Subscriptions,5600,Finance Advisory Network 2013-14,11/07/2013 00:00,367030,3460,NET,Cipfa Business Limited,09260F
Gloucester City Council,,Flooding And Drainage,HE306,Maint Of Grounds - General,3030,clearance work,15/08/2013 00:00,369128,675,NET,Btcv T/A The Conservation Volunteers,55897V
Gloucester City Council,,Gl1 Emergency Works,RY160,Contract Payments,20,GL1 work - final invoice,24/04/2013 00:00,361134,30603.57,CAP,Central Roofing & Building Services Ltd,59480W
Gloucester City Council,,Gl1 Emergency Works,RY160,Contract Payments,20,GL1 lightning conductor,24/04/2013 00:00,361140,682,CAP,Central Roofing & Building Services Ltd,59480W
Gloucester City Council,,Building Control,PT400,Licences,5703,SERVICE FEE 2013/14,11/07/2013 00:00,367049,1925.57,NET,District Surveyors Association Ltd T/A Labc,05276D
Gloucester City Council,,Gf Lifelinks,CH180,Fees For Services Received,5350,April13 management fees,17/05/2013 00:00,362479,5270.83,NET,Gloucester City Homes,05244T
Gloucester City Council,,Dwelling Improvements,BY008,Contract Payments,20,March 2013 Capital fees,17/05/2013 00:00,363077,1158293.43,CAP,Gloucester City Homes,05244T
REDACTED,REDACTED,REDACTED,REDACTED,REDACTED,REDACTED,REDACTED,REDACTED,REDACTED,1250,NET,REDACTED,00852P
REDACTED,REDACTED,REDACTED,REDACTED,REDACTED,REDACTED,REDACTED,REDACTED,REDACTED,515,REDACTED,REDACTED,58946D
Gloucester City Council,,Senior Management Restructurin,RO200,Fees For Services Received,5350,consultancy services July 13,08/08/2013 00:00,368565,1659.2,NET,Alexander Beaver Associates,06515Z
Gloucester City Council,,Financial Services,RT200,Fees For Services Received,5350,RECRUITMENT ADVERTISING,24/06/2013 00:00,366064,3950,NET,Alexander Beaver Associates,06515Z
Gloucester City Council,,Homelessness Prevention,CH122,Fees For Services Received,5350,REDACTED,30/05/2013 00:00,364520,500,NET,Surelet,06858N
Gloucester City Council,,Nms Contract,HI102,Additional Non-Tender Items,6973,Sports booking March13,23/08/2013 00:00,363131,1425,NET,Enterprise (Aol) Ltd,06695G
Gloucester City Council,,Nms Contract,HI102,Additional Non-Tender Items,6973,SPORTS BOOKINGS,23/08/2013 00:00,366883,2639.92,NET,Enterprise (Aol) Ltd,06695G
Gloucester City Council,,Tic Trading,LT110,Trade Refuse Sacks,5040,TRADE WASTE,17/07/2013 00:00,367462,1848.8,NET,Enterprise (Aol) Ltd,06695G
Gloucester City Council,,Perennial Planting Enterprise,LY133,Contract Payments,20,CARIOUS WORKS,31/07/2013 00:00,368174,593,CAP,Enterprise (Aol) Ltd,06695G
Gloucester City Council,,Nms Contract,HI102,General Repair/Maint Buildings,3000,clinical drop front bins,13/06/2013 00:00,365355,900,NET,Enterprise (Aol) Ltd,06695G
Gloucester City Council,,Nms Contract,HI102,Contracted Services,6970,STREETCARE APR 2013,18/04/2013 00:00,362090,535908.75,NET,Enterprise (Aol) Ltd,06695G
Gloucester City Council,,Flooding And Drainage,HE306,Maint Of Grounds - General,3030,FLOODING NOV 2012,24/04/2013 00:00,362086,3346.48,NET,Enterprise (Aol) Ltd,06695G
Gloucester City Council,,Homelessness,CH120,Board And Lodging,5515,REDACTED,31/05/2013 00:00,364582,2036.43,NET,Kalmwood Ltd,08568G
Gloucester City Council,,Kings Quarter Redevelopment,RB600,Consultants Fees,5349,KINGS SQ ARCHAEOLOGY ASSESSMENT,06/06/2013 00:00,364938,1995,NET,Cotswold Archaeology Ltd,09180E
Gloucester City Council,,Nms Contract,HI102,General Repair/Maint Buildings,3000,mini skip labels,21/08/2013 00:00,369362,666,NET,Eurolabel,10252Z
Gloucester City Council,,Council Streetcare Team,HI101,Printing,5300,Dog bin labels,04/06/2013 00:00,364795,526,NET,Eurolabel,10252Z
Gloucester City Council,,Senior Management Restructurin,RO200,Pension Contribs Incl Backf,2901,Feb & March 13 pension payments,12/08/2013 00:00,362762,25213.44,NET,Gloucestershire County Council,10614L
Gloucester City Council,,Asset Management,RS300,Basic Pay - Temporary Staff,2751,REDACTED,23/08/2013 00:00,369613,1067.5,NET,Hays Specialist Recruitment Ltd,55516P
Gloucester City Council,,Projects & Maintenance,PT500,Basic Pay -Admin /Prof Staff,2601,REDACTED,08/07/2013 00:00,366665,1090.38,NET,Hays Specialist Recruitment Ltd,55516P
Gloucester City Council,,Asset Management,RS300,Basic Pay -Admin /Prof Staff,2601,REDACTED,15/04/2013 00:00,361759,1181.88,NET,Hays Specialist Recruitment Ltd,55516P
Gloucester City Council,,Tic Coach Tickets,LT105,Materials For Sale,5080,SALES MAY 2013,06/06/2013 00:00,364976,12849.1,NET,National Express Ltd,31455K
Gloucester City Council,,Tic Coach Tickets,LT105,Materials For Sale,5080,SALES APR 2013,09/05/2013 00:00,363320,13527.9,NET,National Express Ltd,31455K
Gloucester City Council,,Homelessness Prevention,CH122,Fees For Services Received,5350,REDACTED,09/07/2013 12:22,366234,550,NET,Selina'S Lettings,13035F
Gloucester City Council,,3rd Floor North Warehouse,RY210,Contract Payments,20,North Warehouse works,02/04/2013 00:00,360570,9373.18,CAP,The Design Works Group Ltd,13519B
Gloucester City Council,,Docks Complex - Telephones,RB120,Mobile Phones,5409,CALLS APR 2013,23/05/2013 00:00,363459,1963.61,NET,Everything Everywhere Ltd (T-Mobile),57543S
Gloucester City Council,,Contact Centre,RB300,Basic Pay -Admin /Prof Staff,2601,REDACTED,29/07/2013 00:00,368032,756,NET,Cps Anystaff Recruitment Ltd,13945D
Gloucester City Council,,Printing,RP103,Fees For Services Received,5350,PRINTING,07/08/2013 00:00,368364,667,NET,Alpha Colour Printers Ltd,00945B
Gloucester City Council,,Printing,RP103,Fees For Services Received,5350,June13 print room sales,04/07/2013 00:00,366569,2053.34,NET,Alpha Colour Printers Ltd,00945B
Gloucester City Council,,Homelessness,CH120,Board And Lodging,5515,jun/jul13 b&b payments,23/07/2013 00:00,367801,1218,NET,REDACTED,10975Y
Gloucester City Council,,Homelessness,CH120,Board And Lodging,5515,#EMPTY,03/05/2013 00:00,363142,811.2,NET,REDACTED,10975Y
Gloucester City Council,,Homelessness Prevention,CH122,Fees For Services Received,5350,REDACTED,21/08/2013 00:00,369496,640,NET,REDACTED,02295D
Gloucester City Council,,Investment Property,RB500,Plumbing Repairs,3085,Herbert w/h smoke vent service,15/07/2013 00:00,366937,979,NET,Airvent Systems Limited,51073T
Gloucester City Council,,Registration Of Electors,RS400,Fees For Services Received,5350,RROM HIRE 02/05/13,10/06/2013 00:00,365181,511.88,NET,Abbeydale Community Association,50263V
Gloucester City Council,,Youth Grant 2011/12,FP107,Funding Vol&Com Grps-Grants,7100C,Youth grant 2013/14,15/08/2013 00:00,369131,1000,NET,Fair Shares,07250D
Gloucester City Council,,Homelessness Prevention,CH122,Fees For Services Received,5350,REDACTED,18/06/2013 00:00,365712,550,NET,Michael Tuck Lettings Ltd,08681K
Gloucester City Council,,Development Management,PT200,Advertising And Publicity,5702,Planning Jobsite advertising,18/07/2013 00:00,366952,1285,NET,Haymarket Business Media,00795W
Gloucester City Council,,Improvement Grants,CY013,Disabled Facility Grants,74,REDACTED,08/08/2013 00:00,368738,5547.64,CAP,Care & Repair,12734E
Gloucester City Council,,Nms Contract,HI102,General Repair/Maint Buildings,3000,ENBORNE CLOSE,02/05/2013 00:00,362386,750,NET,Rdb Safety Boat Ltd,13507J
Gloucester City Council,,Homelessness Prevention,CH122,Fees For Services Received,5350,REDACTED,08/05/2013 00:00,363421,500,NET,Movearound Ltd,13118A
Gloucester City Council,,Guildhall Works,RY155,Contract Payments,20,Gloucester Guildhall works,26/06/2013 00:00,365801,48486.5,CAP,Dribuild,13474Y
Gloucester City Council,,Homelessness Prevention,CH122,Fees For Services Received,5350,REDACTED,29/05/2013 00:00,364442,800,NET,REDACTED,13410B
Gloucester City Council,,Crematorium,HC200,"Seeds, Trees, Plants, Shrubs",3028,Created by invoice listener,19/06/2013 00:00,365800,1349,NET,REDACTED,04060K
Gloucester City Council,,Homelessness Prevention,CH122,Basic Pay - Temporary Staff,2751,REDACTED,09/08/2013 00:00,368805,558.04,NET,James Andrews Recruitment Solutions,13636W
Gloucester City Council,,Homelessness Prevention,CH122,Basic Pay - Temporary Staff,2751,REDACTED,19/07/2013 00:00,367639,737.41,NET,James Andrews Recruitment Solutions,13636W
Gloucester City Council,,Homelessness Prevention,CH122,Basic Pay - Temporary Staff,2751,REDACTED,28/06/2013 00:00,366286,637.76,NET,James Andrews Recruitment Solutions,13636W
Gloucester City Council,,Homelessness Prevention,CH122,Basic Pay - Temporary Staff,2751,REDACTED,05/04/2013 00:00,361518,829.91,NET,James Andrews Recruitment Solutions,13636W
Gloucester City Council,,Improvement Grants,CY013,Disabled Facility Grants,74,REDACTED,02/09/2013 00:00,369738,4466.5,CAP,Nks Contracts (Central) Ltd,56355E
Gloucester City Council,,Improvement Grants,CY013,Disabled Facility Grants,74,REDACTED,16/07/2013 00:00,366458,3993.35,CAP,Nks Contracts (Central) Ltd,56355E
Gloucester City Council,,Blackfriars Catering,LA220,Hire Of Equipment,5020,Blackfriars disposable glasses,23/04/2013 00:00,362527,504.95,NET,Gerry Dance Disposables Ltd,54579Y
Gloucester City Council,,Guildhall Bar And Caf�,LA210,Catering Provisions -Liquor,5111,Guildhall drinks,22/04/2013 00:00,362491,1252.19,NET,Cellar Supplies Cheltenham Ltd,01563L
Gloucester City Council,,Guildhall Bar And Caf�,LA210,Catering Provisions -Liquor,5111,Guildhall drinks,10/04/2013 00:00,361785,863.58,NET,Cellar Supplies Cheltenham Ltd,01563L
Gloucester City Council,,Crematorium,HC200,General Repair/Maint Buildings,3000,DISPLAYS,11/04/2013 00:00,361864,707.37,NET,Zagota Creations,03211D
Gloucester City Council,,Off Street Car Parks,PP110,Water Supply,3400,ACCT 1350118294,17/07/2013 00:00,367291,2266.28,NET,Severn Trent Water,01823H
Gloucester City Council,,Off Street Car Parks,PP110,Water Supply,3400,ACCT 7890105225,11/04/2013 00:00,361750,1845.56,NET,Severn Trent Water,01823H
Gloucester City Council,,Retail Market - Landlord,HM300,Sewerage And Environ Charges,3402,ACCT 6500437006,26/04/2013 00:00,360505,18223.99,NET,Severn Trent Water,01823H
Gloucester City Council,,3rd Floor North Warehouse,RY210,Contract Payments,20,N WAREHOUSE CHILLERS SUPPLY & FIT,09/07/2013 00:00,363417,14000,CAP,Hewer Facilities Mgt Ltd,05232A
Gloucester City Council,,Financial Services,RT200,Fees For Services Received,5350,Company credit check service 2013/14,25/04/2013 00:00,362478,1024.1,NET,Creditsafe,06189P
Gloucester City Council,,Civil Parking Enforcement,PT741,Computer Software Maintenance,5427,JUL13 CASHLESS PARKING FEES,19/08/2013 00:00,369004,689.17,NET,Chipside Ltd,06535T
Gloucester City Council,,Civil Parking Enforcement,PT741,Computer Software Maintenance,5427,Jun13 electronic season tickets,17/07/2013 00:00,367200,903.23,NET,Chipside Ltd,06535T
Gloucester City Council,,Parking Cctv,PT745,Contracted Services,6970,Parking season tickets Jan-Mar13,18/04/2013 00:00,362138,2368.45,NET,Chipside Ltd,06535T
Gloucester City Council,,Aspire Admin Charges,LC105,Contracted Services,6970,Management fees May 2013,22/08/2013 00:00,363606,79792.5,NET,Aspire Sports & Cultural Trust,08135V
Gloucester City Council,,Homelessness Prevention,CH122,Fees For Services Received,5350,REDACTED,19/04/2013 00:00,362475,500,NET,REDACTED,08794V
Gloucester City Council,,Photocopying,RS130,Photocopying,5320,copy charges JUN-AUG13,31/07/2013 00:00,367702,33967.8,NET,Danwood Group Limited,09555G
Gloucester City Council,,Investment Property,RB500,Emergency Lighting,3055,HERBERT WAREHOUSE,05/07/2013 00:00,365977,2982.27,NET,Scs Installations Ltd,10383G
Gloucester City Council,,General Works Fund,RY203,Capital Lighting Schemes,15,KINGS WALK,05/06/2013 00:00,364395,1834.79,CAP,Scs Installations Ltd,10383G
Gloucester City Council,,Swrda Asset Transfer,RY184,Contract Payments,20,Gloucester Docks lease agreement,23/05/2013 00:00,363378,3203,CAP,Harrison Clark Rickerbys Solicitors,11064C
Gloucester City Council,,Homelessness,CH120,Rent In Advance,5516,REDACTED,09/04/2013 00:00,361787,576.92,NET,REDACTED,12781V
Gloucester City Council,,Business Transformation & Tech,RT700,Basic Pay - Temporary Staff,2751,REDACTED,11/09/2013 00:00,370437,1125,NET,Ffox Software Ltd,10665T
Gloucester City Council,,Business Transformation & Tech,RT700,Basic Pay - Temporary Staff,2751,REDACTED,07/08/2013 00:00,368494,510,NET,Ffox Software Ltd,10665T
Gloucester City Council,,Business Transformation & Tech,RT700,Basic Pay - Temporary Staff,2751,REDACTED,31/05/2013 00:00,364493,1125,NET,Ffox Software Ltd,10665T
Gloucester City Council,,Business Transformation & Tech,RT700,Basic Pay - Temporary Staff,2751,REDACTED,24/04/2013 00:00,362489,1125,NET,Ffox Software Ltd,10665T
Gloucester City Council,,City Centre Manager,PT310,Events,5952,performers for 20/4/13,22/04/2013 00:00,362483,2645,NET,Acts And Entertainment Ltd,13760U
Gloucester City Council,,Homelessness Prevention,CH122,Fees For Services Received,5350,REDACTED,31/05/2013 11:57,364402,700,NET,REDACTED,13882C
Gloucester City Council,,Homelessness Prevention,CH122,Fees For Services Received,5350,REDACTED,17/06/2013 00:00,365628,500,NET,REDACTED,13964Z
Gloucester City Council,,Crematorium,HC200,Repair/Maint Of Fixed Plant,3006,CREMATOR SERVICE PARTS,15/07/2013 00:00,367264,4352,NET,Facultatieve Technologies Ltd,51210H
Gloucester City Council,,Programme Of Works Cem&Crem,HY045,Contract Payments,20,CREMATOR SERVICE PARTS,15/07/2013 00:00,367264,3782.36,CAP,Facultatieve Technologies Ltd,51210H
Gloucester City Council,,Cemeteries,HC300,Trade Refuse Tipping Fees,6297,rolonof exchange April 13,14/05/2013 00:00,363724,1080,NET,Allstone Sand & Gravel Aggregates Ltd,00940M
Gloucester City Council,,Asbru - Other Funders,FP846,Other Minor Supplies Services,5590,REDACTED,05/08/2013 00:00,368449,534.65,NET,Travail Employment Ltd,49371W
Gloucester City Council,,Asbru - Other Funders,FP846,Other Minor Supplies Services,5590,REDACTED,13/05/2013 00:00,363309,534.65,NET,Travail Employment Ltd,49371W
Gloucester City Council,,Postal Services,RS120,Postages,5400,acct 0252446000 w/e 15/8/13,28/08/2013 00:00,369555,1881.74,NET,Royal Mail S.Wales & South West,35830S
Gloucester City Council,,Postal Services,RS120,Postages,5400,ACCT 0252446000 W/E 04/07/13,15/07/2013 00:00,367146,1438.52,NET,Royal Mail S.Wales & South West,35830S
Gloucester City Council,,Civica Admin Charges,RT105,Postages,5400,ACCT 0870585007 REVENUES,10/04/2013 00:00,360453,2003.8,NET,Royal Mail S.Wales & South West,35830S
Gloucester City Council,,Summer Festival,LT300,Artists Fees,5355,KIDS IN GLASS HOUSES BALANCE,19/07/2013 00:00,367629,3750,NET,The Agency Group Ltd,01596V
Gloucester City Council,,Hempsted Market/Car Boot,HM234,Maint Of Grounds - General,3030,Hire of JCB and driver & labour,11/06/2013 00:00,364717,1750,NET,Ken Pink Plant Hire Ltd,56884V
Gloucester City Council,,Docks Complex - Services,RB100,Service Charges,3020,RENTAL JUN 13-JUN 14,11/07/2013 00:00,363781,1996.8,NET,Wessex Products (Leasing) Ltd,03684C
Gloucester City Council,,Gang Injunctions,FP824,Other Minor Supplies Services,5590,#EMPTY,03/06/2013 00:00,13717,1300,NET,REDACTED,00108P
Gloucester City Council,,Homelessness Prevention,CH122,Fees For Services Received,5350,REDACTED,05/04/2013 00:00,361535,550,NET,REDACTED,05659G
Gloucester City Council,,Homelessness,CH120,Board And Lodging,5515,REDACTED,22/08/2013 00:00,369538,2563.43,NET,James Legge Property (Ltd),07844R
Gloucester City Council,,Homelessness,CH120,Board And Lodging,5515,JUN13 B&B PAYMENTS,26/06/2013 00:00,366155,3309,NET,James Legge Property (Ltd),07844R
Gloucester City Council,,Homelessness,CH120,Board And Lodging,5515,VARIOUS TENANTS,05/04/2013 00:00,361533,4756.82,NET,James Legge Property (Ltd),07844R
Gloucester City Council,,Off Street Car Parks,PP110,Rents,3200,Kings Walk car park rent Jun-Sep13,12/06/2013 00:00,365279,46250,NET,Dtz,08367V
Gloucester City Council,,Business Transformation & Tech,RT700,Computer Software Maintenance,5427,IMPLEMENT PUBLIC ACCESS,24/06/2013 00:00,325149,3000,NET,Northgate Information Solutions Uk Ltd,08982S
Gloucester City Council,,Business Transformation & Tech,RT700,Computer Software Maintenance,5427,SUPPORT 04/13-04/14,10/04/2013 00:00,359333,788.19,NET,Northgate Information Solutions Uk Ltd,08982S
Gloucester City Council,,Business Transformation & Tech,RT700,Computer Software Maintenance,5427,REVS & BENS USERS,10/04/2013 00:00,358315,3012,NET,Northgate Information Solutions Uk Ltd,08982S
Gloucester City Council,,Business Transformation & Tech,RT700,Computer Software <5000,5425,I@W Office Connect licence,01/05/2013 00:00,363007,1690,NET,Northgate Information Solutions Uk Ltd,08982S
Gloucester City Council,,Homelessness,CH120,Fees For Services Received,5350,#EMPTY,23/04/2013 00:00,362533,576.92,NET,2 Let Glos Ltd,74622M
Gloucester City Council,,Parking Cctv,PT745,Fees For Services Received,5350,TEC A/C GO & FG PREFIXED,26/06/2013 00:00,366146,4000,NET,Traffic Enforcement Centre,09456K
Gloucester City Council,,Group Mgr Cult Ser & Tourism,GR102,Exhibits And Collections,5038,Mystery Plays financial support,10/05/2013 00:00,363476,5000,NET,Chapter Of Gloucester Cathedral,53250RV
Gloucester City Council,,Homelessness Prevention,CH122,Fees For Services Received,5350,REDACTED,16/05/2013 00:00,363971,600,NET,Ashgrove Property Services,10041R
Gloucester City Council,,Guildhall Bar And Caf�,LA210,Catering Provisions -Food,5110,FOOD,03/04/2013 00:00,361347,548.05,NET,Woodward Foodservice,10714F
Gloucester City Council,,Pest Control,HD400,Fees For Services Received,5350,Gull survey,16/07/2013 00:00,367358,4000,NET,Fera,11527X
Gloucester City Council,,Hempsted Market/Car Boot,HM234,Security Services Fees,5351,SECURITY JUNE 2013,22/07/2013 00:00,367514,1816,NET,Nsgl Ltd,12539E
Gloucester City Council,,Gloucester Guildhall,LA100,Security Services Fees,5351,SECURITY MAR 2013,17/06/2013 00:00,365120,1759.88,NET,Nsgl Ltd,12539E
Gloucester City Council,,Museum Phase 2 Hlf,GY001,Contract Payments,20,REDACTED,19/08/2013 00:00,368809,598.5,CAP,Find The Engineer Recruitment Ltd*,12977Z
Gloucester City Council,,Hkp Accomodation Review,RY163,Contract Payments,20,REDACTED,16/08/2013 00:00,368359,674.5,CAP,Find The Engineer Recruitment Ltd*,12977Z
Gloucester City Council,,Group Mgr Cult Ser & Tourism,GR102,Fees For Services Received,5350,EVENT GRANT 2013/14,08/08/2013 00:00,368759,1825,NET,One Church,13027E
Gloucester City Council,,Homelessness,CH120,Fees For Services Received,5350,REDACTED,02/07/2013 00:00,366499,733.84,NET,REDACTED,13111R
Gloucester City Council,,Off Street Car Parks,PP110,Fees For Services Received,5350,AIRTIME MAY 2013,13/05/2013 00:00,363275,529.04,NET,Parkeon Ltd,03238G
Gloucester City Council,,General Drainage Works,PY241,Contract Payments,20,Armscroft Park footbridge,09/05/2013 00:00,363013,2260.6,CAP,Lankhorst Recycled Products Uk Ltd,13611N
Gloucester City Council,,Tourism Marketing,LT100,Buildings Insurance,3800,28 Southgate St insurance,29/07/2013 00:00,368078,537.71,NET,P W Fido & Associates,01210A
Gloucester City Council,,Tic Relocation,GY005,Contract Payments,20,28 SOUTHGATE ST,05/06/2013 00:00,364960,3000,CAP,P W Fido & Associates,01210A
Gloucester City Council,,General Works Fund,RY203,Capital Intruder & Cctv,19,Eastgate Market redcare,08/07/2013 00:00,366794,1256.89,CAP,Adt Fire & Security Plc,54086D
Gloucester City Council,,Client Revs & Bens Contract,RT240,Fees For Services Received,5350,late payment fees - credited back,23/08/2013 00:00,369621,593.43,NET,Gemini Consultants Ltd,52177U
Gloucester City Council,,City Museum Art Contributions,LM201,Exhibits And Collections,5038,WILLIAM I SWORD TYPE PENNY - SHARE SALE,17/06/2013 00:00,13769,1000,NET,REDACTED,01550P
Gloucester City Council,,Homelessness Prevention,CH122,Fees For Services Received,5350,REDACTED,13/06/2013 00:00,365475,550,NET,Bobby Fowke Ltd,13939Y
Gloucester City Council,,Business Planning & Performanc,RL500,Fees For Services Received,5350,REDACTED,09/05/2013 00:00,363207,950,NET,South West Councils,56523H
Gloucester City Council,,Corporate Expenses,RC110,Subscriptions,5600,SUBSCRIPTION 2013/14,10/04/2013 00:00,361600,5520,NET,South West Councils,56523H
Gloucester City Council,,Improvement Grants,CY013,Disabled Facility Grants,74,interim grant payment,09/08/2013 00:00,368839,5722.32,CAP,Mears Home Improvement Ltd,00096G
Gloucester City Council,,Docks Complex - Services,RB100,Service Charges,3020,HKP SERVICE,09/05/2013 00:00,362664,1160,NET,Pyramid Hygiene Ltd,01897B
Gloucester City Council,,Crematorium,HC200,National Assist Act Burial Exp,5593,REDACTED,08/05/2013 00:00,363260,627,NET,Mr Kenneth J Tyler T/A Goodwins,03554T
Gloucester City Council,,Gis Development Work,RY555,Contract Payments,20,REDACTED,19/08/2013 00:00,369319,1250,CAP,Badenoch & Clark,01536P
Gloucester City Council,,Gis Development Work,RY555,Contract Payments,20,REDACTED,25/06/2013 00:00,365980,1125,CAP,Badenoch & Clark,01536P
Gloucester City Council,,Business Transformation & Tech,RT700,Computer Software <5000,5425,NETVAULT,02/08/2013 00:00,368417,1500,NET,Dell Software (Uk) Ltd,01160P
Gloucester City Council,,Director Resources,MR102,Fees For Services Received,5350,REDACTED,21/06/2013 00:00,365954,906.5,NET,Wragge & Co Llp,06590J
Gloucester City Council,,Director Resources,MR102,Fees For Services Received,5350,REDACTED,21/06/2013 00:00,365956,3533,NET,Wragge & Co Llp,06590J
Gloucester City Council,,Director Resources,MR102,Fees For Services Received,5350,REDACTED,20/05/2013 00:00,364004,2530.5,NET,Wragge & Co Llp,06590J
REDACTED,REDACTED,REDACTED,REDACTED,REDACTED,REDACTED,REDACTED,REDACTED,REDACTED,1000,REDACTED,REDACTED,57657Z
REDACTED,,REDACTED,REDACTED,REDACTED,REDACTED,REDACTED,REDACTED,REDACTED,4405.24,REDACTED,REDACTED,09684U
Gloucester City Council,,Human Resources,EH100,Basic Pay -Admin /Prof Staff,2601,Apprenticeship scheme,08/08/2013 00:00,368564,3250,NET,Hr Consulting Ltd,12559Y
Gloucester City Council,,Gl1 Emergency Works,RY160,Contract Payments,20,GL1,23/04/2013 00:00,362219,850,CAP,Waylett Property Inspections,12810P
Gloucester City Council,,Website Rebuild,RY573,Consultants Fees,30,REDACTED,15/07/2013 00:00,367275,2025,CAP,Patzone It Solutions Ltd,13059R
Gloucester City Council,,Website Rebuild,RY573,Consultants Fees,30,REDACTED,31/05/2013 00:00,364588,2025,CAP,Patzone It Solutions Ltd,13059R
Gloucester City Council,,Business Transformation & Tech,RT700,Computer Hardware <5000,5420,WIRELESS ACCESS POINTS WORK,11/07/2013 00:00,367018,1255.5,NET,Cablecom Networking Ltd,56318L
REDACTED,REDACTED,REDACTED,REDACTED,REDACTED,REDACTED,REDACTED,REDACTED,REDACTED,670.23,REDACTED,REDACTED,13913T
Gloucester City Council,,Homelessness Prevention,CH122,Grants To Voluntary Orgs-Rents,7100,EMERGENCY BEDS JUN-SEPT,15/07/2013 00:00,367279,2379,NET,P3 (People Potential Possibilities),13809N
Gloucester City Council,,Homelessness Prevention,CH122,Fees For Services Received,5350,REDACTED,08/05/2013 00:00,363322,550,NET,Charles Leather Residential Lettings,13977P
Gloucester City Council,,Homelessness,CH120,Rent In Advance,5516,REDACTED,10/09/2013 00:00,370403,549.23,NET,REDACTED,14118R
Gloucester City Council,,Legal Services,RS200,Basic Pay -Admin /Prof Staff,2601,REDACTED,10/09/2013 00:00,370385,691.49,NET,Venn Group Ltd,04339P
Gloucester City Council,,Homelessness Prevention,CH122,Basic Pay - Temporary Staff,2751,REDACTED,23/08/2013 00:00,369607,740,NET,Venn Group Ltd,04339P
Gloucester City Council,,Homelessness Prevention,CH122,Basic Pay - Temporary Staff,2751,REDACTED,02/09/2013 00:00,369988,680,NET,Venn Group Ltd,04339P
Gloucester City Council,,Legal Services,RS200,Basic Pay -Admin /Prof Staff,2601,REDACTED,15/07/2013 00:00,367282,1136.7,NET,Venn Group Ltd,04339P
Gloucester City Council,,Legal Services,RS200,Basic Pay - Temporary Staff,2751,REDACTED,14/05/2013 00:00,363696,695.4,NET,Venn Group Ltd,04339P
Gloucester City Council,,Legal Services,RS200,Basic Pay - Temporary Staff,2751,REDACTED,16/04/2013 00:00,362007,726.9,NET,Venn Group Ltd,04339P
Gloucester City Council,,Business Transformation & Tech,RT700,Computer Hardware <5000,5420,HARDWARE,11/09/2013 00:00,370225,694,NET,Qual Technology,56512N
Gloucester City Council,,Business Transformation & Tech,RT700,Computer Hardware <5000,5420,MONITOR,30/08/2013 00:00,369809,505,NET,Qual Technology,56512N
Gloucester City Council,,Business Transformation & Tech,RT700,Computer Hardware <5000,5420,FUJITSU ESPRIMO,26/04/2013 00:00,362710,654,NET,Qual Technology,56512N
Gloucester City Council,,Council Streetcare Team,HI101,Maint Of Paths/Hardstandings,3056,Tuffley Park works,14/08/2013 00:00,368988,930,NET,Abbey Surfacing,03487G
Gloucester City Council,,Off Street Car Parks,PP110,General Repair/Maint Buildings,3000,car park works,26/07/2013 00:00,367907,1663.88,NET,Abbey Surfacing,03487G
Gloucester City Council,,Business Support,PT250,Basic Pay - Temporary Staff,2751,STAFF W/E 23/08/13,30/08/2013 00:00,369813,919.3,NET,One To One Recruitment,04752H
Gloucester City Council,,Business Support,PT250,Basic Pay - Temporary Staff,2751,REDACTED,13/06/2013 00:00,365436,899,NET,One To One Recruitment,04752H
Gloucester City Council,,Corporate Reporting /Financing,RC504,Audit Fees,5383,GRANT CERTIFICATION 13/14 FEE 2 OF 4,11/07/2013 00:00,366768,3525,NET,Kpmg,06498X
Gloucester City Council,,Corporate Reporting /Financing,RC504,Audit Fees,5383,2013/14 grant certification - part 1,11/07/2013 00:00,364724,3525,NET,Kpmg,06498X
Gloucester City Council,,Financial Services,RT200,Training Course Fees,5367,REDACTED,09/07/2013 00:00,366781,1987,NET,Gloucestershire College,06835B
Gloucester City Council,,Business Transformation & Tech,RT700,Computer Software Maintenance,5427,MANAGEENGINE ADAUDIT 2013-14,14/06/2013 00:00,365537,778,NET,Zoho Corporation Private Ltd,13006N
Gloucester City Council,,Neighbourhood Partnerships,FP104,Fees For Services Received,5350,NEIGHBOURHOOD GRANT 2013/14,08/08/2013 00:00,368761,746,NET,Friends Of Barnwood Arboretum,05393Y
Gloucester City Council,,Group Mgr Cult Ser & Tourism,GR102,Stationery,5302,Customer Service Excellence assessment,11/06/2013 00:00,365307,842.05,NET,Emqc Ltd,04473J
Gloucester City Council,,Homelessness Prevention,CH122,Fees For Services Received,5350,REDACTED,21/06/2013 00:00,365965,600,NET,REDACTED,13800H
Gloucester City Council,,Procurement Card Holding,RP102,Other Minor Supplies Services,5590,co-operative bank business visa a/c,05/07/2013 00:00,366718,6934.17,NET,Co-Operative Bank,56839A
Gloucester City Council,,Improvement Grants,CY013,Disabled Facility Grants,74,REDACTED,10/07/2013 00:00,366965,6816.27,CAP,Davey'S Building Maintenance,57010K
Gloucester City Council,,Homelessness Prevention,CH122,Grants To Voluntary Orgs-Rents,7100,NIGHTSTOP PROVISION APR-SEP13,31/05/2013 00:00,364619,4000,NET,Gloucestershire Nightstop,56573S
Gloucester City Council,,Financial Services,RT200,Basic Pay -Admin /Prof Staff,2601,REDACTED,10/09/2013 00:00,370447,541.62,NET,Robert Half Ltd,03959K
Gloucester City Council,,Financial Services,RT200,Consultants Fees,5349,REDACTED,16/08/2013 00:00,369108,4770,NET,Robert Half Ltd,03959K
Gloucester City Council,,Financial Services,RT200,Basic Pay -Admin /Prof Staff,2601,REDACTED,09/08/2013 00:00,368828,583.38,NET,Robert Half Ltd,03959K
Gloucester City Council,,Financial Services,RT200,Basic Pay -Admin /Prof Staff,2601,REDACTED,06/08/2013 00:00,368536,568.62,NET,Robert Half Ltd,03959K
Gloucester City Council,,Financial Services,RT200,Consultants Fees,5349,REDACTED,14/06/2013 00:00,365567,4770,NET,Robert Half Ltd,03959K
Gloucester City Council,,Financial Services,RT200,Consultants Fees,5349,REDACTED,24/06/2013 00:00,365562,2610,NET,Robert Half Ltd,03959K
Gloucester City Council,,Financial Services,RT200,Fees For Services Received,5350,REDACTED,25/06/2013 00:00,366089,715.5,NET,Robert Half Ltd,03959K
Gloucester City Council,,Financial Services,RT200,Fees For Services Received,5350,REDACTED,25/06/2013 00:00,366093,687.06,NET,Robert Half Ltd,03959K
Gloucester City Council,,Internal Audit,RT300,Basic Pay - Temporary Staff,2751,REDACTED,17/04/2013 00:00,362229,1144,NET,Robert Half Ltd,03959K
Gloucester City Council,,Financial Services,RT200,Consultants Fees,5349,REDACTED,25/04/2013 00:00,362608,1740,NET,Robert Half Ltd,03959K
Gloucester City Council,,Financial Services,RT200,Consultants Fees,5349,REDACTED,30/04/2013 00:00,362607,2175,NET,Robert Half Ltd,03959K
Gloucester City Council,,Hillfield Gardens S106,LY112,Contract Payments,20,deposit for London Road gate works,24/04/2013 00:00,362570,1741.25,CAP,Acorn Restorations Ltd,04489T
REDACTED,,REDACTED,REDACTED,REDACTED,REDACTED,REDACTED,REDACTED,REDACTED,800,REDACTED,REDACTED,06234L
Gloucester City Council,,Registration Of Electors,RS400,Fees For Services Received,5350,BAGS,25/04/2013 00:00,361726,941.5,NET,Shaw & Sons Ltd,40310F
Gloucester City Council,,Registration Of Electors,RS400,Fees For Services Received,5350,Elections staff income tax 2011-12,06/06/2013 00:00,364978,13686.4,NET,Hm Revenue & Customs,07644B
Gloucester City Council,,Parking Cctv,PT745,Contracted Services,6970,June 2013 variable services,15/07/2013 00:00,366939,703.5,NET,Apcoa Parking (Uk) Ltd,09954M
Gloucester City Council,,St Oswalds Car Park 3,PJ140,Contracted Services,6970,April 2013 variable services,13/05/2013 00:00,363255,3172.68,NET,Apcoa Parking (Uk) Ltd,09954M
Gloucester City Council,,Forest Of Dean Off Street,PT742,Contracted Services,6970,March 2013 variable services,09/04/2013 00:00,361632,1407,NET,Apcoa Parking (Uk) Ltd,09954M
Gloucester City Council,,St Oswalds Car Park 3,PJ140,Contracted Services,6970,March 2013 variable services,09/04/2013 00:00,361632,3021.6,NET,Apcoa Parking (Uk) Ltd,09954M
Gloucester City Council,,Business Transformation & Tech,RT700,Basic Pay - Temporary Staff,2751,REDACTED,10/07/2013 00:00,366977,4503,NET,Vector Resourcing Ltd,11664K
Gloucester City Council,,Business Transformation & Tech,RT700,Basic Pay - Temporary Staff,2751,REDACTED,07/06/2013 00:00,365107,5947,NET,Vector Resourcing Ltd,11664K
Gloucester City Council,,Business Transformation & Tech,RT700,Basic Pay - Temporary Staff,2751,REDACTED,11/04/2013 00:00,361888,3848,NET,Vector Resourcing Ltd,11664K
Gloucester City Council,,Business Transformation & Tech,RT700,Basic Pay - Temporary Staff,2751,REDACTED,17/04/2013 00:00,361994,5236,NET,Vector Resourcing Ltd,11664K
Gloucester City Council,,Utilities,PT502,Gas Supply,3100,UTILITIES TO MAY 2013,11/07/2013 00:00,366364,25534.88,NET,West Mercia Energy,11669Z
Gloucester City Council,,Utilities,PT502,Electricity Supply,3110,UTILITIES TO JUNE 2013,25/07/2013 00:00,367809,586.67,NET,West Mercia Energy,11669Z
Gloucester City Council,,Utilities,PT502,Electricity Supply,3110,UTILITIES,09/05/2013 00:00,363464,2979.24,NET,West Mercia Energy,11669Z
Gloucester City Council,,Utilities,PT502,Gas Supply,3100,UTILITIES TO APR 2013,24/05/2013 00:00,364346,33272.02,NET,West Mercia Energy,11669Z
Gloucester City Council,,Utilities,PT502,Gas Supply,3100,UTILITIES TO MAR 2013,19/04/2013 00:00,362421,30924.77,NET,West Mercia Energy,11669Z
Gloucester City Council,,Utilities,PT502,Electricity Supply,3110,UTILITIES TO MAR 2013,19/04/2013 00:00,362421,44178.48,NET,West Mercia Energy,11669Z
Gloucester City Council,,Homelessness,CH120,Board And Lodging,5515,REDACTED,31/05/2013 00:00,364571,598.23,NET,Dorchester House Trust,12298D
Gloucester City Council,,Homelessness,CH120,Board And Lodging,5515,#EMPTY,05/04/2013 00:00,361542,2916.36,NET,Dorchester House Trust,12298D
REDACTED,,REDACTED,REDACTED,REDACTED,REDACTED,REDACTED,REDACTED,REDACTED,510,REDACTED,REDACTED,01494P
Gloucester City Council,,3rd Floor North Warehouse,RY210,Contract Payments,20,CHAIRS,26/04/2013 00:00,361856,15184.95,CAP,Diamond Business Interiors Ltd,13587H
Gloucester City Council,,Off Street Car Parks,PP110,General Repair/Maint Buildings,3000,EASTGATE CAR PARK WORKS,09/04/2013 00:00,361438,1450,NET,Cotswold Drain Services,04496W
Gloucester City Council,,Tic Rovercard Sales,LT101,Materials For Sale,5080,SALES JULY 2013,29/08/2013 00:00,369811,6672,NET,Stagecoach Services Ltd*,56554W
Gloucester City Council,,Website Rebuild,RY573,Contract Payments,20,Website Dev work to 31AUG13,10/09/2013 00:00,370443,12285,CAP,Bright Starr Uk,13575R
Gloucester City Council,,Grants To Voluntary Sector,FG100,Funding Vol&Com Grps-Grants,7100C,community grant 2013-14,17/07/2013 00:00,365424,2500,NET,Gloucester Bangladeshi Women'S Group,13934J
REDACTED,REDACTED,REDACTED,REDACTED,REDACTED,REDACTED,REDACTED,REDACTED,REDACTED,750,REDACTED,REDACTED,14098V
Gloucester City Council,,General Works Fund,RY203,Capital General Repairs & Main,13,NEW LOCKS,08/07/2013 00:00,365952,784.5,CAP,Severnside Security,40140G
Gloucester City Council,,Business Transformation & Tech,RT700,Computer Hardware <5000,5420,PLX ENCOREPRO,16/08/2013 00:00,369193,609.85,NET,Rocom,56066R
Gloucester City Council,,Docks Complex - Telephones,RB120,Telephones And Fax,5410,ACCT VP75978270,15/07/2013 00:00,367272,2517.29,NET,Bt Payment Services Ltd,56283E
Gloucester City Council,,Docks Complex - Telephones,RB120,Telephones And Fax,5410,ACCT VP75978270,25/04/2013 00:00,361900,2783.45,NET,Bt Payment Services Ltd,56283E
Gloucester City Council,,Crematorium,HC200,Fees For Services Received,5350,#EMPTY,10/05/2013 00:00,13654,1208.08,NET,Dr C M Stretton,00306P
REDACTED,,REDACTED,REDACTED,REDACTED,REDACTED,REDACTED,REDACTED,REDACTED,573.75,REDACTED,REDACTED,00106P
Gloucester City Council,,Registration Of Electors,RS400,Fees For Services Received,5350,deliver/collect pollbooths 30/4-7/5/13,18/07/2013 00:00,364913,1248.78,NET,Armstrong Removals,04632N
Gloucester City Council,,Crematorium,HC200,Fees For Services Received,5350,#EMPTY,05/09/2013 00:00,13979,804.96,NET,Dr D Martin,00890P
Gloucester City Council,,Improvement Grants,CY013,Disabled Facility Grants,74,GRANT REF MDF4970,15/04/2013 00:00,362022,1200,CAP,Tpg Disableaids,51324R
Gloucester City Council,,Guildhall Events,LA200,Advertising And Publicity,5702,ADVERTS MAR 2013,12/04/2013 00:00,361743,1413,NET,Local World Ltd,08556P
Gloucester City Council,,Training Schemes,ET100,Fees For Services Received,5350,ADVERT 16/02/13,12/04/2013 00:00,359203,4000,NET,Local World Ltd,08556P
Gloucester City Council,,Asset Management,RS300,Basic Pay - Temporary Staff,2751,CONSULTANCY JULY 2013,05/08/2013 00:00,368504,6950,NET,Ardley Associates,09369F
Gloucester City Council,,Homelessness Prevention,CH122,Fees For Services Received,5350,REDACTED,05/04/2013 00:00,361584,500,NET,REDACTED,09499R
Gloucester City Council,,Retail Market - Landlord,HM300,Events,5952,Created by invoice listener,20/05/2013 00:00,364099,1020,NET,Dave Joynes Market Services,10265P
Gloucester City Council,,Civica Contract Revs & Bens,RT250,Contracted Services,6970,AUG13 pensions,09/09/2013 00:00,370337,10689.13,NET,Civica Uk Ltd,10841X
Gloucester City Council,,Civica Contract Revs & Bens,RT250,Contracted Services,6970,Pension excess May 2013,21/08/2013 00:00,366567,10731.7,NET,Civica Uk Ltd,10841X
Gloucester City Council,,Civica Contract Revs & Bens,RT250,Contracted Services,6970,July 2013 pensions,21/08/2013 00:00,368990,10689.13,NET,Civica Uk Ltd,10841X
Gloucester City Council,,Business Transformation & Tech,RT700,Computer Software <5000,5425,LA data sharing tranche 1,24/07/2013 00:00,367909,6607.06,NET,Civica Uk Ltd,10841X
Gloucester City Council,,Business Transformation & Tech,RT700,Internet Service Provider Fees,5429,CALLS JAN-MAR 2013,10/04/2013 00:00,361697,2459.23,NET,Vodafone Ltd,11843H
Gloucester City Council,,Legal Services,RS200,Basic Pay - Temporary Staff,2751,REDACTED,31/07/2013 00:00,368247,536.76,NET,Sellick Partnership Group Ltd,11057C
Gloucester City Council,,Legal Services,RS200,Basic Pay - Temporary Staff,2751,REDACTED,09/07/2013 00:00,366875,604.26,NET,Sellick Partnership Group Ltd,11057C
Gloucester City Council,,Legal Services,RS200,Basic Pay - Temporary Staff,2751,REDACTED,09/05/2013 00:00,363445,658.26,NET,Sellick Partnership Group Ltd,11057C
Gloucester City Council,,Legal Services,RS200,Basic Pay - Temporary Staff,2751,REDACTED,20/05/2013 00:00,364006,641.34,NET,Sellick Partnership Group Ltd,11057C
Gloucester City Council,,Off Street Car Parks,PP110,Maint Of Grounds - General,3030,9A EASTGATE SHOPPING CTR,15/07/2013 00:00,366983,1007.5,NET,Workman Llp Service Charge Account,11022K
Gloucester City Council,,Retail Market - Landlord,HM300,Service Charges,3020,MARKET HALL,26/04/2013 00:00,361161,12225.75,NET,Workman Llp Service Charge Account,11022K
Gloucester City Council,,Avenger Task Force,FP842,Rents,3200,Avenger task force accomm. contribution,14/06/2013 00:00,365543,7000,NET,Gloucester City Homes,05244T
Gloucester City Council,,Senior Management Restructurin,RO200,Fees For Services Received,5350,Consultancy services June 2013,02/07/2013 00:00,366416,6207.2,NET,Alexander Beaver Associates,06515Z
Gloucester City Council,,Nms Contract,HI102,Contracted Services,6970,CONTRACT SEPT 2013,09/09/2013 00:00,370303,508825.75,NET,Enterprise (Aol) Ltd,06695G
Gloucester City Council,,Nms Contract,HI102,General Repair/Maint Buildings,3000,WALK BEHIND JUNE 13,19/06/2013 00:00,365142,563.33,NET,Enterprise (Aol) Ltd,06695G
Gloucester City Council,,Nms Contract,HI102,Contracted Services,6970,STREETCARE JUNE 2013,12/06/2013 00:00,365141,535908.75,NET,Enterprise (Aol) Ltd,06695G
Gloucester City Council,,Hempsted Market/Car Boot,HM234,Maint Of Grounds - General,3030,NETHERIDGE MEADOW,23/05/2013 00:00,361353,600.84,NET,Enterprise (Aol) Ltd,06695G
Gloucester City Council,,Nms Contract,HI102,Contracted Services,6970,STREETCARE MAY 2013,30/05/2013 00:00,364518,535908.75,NET,Enterprise (Aol) Ltd,06695G
Gloucester City Council,,Homelessness,CH120,Board And Lodging,5515,#EMPTY,05/04/2013 00:00,361537,1026.27,NET,Kalmwood Ltd ,08568G
Gloucester City Council,,Docks Complex - Castlemeads Cp,RB210,General Repair/Maint Buildings,3000,Castlemeads car park works,17/07/2013 00:00,367492,1243,NET,Anderson Civil Engineering Uk Ltd,09083D
Gloucester City Council,,Grants To Voluntary Sector,FG100,Funding Vol&Com Grps-Grants,7100C,Community Grant 2013/14 1 of 2,28/06/2013 00:00,366121,6000,NET,Together In Matson,53760RV
Gloucester City Council,,Group Mgr Cult Ser & Tourism,GR102,Fees For Services Received,5350,EVENT GRANT,15/08/2013 00:00,369206,500,NET,The Venture: White City,10402E
Gloucester City Council,,Senior Management Restructurin,RO200,Pension Contribs Incl Backf,2901,Pension scheme Apr-May13,12/08/2013 00:00,363796,25645.97,NET,Gloucestershire County Council,10614L
Gloucester City Council,,Improvement Grants,CY013,Disabled Facility Grants,74,grant ref MDF4988,26/07/2013 00:00,368037,3695,CAP,Dolphin Lifts (Western) Ltd,10661B
Gloucester City Council,,Asset Management,RS300,Basic Pay -Admin /Prof Staff,2601,REDACTED,15/04/2013 00:00,361757,976.01,NET,Hays Specialist Recruitment Ltd,55516P
Gloucester City Council,,Tic Coach Tickets,LT105,Materials For Sale,5080,SALES MAR 2013,04/04/2013 00:00,361372,13932.65,NET,National Express Ltd,31455K
Gloucester City Council,,Homelessness,CH120,Board And Lodging,5515,REDACTED,31/05/2013 00:00,364563,612.29,NET,Carbrey Housing Ltd,11098G
Gloucester City Council,,Homelessness,CH120,Board And Lodging,5515,REDACTED,31/05/2013 00:00,364567,988.48,NET,Carbrey Housing Ltd,11098G
Gloucester City Council,,Homelessness,CH120,Board And Lodging,5515,#EMPTY,03/05/2013 00:00,363137,1218.11,NET,Carbrey Housing Ltd,11098G
Gloucester City Council,,Homelessness Prevention,CH122,Fees For Services Received,5350,#EMPTY,02/04/2013 00:00,361304,500,NET,REDACTED,13675K
Gloucester City Council,,Group Mgr Reg Ser Faclt & Sup,GR103,Basic Pay -Admin /Prof Staff,2601,REDACTED,16/08/2013 00:00,369383,36105.71,NET,REDACTED,14191E
Gloucester City Council,,Printing,RP103,Fees For Services Received,5350,August 2013 printing,03/09/2013 00:00,369895,1167,NET,Alpha Colour Printers Ltd,00945B
Gloucester City Council,,Photocopying,RS130,Printing,5300,March13 - invoiced in error,09/05/2013 00:00,362152,2883.96,NET,Alpha Colour Printers Ltd,00945B
Gloucester City Council,,Homelessness,CH120,Board And Lodging,5515,REDACTED,22/08/2013 00:00,369535,946.4,NET,REDACTED,10975Y
Gloucester City Council,,Homelessness,CH120,Board And Lodging,5515,#EMPTY,05/04/2013 00:00,361543,714.66,NET,REDACTED,10975Y
Gloucester City Council,,Homelessness Prevention,CH122,Fees For Services Received,5350,Citizenview service,08/08/2013 00:00,368673,1712,NET,Experian Ltd,57191B
Gloucester City Council,,Council Streetcare Team,HI101,Contracted Services,6970,BAGS,13/05/2013 00:00,363582,953,NET,Polystar Plastics Ltd,01120C
Gloucester City Council,,Investment Property,RB500,Plumbing Repairs,3085,Eastgate market smoke vent works,14/06/2013 00:00,365441,657,NET,Airvent Systems Limited,51073T
Gloucester City Council,,Registration Of Electors,RS400,Fees For Services Received,5350,2nd May2013 county council elections,06/06/2013 00:00,364477,515,NET,Gloucester Rugby Football Club,49396D
Gloucester City Council,,Civic Admin And Hospitality,RC210,Events,5952,MAYORS BALL,17/04/2013 00:00,361997,4052.4,NET,Gloucester Rugby Football Club,49396D
Gloucester City Council,,Homelessness Prevention,CH122,Fees For Services Received,5350,REDACTED,21/08/2013 00:00,369505,600,NET,Michael Tuck Lettings Ltd,08681K
Gloucester City Council,,Financial Services,RT200,Consultants Fees,5349,CONSULTANTS JUNE 2013,12/08/2013 00:00,367054,18155.55,NET,Resources Consultancy Limited,10508L
Gloucester City Council,,Director Resources,MR102,Consultants Fees,5349,REDACTED,16/08/2013 00:00,369015,2050.4,NET,Resources Consultancy Limited,10508L
Gloucester City Council,,Youth Grant 2011/12,FP107,Funding Vol&Com Grps-Grants,7100C,YOUTH GRANT,22/07/2013 00:00,367688,2500,NET,Young Gloucestershire,60951RV
Gloucester City Council,,The Fleece,RB530,General Repair/Maint Buildings,3000,FLEECE HOTEL,01/07/2013 00:00,366403,15591.68,NET,Wring Group Ltd,12336X
Gloucester City Council,,Investment Property,RB500,Fire Alarms,3027,BT Redcare for intruder alarm 2013/14,16/04/2013 00:00,361578,503,NET,Avon Alarms Ltd,02280T
Gloucester City Council,,Homelessness Prevention,CH122,Basic Pay - Temporary Staff,2751,REDACTED,08/07/2013 00:00,366783,597.9,NET,James Andrews Recruitment Solutions,13636W
Gloucester City Council,,Homelessness Prevention,CH122,Basic Pay - Temporary Staff,2751,REDACTED,11/04/2013 00:00,361887,717.76,NET,James Andrews Recruitment Solutions,13636W
Gloucester City Council,,Hillfield Gardens S106,LY112,Contract Payments,20,BINS,10/06/2013 00:00,364847,1540,CAP,Wybone Limited,13540L
Gloucester City Council,,Homelessness Prevention,CH122,Fees For Services Received,5350,REDACTED,02/08/2013 00:00,368416,550,NET,REDACTED,13885W
Gloucester City Council,,Homelessness,CH120,Rent In Advance,5516,REDACTED,29/07/2013 00:00,368203,576.92,NET,REDACTED,13860N
Gloucester City Council,,Client Revs & Bens Contract,RT240,Consultants Fees,5349,#EMPTY,15/05/2013 00:00,13662,2000,NET,REDACTED,01533P
Gloucester City Council,,Grants To Voluntary Sector,FG100,Funding Vol&Com Grps-Grants,7100C,Community Grant 2013-14,31/05/2013 00:00,364285,7462,NET,The Family Haven,20980M
Gloucester City Council,,Improvement Grants,CY013,Disabled Facility Grants,74,REDACTED,22/07/2013 00:00,367715,1850,CAP,T & P Franklin & Sons Ltd,16150A
Gloucester City Council,,Guildhall Bar And Caf�,LA210,Catering Provisions -Liquor,5111,Created by invoice listener,25/07/2013 00:00,367966,785.17,NET,Cellar Supplies Cheltenham Ltd,01563L
Gloucester City Council,,Guildhall Bar And Caf�,LA210,Catering Provisions -Liquor,5111,Guildhall drinks,24/06/2013 00:00,365993,1727.06,NET,Cellar Supplies Cheltenham Ltd,01563L
Gloucester City Council,,Guildhall Bar And Caf�,LA210,Catering Provisions -Liquor,5111,GUILDHALL DRINKS,04/04/2013 00:00,361449,747.93,NET,Cellar Supplies Cheltenham Ltd,01563L
Gloucester City Council,,Summer Festival,LT300,Hire Of Equipment,5020,FIRST AID 20/07/13,21/08/2013 00:00,369012,780,NET,St John Ambulance*,03597Y
Gloucester City Council,,Economic Development,FP300,Business Grant,7116,GRANT,28/06/2013 00:00,366264,1250,NET,REDACTED,34108RV
Gloucester City Council,,Retail Market - Landlord,HM300,Subscriptions,5600,SUBSCRIPTION 2013/14,31/05/2013 00:00,361602,636,NET,REDACTED,47998L
Gloucester City Council,,Cedar Upgrade 2011/12,RY250,Contract Payments,20,Interface spec consultancy,06/06/2013 00:00,364792,850,CAP,Advanced Business Solutions,06072N
Gloucester City Council,,Civil Parking Enforcement,PT741,Computer Software Maintenance,5427,Jun13 cashless parking fees,17/07/2013 00:00,367199,684,NET,Chipside Ltd,06535T
Gloucester City Council,,Parking Cctv,PT745,Contracted Services,6970,cashless parking fees Apr/May13,21/06/2013 00:00,365646,1335.32,NET,Chipside Ltd,06535T
Gloucester City Council,,Aspire Admin Charges,LC105,Contracted Services,6970,Management fees July 2013,22/08/2013 00:00,367764,79792.5,NET,Aspire Sports & Cultural Trust,08135V
Gloucester City Council,,Aspire Admin Charges,LC105,Contracted Services,6970,Management fees August 2013,22/08/2013 00:00,368553,79792.5,NET,Aspire Sports & Cultural Trust,08135V
Gloucester City Council,,Group Mgr Cult Ser & Tourism,GR102,Events,5952,BLUES FESTIVAL 2013,05/09/2013 00:00,370036,2000,NET,Marketing Gloucester Ltd,08925E
Gloucester City Council,,Homelessness Prevention,CH122,Fees For Services Received,5350,REDACTED,15/05/2013 00:00,363729,555,NET,The Property Centre,09230R
Gloucester City Council,,General Works Fund,RY203,Cap Repair/Maint Fixed Plant,14,SWISS COTTAGE,23/08/2013 00:00,368181,540.27,CAP,Scs Installations Ltd,10383G
Gloucester City Council,,Enhanced Lighting Schemes,PY118,Contract Payments,20,ST OSWALDS,03/07/2013 00:00,365974,1684.05,CAP,Scs Installations Ltd,10383G
Gloucester City Council,,Eastgate Rooftop Emerg Works,RY159,Contract Payments,20,EASTGATE CAR PARK,16/04/2013 00:00,362109,4967.5,CAP,Rsw Roofing Ltd,11063G
Gloucester City Council,,Business Transformation & Tech,RT700,Computer Software Maintenance,5427,Office 365 x 500 licences,09/07/2013 00:00,366785,11460,NET,Civica Services Ltd,58099E
Gloucester City Council,,Business Transformation & Tech,RT700,Computer Software Maintenance,5427,software licences,11/07/2013 00:00,366964,21321.82,NET,Civica Services Ltd,58099E
Gloucester City Council,,Business Transformation & Tech,RT700,Basic Pay - Temporary Staff,2751,Consultancy services w/e 28/6/13,03/07/2013 00:00,366417,1125,NET,Ffox Software Ltd,10665T
Gloucester City Council,,Business Transformation & Tech,RT700,Basic Pay - Temporary Staff,2751,REDACTED,31/07/2013 00:00,368165,930,NET,Ffox Software Ltd,10665T
Gloucester City Council,,Council Streetcare Team,HI101,Printing,5300,STICKERS,04/06/2013 00:00,364828,505,NET,Vital Signs,56032J
Gloucester City Council,,Hillfield Gardens S106,LY112,Contract Payments,20,HILLFIELD GARDENS,10/06/2013 00:00,364833,4400,CAP,Stonebank Ironcraft,13564W
REDACTED,,REDACTED,REDACTED,REDACTED,REDACTED,REDACTED,REDACTED,REDACTED,2750,REDACTED,REDACTED,13908K
Gloucester City Council,,Guildhall Events,LA200,Performing Rights Society Subs,5622,PRS charges 2012/13,14/06/2013 00:00,365531,8150.11,NET,The Performing Rights Society Ltd,05077M
Gloucester City Council,,Crematorium,HC200,Repair/Maint Of Fixed Plant,3006,Carbon reagent,25/07/2013 00:00,367896,1642.8,NET,Facultatieve Technologies Ltd,51210H
Gloucester City Council,,Cemeteries,HC300,Trade Refuse Tipping Fees,6297,Created by invoice listener,07/08/2013 00:00,368681,720,NET,Allstone Sand & Gravel Aggregates Ltd,00940M
Gloucester City Council,,Asbru - Other Funders,FP846,Other Minor Supplies Services,5590,REDACTED,06/06/2013 00:00,364757,567.16,NET,Travail Employment Ltd,49371W
Gloucester City Council,,Off Street Car Parks,PP110,Rents,3200,Rent 24/6/13-28/9/13,10/06/2013 00:00,365039,600,NET,Boots The Chemist,04540V
Gloucester City Council,,Civica Admin Charges,RT105,Postages,5400,ACCT 0870585007 REVENUES,28/05/2013 00:00,363317,1689.88,NET,Royal Mail S.Wales & South West,35830S
Gloucester City Council,,Civica Admin Charges,RT105,Postages,5400,ACCT 0870585007 REVENUES,20/05/2013 00:00,362667,930.33,NET,Royal Mail S.Wales & South West,35830S
Gloucester City Council,,Postal Services,RS120,Postages,5400,ACCT 0252446000 W/E 28/03/13,09/04/2013 00:00,361616,1923.91,NET,Royal Mail S.Wales & South West,35830S
Gloucester City Council,,Homelessness,CH120,Removal And Storage Fees,5513,REDACTED,17/05/2013 00:00,363798,653.14,NET,Advanced Removals & Storage Ltd,57142R
Gloucester City Council,,Legal Services,RS200,Subscriptions,5600,PUBLICATIONS,08/04/2013 00:00,361612,1144.75,NET,Thomson Reuters,43110M
Gloucester City Council,,Grants To Voluntary Sector,FG100,Funding Vol&Com Grps-Grants,7100C,community grant 2012-13,21/05/2013 00:00,363613,2550,NET,Gloucester Asian Elders,51665J
Gloucester City Council,,Homelessness,CH120,Board And Lodging,5515,#EMPTY,03/05/2013 00:00,363139,1949.04,NET,REDACTED,07868A
Gloucester City Council,,Homelessness,CH120,Board And Lodging,5515,#EMPTY,05/04/2013 00:00,361541,2289.92,NET,REDACTED,07868A
Gloucester City Council,,Homelessness,CH120,Board And Lodging,5515,JUN13 B&B PAYMENTS,26/06/2013 00:00,366154,1394.99,NET,James Legge Property (Ltd),07844R
Gloucester City Council,,Business Transformation & Tech,RT700,Computer Software Maintenance,5427,IBS integration annual support,28/06/2013 00:00,366208,1809.1,NET,Northgate Information Solutions Uk Ltd,08982S
Gloucester City Council,,Homelessness Prevention,CH122,Fees For Services Received,5350,REDACTED,22/08/2013 00:00,369570,550,NET,2 Let Glos Ltd,74622M
Gloucester City Council,,Homelessness Prevention,CH122,Fees For Services Received,5350,#EMPTY,23/04/2013 00:00,362533,650,NET,2 Let Glos Ltd,74622M
Gloucester City Council,,Civil Parking Enforcement,PT741,Fees For Services Received,5350,TEC A/C GO & FG PREFIXED,26/06/2013 00:00,366146,4000,NET,Traffic Enforcement Centre,09456K
Gloucester City Council,,Homelessness Prevention,CH122,Fees For Services Received,5350,REDACTED,17/04/2013 00:00,362233,500,NET,REDACTED,11528V
Gloucester City Council,,Off Street Car Parks,PP110,General Repair/Maint Buildings,3000,Eastgate car park ceiling repairs,06/09/2013 00:00,370096,562.5,NET,Rf Gardiner Limited,12299B
Gloucester City Council,,75/81 Eastgate Street,RB501,Fixed Wire Electrical Insp,3005,invoice sent in error Tredworth Infants,18/06/2013 00:00,364649,2290,NET,Rf Gardiner Limited,12299B
Gloucester City Council,,Street Cleaning Machine,PY279,Contract Payments,20,WASHER HIRE,17/05/2013 00:00,363885,9970,CAP,Sweeping Solutions Ltd,12872R
Gloucester City Council,,Improvement Grants,CY013,Disabled Facility Grants,74,REDACTED,10/04/2013 00:00,361796,11885.45,CAP,Beard & Tandy,03160V
Gloucester City Council,,Off Street Car Parks,PP110,General Repair/Maint Buildings,3000,EASTGATE CAR PARK WORKS,18/04/2013 00:00,362320,908,NET,Beard & Tandy,03160V
Gloucester City Council,,City Museum And Art Gallery,LM200,Publications For Sale,5064,sale of exhibition art,19/06/2013 00:00,365790,825,NET,REDACTED,13984T
Gloucester City Council,,Members Support,RC300,Hospitality,5122,REGEN ADVISORY BOARD CATERING,27/08/2013 00:00,369611,690,NET,Crown Catering Ltd,13835H
REDACTED,,REDACTED,REDACTED,REDACTED,REDACTED,REDACTED,REDACTED,REDACTED,600,REDACTED,REDACTED,59766Y
Gloucester City Council,,Neighbourhood Partnerships,FP104,Fees For Services Received,5350,NEIGHBOURHOOD GRANT 2013/14,12/09/2013 00:00,370608,930,NET,Gl4 Together,14128M
Gloucester City Council,,Cemeteries,HC300,Fuel,4012,red deisel delivery 21/5/13,31/05/2013 00:00,364478,662,NET,Cpl Petroleum,55192U
Gloucester City Council,,Grants To Voluntary Sector,FG100,Funding Vol&Com Grps-Grants,7100C,Grant 2013 parts 2&3 of 4,30/07/2013 00:00,368013,18000,NET,Gavca,06129J
Gloucester City Council,,Gis Development Work,RY555,Contract Payments,20,REDACTED,31/07/2013 00:00,368106,1000,CAP,Badenoch & Clark,01536P
Gloucester City Council,,Gis Development Work,RY555,Contract Payments,20,REDACTED,17/06/2013 00:00,365616,1250,CAP,Badenoch & Clark,01536P
Gloucester City Council,,Gis Development Work,RY555,Contract Payments,20,REDACTED,30/05/2013 00:00,364486,1250,CAP,Badenoch & Clark,01536P
Gloucester City Council,,Gis Development Work,RY555,Contract Payments,20,REDACTED,07/05/2013 00:00,363155,1250,CAP,Badenoch & Clark,01536P
Gloucester City Council,,Gis Development Work,RY555,Contract Payments,20,REDACTED,08/04/2013 00:00,361635,1000,CAP,Badenoch & Clark,01536P
Gloucester City Council,,Crematorium,HC200,Memorial Plaques,5053,bronze plaques,24/07/2013 00:00,367894,516,NET,Arkell & Hurcombe,59812T
Gloucester City Council,,Civil Parking Enforcement,PT741,On Street Parking Charges,6550,May 2013 parking income,15/07/2013 00:00,367020,34969.66,NET,Gloucestershire County Council,18650D
Gloucester City Council,,Parking Cctv,PT745,On Street Parking Charges,6550,Bus lane enforcement April13,31/05/2013 00:00,364331,5849,NET,Gloucestershire County Council,18650D
Gloucester City Council,,Civil Parking Enforcement,PT741,On Street Parking Charges,6550,on street parking income April 2013,31/05/2013 00:00,364330,37133.24,NET,Gloucestershire County Council,18650D
Gloucester City Council,,Investment Property,RB500,Fire Alarms,3027,Folk Museum 22Apr13-21Apr14,16/04/2013 00:00,358943,1186.12,NET,Chubb Electronic Security Ltd,54582K
Gloucester City Council,,Director Resources,MR102,Fees For Services Received,5350,REDACTED,20/05/2013 00:00,363993,2366,NET,Wragge & Co Llp,06590J
REDACTED,,REDACTED,REDACTED,REDACTED,REDACTED,REDACTED,REDACTED,REDACTED,1000,REDACTED,REDACTED,57657Z
Gloucester City Council,,Homelessness Prevention,CH122,Fees For Services Received,5350,REDACTED,10/09/2013 00:00,370463,600,NET,Andrews Lettings,08513J
Gloucester City Council,,Homelessness Prevention,CH122,Fees For Services Received,5350,REDACTED,09/08/2013 00:00,368837,525,NET,Naylor Powell,08867T
Gloucester City Council,,Client Revs & Bens Contract,RT240,Court Fees,5358,PALL MALL V GCC,14/05/2013 00:00,13659,2000,NET,REDACTED,01302P
Gloucester City Council,,Human Resources,EH100,Employee Related Advertising,2920,job adverts,17/05/2013 00:00,359775,990,NET,Jgp Resourcing Ltd (Jobs Go Public),12491H
Gloucester City Council,,Human Resources,EH100,Basic Pay -Admin /Prof Staff,2601,Mgmt of Apprentiseship Scheme Aug13,28/08/2013 00:00,369546,3250,NET,Hr Consulting Ltd,12559Y
Gloucester City Council,,Summer Festival,LT300,Fees For Services Received,5350,Carnival Launch & workshops,16/08/2013 00:00,369309,1218,NET,Global Arts Inc Ltd,13333U
Gloucester City Council,,Website Rebuild,RY573,Consultants Fees,30,REDACTED,02/07/2013 00:00,366434,1125,CAP,Patzone It Solutions Ltd,13059R
Gloucester City Council,,Website Rebuild,RY573,Consultants Fees,30,contractor services 12-24Jul13,29/07/2013 00:00,368088,2025,CAP,Patzone It Solutions Ltd,13059R
Gloucester City Council,,Website Rebuild,RY573,Consultants Fees,30,18-30 April work,03/05/2013 00:00,363102,2025,CAP,Patzone It Solutions Ltd,13059R
Gloucester City Council,,Homelessness Prevention,CH122,Fees For Services Received,5350,REDACTED,10/09/2013 00:00,370403,600,NET,REDACTED,14118R
Gloucester City Council,,75/81 Eastgate Street,RB501,Cleaning Materials,3600,#EMPTY,07/06/2013 00:00,13748,510,NET,REDACTED,00287P
Gloucester City Council,,Homelessness Prevention,CH122,Basic Pay - Temporary Staff,2751,REDACTED,09/09/2013 00:00,370314,590,NET,Venn Group Ltd,04339P
Gloucester City Council,,Homelessness Prevention,CH122,Basic Pay - Temporary Staff,2751,REDACTED,05/08/2013 00:00,368436,720,NET,Venn Group Ltd,04339P
Gloucester City Council,,Legal Services,RS200,Basic Pay - Temporary Staff,2751,REDACTED,15/08/2013 00:00,367284,1238.7,NET,Venn Group Ltd,04339P
Gloucester City Council,,Homelessness Prevention,CH122,Basic Pay - Temporary Staff,2751,REDACTED,15/08/2013 00:00,368924,740,NET,Venn Group Ltd,04339P
Gloucester City Council,,Legal Services,RS200,Basic Pay -Admin /Prof Staff,2601,REDACTED,28/08/2013 00:00,369641,1203.01,NET,Venn Group Ltd,04339P
Gloucester City Council,,Legal Services,RS200,Basic Pay -Admin /Prof Staff,2601,REDACTED,16/08/2013 00:00,368441,1136.7,NET,Venn Group Ltd,04339P
Gloucester City Council,,Legal Services,RS200,Basic Pay -Admin /Prof Staff,2601,REDACTED,16/08/2013 00:00,368442,1136.7,NET,Venn Group Ltd,04339P
Gloucester City Council,,Homelessness Prevention,CH122,Basic Pay - Temporary Staff,2751,REDACTED,22/07/2013 00:00,367649,740,NET,Venn Group Ltd,04339P
Gloucester City Council,,Legal Services,RS200,Basic Pay - Temporary Staff,2751,REDACTED,09/07/2013 00:00,366810,670.2,NET,Venn Group Ltd,04339P
Gloucester City Council,,Legal Services,RS200,Basic Pay -Admin /Prof Staff,2601,REDACTED,09/07/2013 00:00,366809,580.85,NET,Venn Group Ltd,04339P
Gloucester City Council,,Grants To Voluntary Sector,FG100,Funding Vol&Com Grps-Grants,7100C,COMMUNITY GRANT 2013-14 1 OF 1,21/05/2013 00:00,364126,2000,NET,Gloucestershire Resource Centre Ltd,51954Y
Gloucester City Council,,Plock Ct Surface Water,PY271,Contract Payments,20,Plock Court tree watering,16/08/2013 00:00,368559,720,CAP,Greenfields Garden Services Ltd,48130G
Gloucester City Council,,Hillfield Gardens S106,LY112,Contract Payments,20,Hillfield Gardens work,31/05/2013 00:00,364499,2444.5,CAP,Greenfields Garden Services Ltd,48130G
Gloucester City Council,,S.106 Coney Hill School Dev,LY098,Contract Payments,20,Barnwood Park litter bins,22/05/2013 00:00,364184,672,CAP,Greenfields Garden Services Ltd,48130G
Gloucester City Council,,Summer Festival,LT300,Hire Of Equipment,5020,Created by invoice listener,12/08/2013 00:00,368914,840,NET,B & W Hire Ltd,55477Y
Gloucester City Council,,Training Schemes,ET100,Vocational Training,2970,NVQ assessments Jun13,23/07/2013 00:00,367774,1330,NET,The Gold Standard,56141C
Gloucester City Council,,Homelessness Prevention,CH122,Fees For Services Received,5350,REDACTED,07/05/2013 00:00,363222,600,NET,REDACTED,58971RV
Gloucester City Council,,Contact Centre,RB300,Basic Pay -Admin /Prof Staff,2601,STAFF W/E 23/08/13,11/09/2013 00:00,369812,1296.99,NET,One To One Recruitment,04752H
Gloucester City Council,,Business Support,PT250,Basic Pay - Temporary Staff,2751,STAFF W/E 26/07/13,02/08/2013 00:00,368251,925.1,NET,One To One Recruitment,04752H
Gloucester City Council,,Contact Centre,RB300,Basic Pay -Admin /Prof Staff,2601,STAFF W/E 09/08/13,19/08/2013 00:00,369200,1010.09,NET,One To One Recruitment,04752H
Gloucester City Council,,Contact Centre,RB300,Basic Pay -Admin /Prof Staff,2601,STAFF W/E 16/08/13,21/08/2013 00:00,369451,1309.33,NET,One To One Recruitment,04752H
Gloucester City Council,,Business Support,PT250,Basic Pay - Temporary Staff,2751,STAFF W/E 19/07/13,25/07/2013 00:00,367874,910.6,NET,One To One Recruitment,04752H
Gloucester City Council,,Business Support,PT250,Basic Pay - Temporary Staff,2751,STAFF W/E 28/06/13,04/07/2013 00:00,366612,925.1,NET,One To One Recruitment,04752H
Gloucester City Council,,Homelessness Prevention,CH122,Basic Pay - Temporary Staff,2751,STAFF W/E 24&31/05/13,10/06/2013 00:00,365156,771.68,NET,One To One Recruitment,04752H
Gloucester City Council,,Business Support,PT250,Basic Pay - Temporary Staff,2751,STAFF W/E 24&31/05/13,17/06/2013 00:00,365157,1644.3,NET,One To One Recruitment,04752H
Gloucester City Council,,Business Support,PT250,Basic Pay - Temporary Staff,2751,STAFF W/E 03/05/13,10/05/2013 00:00,363541,912.9,NET,One To One Recruitment,04752H
Gloucester City Council,,Mortgage Rescue,CH128,Fees For Services Received,5350,staff w/e 28/4/13,07/05/2013 00:00,363150,569.76,NET,One To One Recruitment,04752H
Gloucester City Council,,Business Support,PT250,Basic Pay - Temporary Staff,2751,STAFF W/E 10/05/13,17/05/2013 00:00,363841,722.78,NET,One To One Recruitment,04752H
Gloucester City Council,,Business Support,PT250,Basic Pay - Temporary Staff,2751,STAFF W/E 05/04/13,12/04/2013 00:00,361902,728.58,NET,One To One Recruitment,04752H
Gloucester City Council,,Business Transformation & Tech,RT700,Computer Software Maintenance,5427,Contensis annual hosting,26/04/2013 00:00,362768,5000,NET,Zengenti Ltd,08467P
Gloucester City Council,,Business Transformation & Tech,RT700,Computer Software Maintenance,5427,Autocad,12/08/2013 00:00,368867,6855,NET,Excitech Ltd,09105V
Gloucester City Council,,City Museum And Art Gallery,LM200,Advertising And Publicity,5702,RADIO CAMPAIGN,16/07/2013 00:00,367402,1038.23,NET,Rathbone Media Ltd,10038D
Gloucester City Council,,City Museum And Art Gallery,LM200,Exhibits And Collections,5038,RADIO CAMPAIGN,16/07/2013 00:00,367402,750,NET,Rathbone Media Ltd,10038D
REDACTED,,REDACTED,REDACTED,REDACTED,REDACTED,REDACTED,REDACTED,REDACTED,607.75,REDACTED,REDACTED,00726P
Gloucester City Council,,The Fleece,RB530,General Repair/Maint Buildings,3000,FLEECE HOTEL,11/04/2013 00:00,360186,1185,NET,Oxford Archaeology South,12582D
Gloucester City Council,,Youth Grant 2011/12,FP107,Funding Vol&Com Grps-Grants,7100C,YOUTH GRANT 2013-14,16/07/2013 00:00,367259,2280,NET,British Red Cross,13000B
Gloucester City Council,,Cctv Revenue Budget,FP501,Security Equipment Serv/Repair,3038,CCTV JULY 2013,19/07/2013 00:00,367643,1726.67,NET,Quadrant Security Group Ltd,05109A
Gloucester City Council,,Cctv Revenue Budget,FP501,Security Equipment Serv/Repair,3038,CCTV MAY 2013,13/05/2013 00:00,363578,1726.67,NET,Quadrant Security Group Ltd,05109A
Gloucester City Council,,Crematorium,HC200,Equipment For Sale,5050,evenlode bench,24/07/2013 00:00,367906,542.45,NET,Gloster Furniture Limited,04932X
Gloucester City Council,,Armscroft Park Flood Mit S106,LY153,Contract Payments,20,Armscroft PArk works,03/06/2013 00:00,364719,7182.5,CAP,Colin Richardson Contractors,13835S
Gloucester City Council,,Client Revs & Bens Contract,RT240,Fees For Services Received,5350,67 & 69 London Road survey,24/04/2013 00:00,362253,2400,NET,Gleeds,50497R
Gloucester City Council,,Homelessness Prevention,CH122,Fees For Services Received,5350,REDACTED,09/05/2013 00:00,363479,600,NET,Naylor Powell,50755S
Gloucester City Council,,Postal Services,RS120,Postages,5400,DE subscription 2013/14,16/07/2013 00:00,367345,2122.47,NET,Dx Network Services Ltd,02593S
Gloucester City Council,,Publications,RC450,Advertising And Publicity,5702,ADVERT,07/06/2013 00:00,365108,2000,NET,Moose Marketing & Pr,03952A
Gloucester City Council,,Financial Services,RT200,Basic Pay -Admin /Prof Staff,2601,FOOD,10/09/2013 00:00,370448,594,NET,Robert Half Ltd,03959K
Gloucester City Council,,Financial Services,RT200,Consultants Fees,5349,REDACTED,16/08/2013 00:00,368647,4770,NET,Robert Half Ltd,03959K
Gloucester City Council,,Financial Services,RT200,Consultants Fees,5349,REDACTED,23/08/2013 00:00,369107,2175,NET,Robert Half Ltd,03959K
Gloucester City Council,,Financial Services,RT200,Consultants Fees,5349,REDACTED,03/07/2013 00:00,365768,1305,NET,Robert Half Ltd,03959K
Gloucester City Council,,Financial Services,RT200,Consultants Fees,5349,REDACTED,19/07/2013 00:00,367297,4770,NET,Robert Half Ltd,03959K
Gloucester City Council,,Financial Services,RT200,Consultants Fees,5349,REDACTED,14/06/2013 00:00,365568,4770,NET,Robert Half Ltd,03959K
Gloucester City Council,,Financial Services,RT200,Consultants Fees,5349,REDACTED,14/06/2013 00:00,365569,5962.5,NET,Robert Half Ltd,03959K
Gloucester City Council,,Financial Services,RT200,Basic Pay -Admin /Prof Staff,2601,REDACTED,14/06/2013 00:00,362135,562.5,NET,Robert Half Ltd,03959K
Gloucester City Council,,Internal Audit,RT300,Basic Pay - Temporary Staff,2751,REDACTED,07/05/2013 00:00,363149,1144,NET,Robert Half Ltd,03959K
Gloucester City Council,,Financial Services,RT200,Consultants Fees,5349,REDACTED,09/05/2013 00:00,362609,1740,NET,Robert Half Ltd,03959K
Gloucester City Council,,Cctv Revenue Budget,FP501,Security Equipment Serv/Repair,3038,CCTV leases lines,24/04/2013 00:00,361771,11462,NET,Bt Redcare,04692U
Gloucester City Council,,Investment Property,RB500,General Repair/Maint Buildings,3000,quarterly maintenance May-July13,01/05/2013 00:00,363002,540.02,NET,Gea Denco Ltd,57271C
Gloucester City Council,,Client Revs & Bens Contract,RT240,Fees For Services Received,5350,Pall Mall Investmants review Nov12-Jan13,04/04/2013 00:00,358286,828,NET,Bevan Brittan,06630Y
Gloucester City Council,,Business Transformation & Tech,RT700,Computer Hardware <5000,5420,screen arms,18/06/2013 00:00,365643,576.99,NET,Maddison Business Systems Ltd,44037RV
Gloucester City Council,,Off Street Car Parks,PP110,General Repair/Maint Buildings,3000,NETTLETON RD,09/05/2013 00:00,363448,717.15,NET,Southern Electric Contracting Ltd*,08337R
Gloucester City Council,,Eastgate Rooftop Emerg Works,RY159,Contract Payments,20,EASTGATE MALL,19/04/2013 00:00,362388,3500,CAP,Pure Asphalt Co Ltd,08352P
Gloucester City Council,,Neighbourhood Partnerships,FP104,Fees For Services Received,5350,NEIGHBOURHOOD GRANT 2013/14,08/08/2013 00:00,368760,2000,NET,Glos City Centre Community Partnership,08705X
Gloucester City Council,,Off Street Car Parks,PP110,Contracted Services,6970,June 2013 variable services,15/07/2013 00:00,366939,12646.77,NET,Apcoa Parking (Uk) Ltd,09954M
Gloucester City Council,,St Oswalds Car Park 3,PJ140,Contracted Services,6970,June 2013 variable services,15/07/2013 00:00,366939,3021.6,NET,Apcoa Parking (Uk) Ltd,09954M
Gloucester City Council,,Forest Of Dean Cpe,PT744,Contracted Services,6970,June 2013 variable services,15/07/2013 00:00,366939,2588.88,NET,Apcoa Parking (Uk) Ltd,09954M
Gloucester City Council,,Forest Of Dean Off Street,PT742,Contracted Services,6970,May-13,10/06/2013 00:00,365153,2483.34,NET,Apcoa Parking (Uk) Ltd,09954M
Gloucester City Council,,Forest Of Dean Off Street,PT742,Contracted Services,6970,April 2013 variable services,13/05/2013 00:00,363255,1407,NET,Apcoa Parking (Uk) Ltd,09954M
Gloucester City Council,,Parking Cctv,PT745,Contracted Services,6970,April 2013 variable services,13/05/2013 00:00,363255,738.68,NET,Apcoa Parking (Uk) Ltd,09954M
Gloucester City Council,,Parking Cctv,PT745,Contracted Services,6970,March 2013 variable services,09/04/2013 00:00,361632,844.2,NET,Apcoa Parking (Uk) Ltd,09954M
Gloucester City Council,,Forest Of Dean Cpe,PT744,Contracted Services,6970,March 2013 variable services,09/04/2013 00:00,361632,3905.42,NET,Apcoa Parking (Uk) Ltd,09954M
Gloucester City Council,,Homelessness Prevention,CH122,Fees For Services Received,5350,REDACTED,24/04/2013 00:00,362646,524.98,NET,REDACTED,10691S
Gloucester City Council,,Business Transformation & Tech,RT700,Basic Pay - Temporary Staff,2751,REDACTED,12/08/2013 00:00,368920,5453,NET,Vector Resourcing Ltd,11664K
Gloucester City Council,,Business Transformation & Tech,RT700,Basic Pay - Temporary Staff,2751,REDACTED,13/05/2013 00:00,363577,5928,NET,Vector Resourcing Ltd,11664K
Gloucester City Council,,Business Transformation & Tech,RT700,Basic Pay - Temporary Staff,2751,REDACTED,14/05/2013 00:00,363587,5448.5,NET,Vector Resourcing Ltd,11664K
Gloucester City Council,,Business Transformation & Tech,RT700,Basic Pay - Temporary Staff,2751,REDACTED,14/05/2013 00:00,363586,4043,NET,Vector Resourcing Ltd,11664K
Gloucester City Council,,Utilities,PT502,Electricity Supply,3110,UTILITIES TO JUNE 2013,17/07/2013 00:00,367472,32303.49,NET,West Mercia Energy,11669Z
Gloucester City Council,,Homelessness Prevention,CH122,Fees For Services Received,5350,REDACTED,13/08/2013 00:00,369006,500,NET,Carib Developments Ltd,12909T
Gloucester City Council,,Summer Festival,LT300,Hire Of Equipment,5020,Balloon Gas,16/08/2013 00:00,368803,716.48,NET,Boc Ltd,59172L
Gloucester City Council,,Cctv Revenue Budget,FP501,Security Equipment Serv/Repair,3038,CAMERA SITES,15/04/2013 00:00,362009,1118.26,NET,Npower Ltd,02663W
Gloucester City Council,,Planning Policy,PT300,Basic Pay - Temporary Staff,2751,REDACTED,29/07/2013 00:00,368111,1467.11,NET,Randstad Cpe Ltd,13987L
Gloucester City Council,,Homelessness,CH120,Rent In Advance,5516,REDACTED,30/05/2013 00:00,364621,733.84,NET,Countrywide Lettings,13978M
Gloucester City Council,,75/81 Eastgate Street,RB501,Buildings Insurance,3800,75-81 Eastgate St insurance 2013/14,29/04/2013 00:00,362519,2175.83,NET,Knight Frank Llp,59489B
Gloucester City Council,,Financial Services,RT200,Training Course Fees,5367,REDACTED,18/07/2013 00:00,367508,1019,NET,Lavat Consulting Ltd,02836N
Gloucester City Council,,Registration Of Electors,RS400,Printing,5300,may13 postal vote packs,13/05/2013 00:00,362989,5155,NET,Alpha Response Print & Mail Ltd,03029U
Gloucester City Council,,Registration Of Electors,RS400,Printing,5300,May 2013 poll cards,09/04/2013 00:00,361419,2501,NET,Alpha Response Print & Mail Ltd,03029U
Gloucester City Council,,Crematorium,HC200,Fees For Services Received,5350,#EMPTY,04/07/2013 00:00,13804,817.52,NET,Dr D Martin,00890P
Gloucester City Council,,Crematorium,HC200,Fees For Services Received,5350,#EMPTY,06/06/2013 00:00,13723,1272.96,NET,Dr D Martin,00890P
Gloucester City Council,,Improvement Grants,CY013,Disabled Facility Grants,74,REDACTED,08/05/2013 00:00,361993,1984,CAP,Tpg Disableaids,51324R
Gloucester City Council,,Improvement Grants,CY013,Disabled Facility Grants,74,GRANT REF MDF4976,24/04/2013 00:00,362580,811,CAP,Tpg Disableaids,51324R
Gloucester City Council,,Homelessness Prevention,CH122,Fees For Services Received,5350,REDACTED,21/05/2013 00:00,364142,550,NET,2 Let Ltd,08804U
Gloucester City Council,,Play Area Refurbishment,LY071,Contract Payments,20,play area works,03/05/2013 00:00,363103,19672.87,CAP,Landscape To Play Ltd,09116P
Gloucester City Council,,Asset Management,RS300,Basic Pay -Admin /Prof Staff,2601,MARCH 2013 PROFESSIONAL SERVICES,04/04/2013 00:00,361441,5775,NET,Ardley Associates,09369F
REDACTED,,REDACTED,REDACTED,REDACTED,REDACTED,REDACTED,REDACTED,REDACTED,625,REDACTED,REDACTED,09925V
Gloucester City Council,,Civica Contract Revs & Bens,RT250,Contracted Services,6970,Sep-13,16/08/2013 00:00,368403,136180.09,NET,Civica Uk Ltd,10841X
Gloucester City Council,,Legal Services,RS200,Basic Pay - Temporary Staff,2751,REDACTED,10/09/2013 00:00,370449,522.36,NET,Sellick Partnership Group Ltd,11057C
Gloucester City Council,,Legal Services,RS200,Basic Pay - Temporary Staff,2751,REDACTED,02/07/2013 00:00,366432,630.18,NET,Sellick Partnership Group Ltd,11057C
Gloucester City Council,,Legal Services,RS200,Basic Pay - Temporary Staff,2751,REDACTED,22/04/2013 00:00,362403,1560.19,NET,Sellick Partnership Group Ltd,11057C
Gloucester City Council,,Civic Admin And Hospitality,RC210,Events,5952,2012-13 civic charity donation remainder,08/08/2013 00:00,368735,558,NET,Carers Gloucestershire,13335P
Gloucester City Council,,General Works Fund,RY203,Capital Fire Alarms,25,Dorgard - black,09/05/2013 00:00,362904,1283,CAP,Fireco Ltd,13827L
Gloucester City Council,,Homelessness Prevention,CH122,Fees For Services Received,5350,REDACTED,09/05/2013 00:00,363427,600,NET,REDACTED,09706K
Gloucester City Council,,Financial Services,RT200,Consultants Fees,5349,Jun13 Bespoke Consultancy,15/07/2013 00:00,365983,4310.6,NET,Cipfa Business Limited,09260F
Gloucester City Council,,Asbru - Other Funders,FP846,Other Minor Supplies Services,5590,Bike D Locks & seat covers,16/05/2013 00:00,363800,739,NET,J N E Marketing,50340C
Gloucester City Council,,Retail Market - Landlord,HM300,Service Charges,3020,EASTGATE MARKET HALL S/C JUN-SEPT13,20/06/2013 00:00,365509,12225.75,NET,Workman Llp Service Charge Account,11022K
Gloucester City Council,,Members Support,RC300,Subscriptions,5600,ICO registration of 36 Councillors,16/05/2013 00:00,363845,1260,NET,Information Commissioner,58085S
Gloucester City Council,,Improvement Grants,CY013,Disabled Facility Grants,74,REDACTED,06/08/2013 00:00,368537,1645,CAP,Access Automation Ltd,03543Y
Gloucester City Council,,Gf Lifelinks,CH180,Fees For Services Received,5350,July 2013 management fees,04/07/2013 00:00,366558,5270.83,NET,Gloucester City Homes,05244T
Gloucester City Council,,Solace Project,FP843,Other Minor Supplies Services,5590,Jun13 ASB salary,08/07/2013 00:00,366311,3250,NET,Gloucester City Homes,05244T
Gloucester City Council,,Solace Project,FP843,Other Minor Supplies Services,5590,ASB salary recharge Apr-May13,21/05/2013 00:00,364133,6500,NET,Gloucester City Homes,05244T
Gloucester City Council,,Gf Amra/ Interest Payable,VR100,Int On Other Temp. Borrowing,7811,INTERCOMPANY LOAN INTEREST,04/04/2013 00:00,361484,23670.72,NET,Gloucester City Homes,05244T
Gloucester City Council,,Guildhall Events,LA200,Fees For Services Received,5350,#EMPTY,02/08/2013 00:00,13883,550,NET,REDACTED,00852P
Gloucester City Council,,Grants To Voluntary Sector,FG100,Funding Vol&Com Grps-Grants,7100C,community grant 2013-14,17/06/2013 00:00,365423,2500,NET,Glos Hindu Elders Group,06159Z
REDACTED,,REDACTED,REDACTED,REDACTED,REDACTED,REDACTED,REDACTED,REDACTED,580,REDACTED,REDACTED,58946D
REDACTED,,REDACTED,REDACTED,REDACTED,REDACTED,REDACTED,REDACTED,REDACTED,555,REDACTED,REDACTED,58946D
Gloucester City Council,,Senior Management Restructurin,RO200,Fees For Services Received,5350,February 13 consultancy services,19/04/2013 00:00,362416,6320.64,NET,Alexander Beaver Associates,06515Z
Gloucester City Council,,Tic Trading,LT110,Trade Refuse Sacks,5040,boxes of trade sacks,23/08/2013 00:00,369568,739.52,NET,Enterprise (Aol) Ltd,06695G
Gloucester City Council,,Tic Trading,LT110,Trade Refuse Sacks,5040,trade waste sacks & labels,13/06/2013 00:00,365449,1974.9,NET,Enterprise (Aol) Ltd,06695G
Gloucester City Council,,Nms Contract,HI102,General Repair/Maint Buildings,3000,walk behind April12,08/05/2013 00:00,363133,563.33,NET,Enterprise (Aol) Ltd,06695G
Gloucester City Council,,Westgate Car Park Planting,LY148,Contract Payments,20,WESTGATE CAR PARK,05/04/2013 00:00,361352,7023,CAP,Enterprise (Aol) Ltd,06695G
Gloucester City Council,,Aspire Capital Charges,LC106,Fees For Services Received,5350,CCl management pakage GL1,30/04/2013 00:00,362701,750,NET,Ccl Consulting Ltd,06750L
Gloucester City Council,,Crematorium,HC200,Repair/Maint Of Fixed Plant,3006,POWER AMP,11/04/2013 00:00,361873,1568.37,NET,Revolution Multimedia,07880L
Gloucester City Council,,Homelessness,CH120,Board And Lodging,5515,REDACTED,22/08/2013 00:00,369537,1196.61,NET,Kalmwood Ltd,08568G
Gloucester City Council,,Grants To Voluntary Sector,FG100,Funding Vol&Com Grps-Grants,7100C,Community Grant 2013-14,08/05/2013 00:00,363074,500,NET,Apna Ghar Court Residents Associtaion,08790D
Gloucester City Council,,Nms Contract,HI102,General Repair/Maint Buildings,3000,Wheelie bin labels,21/08/2013 00:00,369361,763,NET,Eurolabel,10252Z
Gloucester City Council,,Statutory Testing,RS310,Legionella,3018,Legionella works,29/08/2013 00:00,365297,4850,NET,Hydro-X Water Treatment Ltd,11765C
Gloucester City Council,,Asset Management,RS300,Basic Pay - Temporary Staff,2751,REDACTED,15/08/2013 00:00,368438,1235.26,NET,Hays Specialist Recruitment Ltd,55516P
Gloucester City Council,,Projects & Maintenance,PT500,Basic Pay -Admin /Prof Staff,2601,REDACTED,08/07/2013 00:00,366667,1075.13,NET,Hays Specialist Recruitment Ltd,55516P
Gloucester City Council,,Projects & Maintenance,PT500,Basic Pay -Admin /Prof Staff,2601,REDACTED,18/06/2013 00:00,364642,1212.38,NET,Hays Specialist Recruitment Ltd,55516P
Gloucester City Council,,Asset Management,RS300,Basic Pay -Admin /Prof Staff,2601,REDACTED,15/04/2013 00:00,361760,1105.64,NET,Hays Specialist Recruitment Ltd,55516P
Gloucester City Council,,Homelessness,CH120,Board And Lodging,5515,#EMPTY,03/05/2013 00:00,363138,982.57,NET,Carbrey Housing Ltd,11098G
Gloucester City Council,,Docks Complex - Telephones,RB120,Mobile Phones,5409,CALLS JULY 2013,07/08/2013 00:00,368633,1854.18,NET,Everything Everywhere Ltd (T-Mobile),57543S
Gloucester City Council,,Docks Complex - Telephones,RB120,Mobile Phones,5409,CALLS MAR 2013,10/04/2013 00:00,361682,1919.37,NET,Everything Everywhere Ltd (T-Mobile),57543S
Gloucester City Council,,Youth Grant 2011/12,FP107,Funding Vol&Com Grps-Grants,7100C,YOUTH GRANT 2013-14,18/07/2013 00:00,367473,2450,NET,Gloucester Blazers Wheelchair Basketball Club,53341W
Gloucester City Council,,Contact Centre,RB300,Basic Pay -Admin /Prof Staff,2601,REDACTED,09/09/2013 00:00,370340,770.5,NET,Cps Anystaff Recruitment Ltd,13945D
Gloucester City Council,,Contact Centre,RB300,Basic Pay -Admin /Prof Staff,2601,REDACTED,09/07/2013 00:00,366497,629,NET,Cps Anystaff Recruitment Ltd,13945D
Gloucester City Council,,Client Revs & Bens Contract,RT240,Computer Software <5000,5425,InCase Benefits licence 2013/14,25/04/2013 00:00,362684,2000,NET,Intec For Business Ltd,52896B
Gloucester City Council,,Printing,RP103,Fees For Services Received,5350,PRINTING JULY 2013,20/08/2013 00:00,368448,2221.31,NET,Alpha Colour Printers Ltd,00945B
Gloucester City Council,,Client Revs & Bens Contract,RT240,Court Fees,5358,LEGAL SERVICES - SAVAGE,10/04/2013 00:00,356775,920,NET,Cotswold District Council,49331J
Gloucester City Council,,Armscroft Park Flood Mit S106,LY153,Contract Payments,20,WILDLIFE BOXES,24/06/2013 00:00,363689,679.49,CAP,Nhbs Ltd,57405F
Gloucester City Council,,Development Management,PT200,Application Fees,9312,RETURNED PLANNING APPLICATION,10/09/2013 00:00,370372,1675,NET,Mjs Catering Equipment,57425Z
Gloucester City Council,,Guildhall Events,LA200,Advertising And Publicity,5702,Guildhall September 2013 whats on guide,04/09/2013 00:00,369307,1050,NET,Color Co,57707K
Gloucester City Council,,Guildhall Events,LA200,Advertising And Publicity,5702,Guildhall May13 what's on guide,10/05/2013 00:00,362145,1050,NET,Color Co,57707K
Gloucester City Council,,Nms Contract,HI102,General Repair/Maint Buildings,3000,recycling boxes,27/06/2013 00:00,365639,954,NET,Stroud District Council,42500D
Gloucester City Council,,Nms Contract,HI102,General Repair/Maint Buildings,3000,CLINICAL SHARPS 2012/13,21/05/2013 00:00,361468,9000,NET,Stroud District Council,42500D
Gloucester City Council,,Economic Development,FP300,Other Minor Supplies Services,5590,advertising package - 1st installment,24/05/2013 00:00,364352,1250,NET,Gloucester Rugby Football Club,49396D
Gloucester City Council,,Grants To Voluntary Sector,FG100,Funding Vol&Com Grps-Grants,7100C,community grant 2013-14,18/07/2013 00:00,367545,9389,NET,Fair Shares,07250D
Gloucester City Council,,Investment Property,RB500,Consultants Fees,5349,REDACTED,19/06/2013 00:00,365720,2071.6,NET,Resources Consultancy Limited,10508L
Gloucester City Council,,Financial Services,RT200,Consultants Fees,5349,STAFF APR 2013,13/05/2013 00:00,363531,22175.1,NET,Resources Consultancy Limited,10508L
Gloucester City Council,,Financial Services,RT200,Consultants Fees,5349,Created by invoice listener,30/04/2013 00:00,362903,7646.85,NET,Resources Consultancy Limited,10508L
Gloucester City Council,,North Warehouse Bt&T Work 2013,RY574,Contract Payments,20,Equipment for North Warehouse,13/05/2013 00:00,358530,43891,CAP,Computerworld,11069J
Gloucester City Council,,Human Resources,EH100,Vocational Training,2970,Conflict resolution course,25/07/2013 00:00,367886,512,NET,Cuff Security Services Ltd,12073G
Gloucester City Council,,The Fleece,RB530,General Repair/Maint Buildings,3000,FLEECE HOTEL,22/05/2013 00:00,364201,28090.93,NET,Wring Group Ltd,12336X
Gloucester City Council,,Homelessness Prevention,CH122,Basic Pay - Temporary Staff,2751,REDACTED,28/06/2013 00:00,366287,747.38,NET,James Andrews Recruitment Solutions,13636W
Gloucester City Council,,Homelessness Prevention,CH122,Basic Pay - Temporary Staff,2751,REDACTED,08/04/2013 00:00,361528,717.76,NET,James Andrews Recruitment Solutions,13636W
Gloucester City Council,,Youth Grant 2011/12,FP107,Funding Vol&Com Grps-Grants,7100C,YOUTH GRANT 2013-14,22/07/2013 00:00,367634,2500,NET,Gloucester Athletics Track Management,14131Z
Gloucester City Council,,Client Revs & Bens Contract,RT240,Consultants Fees,5349,#EMPTY,15/05/2013 00:00,13663,2000,NET,REDACTED,01533P
Gloucester City Council,,Client Revs & Bens Contract,RT240,Consultants Fees,5349,#EMPTY,05/06/2013 00:00,13665,2000,NET,REDACTED,01533P
Gloucester City Council,,Client Revs & Bens Contract,RT240,Consultants Fees,5349,#EMPTY,12/06/2013 00:00,13666,2000,NET,REDACTED,01533P
Gloucester City Council,,Safer Stronger Communities,FP841,Other Minor Supplies Services,5590,Healthy Relationships course July13,21/05/2013 00:00,364134,500,NET,Freedom Kids,13982X
Gloucester City Council,,Glos Airport - Asset Review,RY215,Consultants Fees,30,GLOS AIRPORT,01/08/2013 00:00,368291,12594,CAP,York Aviation Llp,14035W
Gloucester City Council,,Civic Admin And Hospitality,RC210,Events,5952,CIVIC CHARITY DONATION 2012-13,08/05/2013 00:00,363321,5000,NET,The Family Haven,20980M
Gloucester City Council,,Blackfriars Catering,LA220,Catering Provisions -Liquor,5111,Blackfriars drinks,19/08/2013 00:00,369360,587.31,NET,Cellar Supplies Cheltenham Ltd,01563L
Gloucester City Council,,Guildhall Bar And Caf�,LA210,Catering Provisions -Liquor,5111,GUILDHALL DRINKS,09/05/2013 00:00,363409,776.93,NET,Cellar Supplies Cheltenham Ltd,01563L
Gloucester City Council,,Cemeteries,HC300,Water Supply,3400,ACCT 3850363587,11/07/2013 00:00,367047,1334.75,NET,Severn Trent Water,01823H
Gloucester City Council,,Gloucester Guildhall,LA100,Water Supply,3400,WATER CHARGES,09/05/2013 00:00,363465,600,NET,Severn Trent Water,01823H
Gloucester City Council,,Investment Property,RB500,Repair/Maint Of Fixed Plant,3006,quarterly service,17/07/2013 00:00,367379,2052.57,NET,Hewer Facilities Mgt Ltd,05232A
Gloucester City Council,,Cedar Upgrade 2011/12,RY250,Contract Payments,20,REDACTED,03/09/2013 00:00,370086,850,CAP,Advanced Business Solutions,06072N
Gloucester City Council,,Business Transformation & Tech,RT700,Computer Software Maintenance,5427,EProcurement annual maintenance 13/14,02/08/2013 00:00,367963,1061.92,NET,Advanced Business Solutions,06072N
Gloucester City Council,,Summer Festival,LT300,Advertising And Publicity,5702,t shirts,24/07/2013 00:00,367895,520.83,NET,Awesome Merchandise Ltd,07076V
Gloucester City Council,,Aspire Admin Charges,LC105,Fees For Services Received,5350,May13 staff payroll deductions,17/06/2013 00:00,365613,689,NET,Aspire Sports & Cultural Trust,08135V
Gloucester City Council,,Homelessness Prevention,CH122,Fees For Services Received,5350,REDACTED,10/07/2013 00:00,367003,550,NET,REDACTED,45830RV
Gloucester City Council,,Homelessness,CH120,Rent In Advance,5516,REDACTED,09/05/2013 00:00,363428,576.92,NET,The Property Centre,09230R
Gloucester City Council,,Photocopying,RS130,Photocopying,5320,copy charges Mar-May13,30/04/2013 00:00,362137,33967.8,NET,Danwood Group Limited,09555G
Gloucester City Council,,Nms Contract,HI102,General Repair/Maint Buildings,3000,CONTAINERS,11/09/2013 00:00,370379,4940,NET,Uk Container Maintenance Ltd,11122E
Gloucester City Council,,Homelessness Prevention,CH122,Fees For Services Received,5350,REDACTED,09/04/2013 00:00,361787,625,NET,REDACTED,12781V
Gloucester City Council,,Hillfield Gardens Sensory Gard,LY146,Contract Payments,20,HILLFIELD GDNS,24/07/2013 00:00,367859,1425,CAP,Peter Quinn Associates,12891L
Gloucester City Council,,Business Transformation & Tech,RT700,Basic Pay - Temporary Staff,2751,REDACTED,24/07/2013 00:00,367770,1125,NET,Ffox Software Ltd,10665T
Gloucester City Council,,Business Transformation & Tech,RT700,Basic Pay - Temporary Staff,2751,REDACTED,04/06/2013 00:00,364728,1020,NET,Ffox Software Ltd,10665T
Gloucester City Council,,Business Transformation & Tech,RT700,Basic Pay - Temporary Staff,2751,REDACTED,22/04/2013 00:00,362158,1125,NET,Ffox Software Ltd,10665T
Gloucester City Council,,Cemeteries,HC300,Other Minor Supplies Services,5590,PAVING,31/07/2013 00:00,368245,889,NET,Buildbase Ltd*,03692D
Gloucester City Council,,Legal Services,RS200,Other Minor Income,9900,#EMPTY,23/07/2013 00:00,367863,1950,NET,Hmrc Shipley,10055H
REDACTED,,REDACTED,REDACTED,REDACTED,REDACTED,REDACTED,REDACTED,REDACTED,1496.41,REDACTED,REDACTED,14162M
Gloucester City Council,,Crematorium,HC200,Repair/Maint Of Fixed Plant,3006,Crem 9 monthly service visit,12/09/2013 00:00,370557,1102.5,NET,Facultatieve Technologies Ltd,51210H
Gloucester City Council,,Cemeteries,HC300,Trade Refuse Tipping Fees,6297,skip exchange,11/09/2013 00:00,370547,560,NET,Allstone Sand & Gravel Aggregates Ltd,00940M
Gloucester City Council,,Asbru - Other Funders,FP846,Other Minor Supplies Services,5590,REDACTED,04/09/2013 00:00,370126,534.65,NET,Travail Employment Ltd,49371W
Gloucester City Council,,Asbru - Other Funders,FP846,Other Minor Supplies Services,5590,REDACTED,22/08/2013 00:00,369452,516.59,NET,Travail Employment Ltd,49371W
Gloucester City Council,,Asbru - Other Funders,FP846,Other Minor Supplies Services,5590,REDACTED,08/07/2013 00:00,366033,520.2,NET,Travail Employment Ltd,49371W
Gloucester City Council,,Civica Admin Charges,RT105,Postages,5400,ACCT 0870585007 REVENUES,29/08/2013 00:00,368017,2008.71,NET,Royal Mail S.Wales & South West,35830S
Gloucester City Council,,Civica Admin Charges,RT105,Postages,5400,ACCT 0870585007 REVENUES,31/07/2013 00:00,367225,1764.88,NET,Royal Mail S.Wales & South West,35830S
Gloucester City Council,,Postal Services,RS120,Postages,5400,ACCT 0252446000 W/E 23/05/13,04/06/2013 00:00,364631,1731.72,NET,Royal Mail S.Wales & South West,35830S
Gloucester City Council,,Registration Of Electors,RS400,Postages,5400,ACCT 0870585036 W/E 27/04/13,16/05/2013 00:00,363600,3216.76,NET,Royal Mail S.Wales & South West,35830S
Gloucester City Council,,Registration Of Electors,RS400,Postages,5400,ACCT 0870585036 W/E 04/05/13,24/05/2013 00:00,363887,1185.36,NET,Royal Mail S.Wales & South West,35830S
Gloucester City Council,,Civica Admin Charges,RT105,Postages,5400,ACCT 0870585007 REVENUES,20/05/2013 00:00,362010,1339.62,NET,Royal Mail S.Wales & South West,35830S
Gloucester City Council,,Shopmobility,PE200,Maintenance Of Equipment,5030,Shopmobility services June13,05/07/2013 00:00,366500,612.09,NET,Disabled Care & Mobility,12675V
Gloucester City Council,,Allotments,HI104,Fees For Services Received,5350,Estcourt Close allotments work,03/09/2013 00:00,369799,1498.75,NET,Ken Pink Plant Hire Ltd,56884V
Gloucester City Council,,Homelessness Prevention,CH122,Fees For Services Received,5350,#EMPTY,30/07/2013 00:00,13872,550,NET,REDACTED,00108P
Gloucester City Council,,Building Control,PT400,Basic Pay - Temporary Staff,2751,REDACTED,19/07/2013 00:00,367477,4825,NET,Cheltenham Borough Council,04176B
Gloucester City Council,,Homelessness Prevention,CH122,Fees For Services Received,5350,REDACTED,19/07/2013 00:00,367654,550,NET,REDACTED,36054RV
Gloucester City Council,,Chief Executive,RE100,Fees For Services Received,5350,COACHING 24/05/13,24/06/2013 00:00,366029,801.4,NET,Q Learning,07236A
Gloucester City Council,,Homelessness,CH120,Board And Lodging,5515,VARIOUS TENANTS,24/07/2013 00:00,367902,2400.24,NET,James Legge Property (Ltd),07844R
Gloucester City Council,,Homelessness,CH120,Board And Lodging,5515,VARIOUS TENANTS,30/05/2013 00:00,364516,2387.99,NET,James Legge Property (Ltd),07844R
Gloucester City Council,,Homelessness,CH120,Board And Lodging,5515,#EMPTY,03/05/2013 00:00,363144,3612.78,NET,James Legge Property (Ltd),07844R
Gloucester City Council,,Homelessness,CH120,Board And Lodging,5515,VARIOUS TENANTS,05/04/2013 00:00,361534,2182.75,NET,James Legge Property (Ltd),07844R
Gloucester City Council,,Business Transformation & Tech,RT700,Computer Software Maintenance,5427,REVS & BENS USERS,10/04/2013 00:00,358314,2500,NET,Northgate Information Solutions Uk Ltd,08982S
Gloucester City Council,,Business Transformation & Tech,RT700,Computer Software Maintenance,5427,SOFTWARE SUPPORT,30/04/2013 00:00,362595,1231.07,NET,Northgate Information Solutions Uk Ltd,08982S
Gloucester City Council,,Business Transformation & Tech,RT700,Computer Network Maintenance,5443,MAINT 04/13-03/14,12/04/2013 00:00,361862,23067.31,NET,Indigo Telecom Group Ltd,09159V
Gloucester City Council,,Homelessness Prevention,CH122,Fees For Services Received,5350,REDACTED,05/04/2013 00:00,361583,500,NET,2 Let Glos Ltd,74622M
Gloucester City Council,,Off Street Car Parks,PP110,General Repair/Maint Buildings,3000,Kings Walk car park door replacement,06/09/2013 00:00,370095,1383.75,NET,Rf Gardiner Limited,12299B
Gloucester City Council,,Electrical Investigatory Works,RY142,Cap Repair/Maint Fixed Plant,14,KIMBERLEY WAREHOUSE ELECTRICAL WORKS,26/07/2013 00:00,366798,947.82,CAP,Rf Gardiner Limited,12299B
Gloucester City Council,,Electrical Investigatory Works,RY142,Cap Repair/Maint Fixed Plant,14,HERBERT W/H ELECTRICAL WORKS,26/07/2013 00:00,366797,910.94,CAP,Rf Gardiner Limited,12299B
Gloucester City Council,,Gloucester Guildhall,LA100,Security Services Fees,5351,SECURITY JUNE 2013,08/07/2013 00:00,366822,1814.38,NET,Nsgl Ltd,12539E
Gloucester City Council,,Homelessness Prevention,CH122,Fees For Services Received,5350,REDACTED,05/06/2013 00:00,364925,600,NET,REDACTED,11052M
Gloucester City Council,,The Fleece,RB530,General Repair/Maint Buildings,3000,PURE HAIRDRESSERS WORKS,05/06/2013 00:00,364941,3640,NET,Beard & Tandy,03160V
REDACTED,,REDACTED,REDACTED,REDACTED,REDACTED,REDACTED,REDACTED,REDACTED,1665.71,REDACTED,REDACTED,13493U
Gloucester City Council,,Economic Development,FP300,Business Grant,7116,GRANT,01/08/2013 00:00,368302,1500,NET,REDACTED,13855F
Gloucester City Council,,Grants To Voluntary Sector,FG100,Funding Vol&Com Grps-Grants,7100C,community grant 2013-14,08/05/2013 00:00,363076,2035,NET,Garas,57701Y
Gloucester City Council,,Ranger Centre/Netheridge Wks,RY167,Contract Payments,20,RANGERS CENTRE,05/09/2013 00:00,370043,29706.12,CAP,Snape Construction Ltd,40958T
Gloucester City Council,,Off Street Car Parks,PP110,Buildings Insurance,3800,"CAR PARK, EASTGATE SHOPPING CTR",26/07/2013 00:00,366658,706.05,NET,Workman Llp Insurance Account,11024F
Gloucester City Council,,Crematorium,HC200,General Repair/Maint Buildings,3000,AIR FRESHENER,11/04/2013 00:00,361863,1350,NET,Pyramid Hygiene Ltd,01897B
Gloucester City Council,,Grants To Voluntary Sector,FG100,Funding Vol&Com Grps-Grants,7100C,community grant 2013-14 - 1 of 4,31/05/2013 00:00,364474,9000,NET,Gavca,06129J
Gloucester City Council,,Grants To Voluntary Sector,FG100,Grants To Voluntary Orgs-Rents,7100,community grant 2013-14 - 1 of 4,31/05/2013 00:00,364474,1000,NET,Gavca,06129J
Gloucester City Council,,Gis Development Work,RY555,Contract Payments,20,REDACTED,12/08/2013 00:00,368911,1250,CAP,Badenoch & Clark,01536P
Gloucester City Council,,Crematorium,HC200,Memorial Plaques,5053,PLAQUES,05/08/2013 00:00,368497,648,NET,Arkell & Hurcombe,59812T
Gloucester City Council,,Homelessness,CH120,Fees For Services Received,5350,emergency duty service Apr-Nov13,02/08/2013 00:00,367765,733,NET,Gloucestershire County Council,18650D
Gloucester City Council,,Civil Parking Enforcement,PT741,On Street Parking Charges,6550,Parking income March 13,08/05/2013 00:00,363089,62049.96,NET,Gloucestershire County Council,18650D
Gloucester City Council,,Director Resources,MR102,Fees For Services Received,5350,REDACTED,13/08/2013 00:00,368941,7440.55,NET,Wragge & Co Llp,06590J
Gloucester City Council,,Director Resources,MR102,Fees For Services Received,5350,REDACTED,15/04/2013 00:00,361971,1260,NET,Wragge & Co Llp,06590J
Gloucester City Council,,Utilities,PT502,Gas Supply,3100,Depot gas Apr/May13,12/07/2013 00:00,364227,967.68,NET,Corona Energy,09034T
Gloucester City Council,,Docks Complex - Telephones,RB120,Lease Lines,5411,Call charges to 31/5,18/06/2013 00:00,365716,3948.11,NET,Gamma Business Communications,10260A
Gloucester City Council,,Docks Complex - Telephones,RB120,Lease Lines,5411,call charges to 30/4/13,18/06/2013 00:00,365717,3948.11,NET,Gamma Business Communications,10260A
Gloucester City Council,,Docks Complex - Telephones,RB120,Telephones And Fax,5410,Call charges April 2013,22/05/2013 00:00,364193,2386.14,NET,Gamma Business Communications,10260A
Gloucester City Council,,Docks Complex - Telephones,RB120,Lease Lines,5411,Feb13 call charges,08/04/2013 00:00,361643,3948.11,NET,Gamma Business Communications,10260A
Gloucester City Council,,Docks Complex - Telephones,RB120,Lease Lines,5411,Call charges to 31/3/13,18/04/2013 00:00,362244,3948.11,NET,Gamma Business Communications,10260A
Gloucester City Council,,Contrib To Housing Pooled Recs,ZR205,Contrib To Housing Pooled Recs,7490,q4 capital receipts pooling 2012/13,26/04/2013 00:00,362786,58010.23,NET,Clg,11059A
REDACTED,,REDACTED,REDACTED,REDACTED,REDACTED,REDACTED,REDACTED,REDACTED,1054.58,REDACTED,REDACTED,01348P
REDACTED,,REDACTED,REDACTED,REDACTED,REDACTED,REDACTED,REDACTED,REDACTED,855,REDACTED,REDACTED,01348P
Gloucester City Council,,Director Resources,MR102,Vehicle Insurances,4300,REDACTED,17/05/2013 00:00,360495,4231.8,NET,Malvern Hills District Council,57298F
Gloucester City Council,,Homelessness Prevention,CH122,Fees For Services Received,5350,REDACTED,31/05/2013 00:00,364615,500,NET,REDACTED,13902Y
Gloucester City Council,,Youth Grant 2011/12,FP107,Funding Vol&Com Grps-Grants,7100C,YOUTH GRANT 2013-14,22/07/2013 00:00,367637,2500,NET,Dv8 Youth Club,14126S
Gloucester City Council,,Neighbourhood Partnerships,FP104,Fees For Services Received,5350,Grant 2013-14,21/05/2013 00:00,364125,2000,NET,Barton & Tredworth Neighbourhood Partnership,09679L
Gloucester City Council,,Nms Contract,HI102,General Repair/Maint Buildings,3000,April electrical item collection,16/05/2013 00:00,363801,550,NET,Furniture Recycling Project,51707U
Gloucester City Council,,Nms Contract,HI102,General Repair/Maint Buildings,3000,Electrical items collection March 13,30/04/2013 00:00,362691,550,NET,Furniture Recycling Project,51707U
Gloucester City Council,,Legal Services,RS200,Basic Pay -Admin /Prof Staff,2601,REDACTED,02/09/2013 00:00,369987,1124.2,NET,Venn Group Ltd,04339P
Gloucester City Council,,Legal Services,RS200,Basic Pay - Temporary Staff,2751,REDACTED,19/06/2013 00:00,365559,656.1,NET,Venn Group Ltd,04339P
Gloucester City Council,,Legal Services,RS200,Basic Pay - Temporary Staff,2751,REDACTED,09/05/2013 00:00,363154,1210.8,NET,Venn Group Ltd,04339P
Gloucester City Council,,Legal Services,RS200,Basic Pay - Temporary Staff,2751,REDACTED,16/04/2013 00:00,362006,707.7,NET,Venn Group Ltd,04339P
Gloucester City Council,,Summer Festival,LT300,Hire Of Equipment,5020,event toilet hire,26/07/2013 00:00,368020,990,NET,B & W Hire Ltd,55477Y
Gloucester City Council,,Business Transformation & Tech,RT700,Computer Hardware <5000,5420,MONITOR,10/06/2013 00:00,365146,855,NET,Qual Technology,56512N
Gloucester City Council,,Homelessness Prevention,CH122,Fees For Services Received,5350,REDACTED,22/08/2013 00:00,369569,550,NET,Ack Residential Lettings,73749V
REDACTED,,REDACTED,REDACTED,REDACTED,REDACTED,REDACTED,REDACTED,REDACTED,600,REDACTED,REDACTED,03156K
Gloucester City Council,,Play Area Refurbishment,LY071,Contract Payments,20,PLAYGROUND EQUIPMENT,12/04/2013 00:00,361905,682.5,CAP,Kompan Ltd,03575J
Gloucester City Council,,Business Support,PT250,Basic Pay - Temporary Staff,2751,STAFF W/E 16/08/13,28/08/2013 00:00,369453,867.1,NET,One To One Recruitment,04752H
Gloucester City Council,,Business Support,PT250,Basic Pay - Temporary Staff,2751,STAFF W/E 05/07/13,15/07/2013 00:00,367226,1373.35,NET,One To One Recruitment,04752H
Gloucester City Council,,Business Support,PT250,Basic Pay - Temporary Staff,2751,STAFF W/E 21/04/13,21/05/2013 00:00,362592,886.8,NET,One To One Recruitment,04752H
Gloucester City Council,,Flooding And Drainage,HE306,Maint Of Grounds - General,3030,GREEN LANE,30/08/2013 00:00,369737,3511,NET,Three Counties Drain Service,44033V
Gloucester City Council,,Flooding And Drainage,HE306,Maint Of Grounds - General,3030,BALANCING PONDS,17/04/2013 00:00,362088,2082.4,NET,Three Counties Drain Service,44033V
Gloucester City Council,,Corporate Reporting /Financing,RC504,Audit Fees,5383,additional audit costs,11/07/2013 00:00,362680,30000,NET,Kpmg,06498X
Gloucester City Council,,Corporate Reporting /Financing,RC504,Audit Fees,5383,AUDIT OF HRA FINAL SUBSIDY GRANT,04/04/2013 00:00,361462,6656,NET,Kpmg,06498X
Gloucester City Council,,Corporate Reporting /Financing,RC504,Audit Fees,5383,3rd installment 2012/13 audit,12/04/2013 00:00,361423,20925,NET,Kpmg,06498X
Gloucester City Council,,Hempsted Market/Car Boot,HM234,Maint Of Grounds - General,3030,topping at hempsted meadow,12/09/2013 00:00,13995,646.8,NET,REDACTED,00937P
Gloucester City Council,,Severn Centre,RT106,Lease Lines,5411,ACCT 915265,01/05/2013 00:00,361746,8500,NET,Virgin Media Business,01869B
Gloucester City Council,,Business Transformation & Tech,RT700,Computer Software Maintenance,5427,Crem Leisureflex support 2013/14,18/06/2013 00:00,365612,1018.61,NET,Clarity Retail Systems,10290R
Gloucester City Council,,Business Transformation & Tech,RT700,Conference/Meeting Expenses,5510,Building Perfect Council Websites 2013,06/06/2013 00:00,365054,585,NET,Headstar Ltd,11058A
REDACTED,,REDACTED,REDACTED,REDACTED,REDACTED,REDACTED,REDACTED,REDACTED,773.5,REDACTED,REDACTED,00726P
Gloucester City Council,,The Fleece,RB530,Consultants Fees,5349,FLEECE HOTEL,11/04/2013 00:00,360186,1375,NET,Oxford Archaeology South,12582D
Gloucester City Council,,Gl1 Emergency Works,RY160,Contract Payments,20,GL1 outlet blockage repairs,05/04/2013 00:00,360256,525,CAP,Fullflow Group Ltd,13285D
Gloucester City Council,,Cctv Revenue Budget,FP501,Security Equipment Serv/Repair,3038,CCTV AUG 2013,12/09/2013 00:00,370592,1726.67,NET,Quadrant Security Group Ltd,05109A
Gloucester City Council,,Crematorium,HC200,Equipment For Sale,5050,REDACTED,18/07/2013 00:00,367554,537.32,NET,Gloster Furniture Limited,04932X
Gloucester City Council,,Active Space At Abbeydale,LY149,Contract Payments,20,Abbeydale Community Centre sculptures,02/09/2013 00:00,369892,1200,CAP,D R Howse Services,13597E
Gloucester City Council,,Hillfield Gardens S106,LY112,Contract Payments,20,Hillfield Gardens work,25/07/2013 00:00,367962,1145,CAP,D R Howse Services,13597E
Gloucester City Council,,Armscroft Park Flood Mit S106,LY153,Contract Payments,20,Armscroft Park works,12/07/2013 00:00,367212,1075,CAP,Colin Richardson Contractors,13835S
Gloucester City Council,,Asset Management,RS300,Advertising And Publicity,5702,recruitment direct,18/07/2013 00:00,365642,1500,NET,Reed Business Information,37197A
Gloucester City Council,,Armscroft Park Flood Mit S106,LY153,Contract Payments,20,LITTER BINS,07/06/2013 00:00,364945,1035.8,CAP,Broxap Ltd,01141U
Gloucester City Council,,Financial Services,RT200,Consultants Fees,5349,REDACTED,14/08/2013 00:00,368645,2175,NET,Robert Half Ltd,03959K
Gloucester City Council,,Financial Services,RT200,Consultants Fees,5349,REDACTED,14/08/2013 00:00,368643,1712.5,NET,Robert Half Ltd,03959K
Gloucester City Council,,Financial Services,RT200,Basic Pay -Admin /Prof Staff,2601,REDACTED,09/08/2013 00:00,368827,706.5,NET,Robert Half Ltd,03959K
Gloucester City Council,,Financial Services,RT200,Consultants Fees,5349,REDACTED,20/06/2013 00:00,365769,1590,NET,Robert Half Ltd,03959K
Gloucester City Council,,Financial Services,RT200,Basic Pay -Admin /Prof Staff,2601,REDACTED,14/06/2013 00:00,363000,570.06,NET,Robert Half Ltd,03959K
Gloucester City Council,,Financial Services,RT200,Basic Pay -Admin /Prof Staff,2601,REDACTED,14/06/2013 00:00,363001,689.94,NET,Robert Half Ltd,03959K
Gloucester City Council,,Financial Services,RT200,Consultants Fees,5349,REDACTED,10/04/2013 00:00,361689,4770,NET,Robert Half Ltd,03959K
Gloucester City Council,,Contact Centre,RB300,Basic Pay -Admin /Prof Staff,2601,REDACTED,23/07/2013 00:00,367219,696,NET,Morgan Hunt Uk Ltd,04451S
Gloucester City Council,,Cctv Revenue Budget,FP501,Security Equipment Serv/Repair,3038,CCTV redcare JUL-SEP13,10/07/2013 00:00,366774,11462,NET,Bt Redcare,04692U
Gloucester City Council,,Housing Works In Default,HD500,Clearance And Cleansing Fees,5384,REDACTED,05/07/2013 00:00,366611,1349,NET,Rj Contracting (Environmental) Ltd,07429H
Gloucester City Council,,City Museum And Art Gallery,LM200,Advertising And Publicity,5702,CAMPAIGN,07/08/2013 00:00,368426,750,NET,Soglos,07953J
Gloucester City Council,,Homelessness Prevention,CH122,Fees For Services Received,5350,REDACTED,12/04/2013 00:00,361938,500,NET,Mrs C Gare,08631B
Gloucester City Council,,Business Transformation & Tech,RT700,Security Testing - Govt Connec,5446,external IT healthcheck,26/06/2013 00:00,366137,6300,NET,Randomstorm,09070N
Gloucester City Council,,Forest Of Dean Off Street,PT742,Contracted Services,6970,July13 variable services,12/08/2013 00:00,368679,2304,NET,Apcoa Parking (Uk) Ltd,09954M
Gloucester City Council,,St Oswalds Car Park 3,PJ140,Contracted Services,6970,May-13,10/06/2013 00:00,365153,3172.68,NET,Apcoa Parking (Uk) Ltd,09954M
Gloucester City Council,,Docks Complex - Castlemeads Cp,RB210,Contracted Services,6970,March 2013 variable services,09/04/2013 00:00,361632,3777,NET,Apcoa Parking (Uk) Ltd,09954M
Gloucester City Council,,Business Transformation & Tech,RT700,Basic Pay - Temporary Staff,2751,REDACTED,15/07/2013 00:00,367223,5032,NET,Vector Resourcing Ltd,11664K
Gloucester City Council,,Business Transformation & Tech,RT700,Basic Pay - Temporary Staff,2751,REDACTED,18/07/2013 00:00,367142,3848,NET,Vector Resourcing Ltd,11664K
Gloucester City Council,,Business Transformation & Tech,RT700,Basic Pay - Temporary Staff,2751,REDACTED,12/04/2013 00:00,361893,5643,NET,Vector Resourcing Ltd,11664K
Gloucester City Council,,Youth Grant 2011/12,FP107,Funding Vol&Com Grps-Grants,7100C,YOUTH GRANT 2013-14,22/07/2013 00:00,367630,3700,NET,Glo-Active,12365P
Gloucester City Council,,Youth Grant 2011/12,FP107,Funding Vol&Com Grps-Grants,7100C,YOUTH GRANT 2013-14,22/07/2013 00:00,367636,2500,NET,Gloucestershire Bike Project Cic,13266H
Gloucester City Council,,Contact Centre,RB300,Basic Pay -Admin /Prof Staff,2601,REDACTED,14/06/2013 00:00,365542,740,NET,Hbhc Synergy Ltd,13363J
Gloucester City Council,,Improvement Grants,CY013,Disabled Facility Grants,74,REDACTED,27/08/2013 00:00,369692,1009.52,CAP,Cap Security Ltd,13717V
Gloucester City Council,,Improvement Grants,CY013,Disabled Facility Grants,74,GRANT REF MDF4824,08/04/2013 00:00,361620,14156.07,CAP,REDACTED,13612L
Gloucester City Council,,Townscape Heritage Initiative,LY145,Contract Payments,20,stone training 25-27 May 13,30/05/2013 00:00,364507,750,CAP,Gloucester Stone Carving Festival,13841L
Gloucester City Council,,Safer Stronger Communities,FP841,Other Minor Supplies Services,5590,QR SETUP,08/04/2013 00:00,361604,500,NET,Think Nextgen Ltd,13753R
Gloucester City Council,,Tic Rovercard Sales,LT101,Materials For Sale,5080,PERIOD 2 SALES,11/07/2013 00:00,366988,6954,NET,Stagecoach Services Ltd*,56554W
Gloucester City Council,,Website Rebuild,RY573,Contract Payments,20,functional specification,08/04/2013 00:00,361276,2535,CAP,Bright Starr Uk,13575R
Gloucester City Council,,Celebratory Lights,LT302,Christmas Lights,5024,XMAS LIGHTS 04/11-03/12,11/09/2013 00:00,370514,1085.22,NET,Npower Ltd,02663W
Gloucester City Council,,Cctv Revenue Budget,FP501,Security Equipment Serv/Repair,3038,CCTV APR-JUNE 2013,08/08/2013 00:00,368744,1131.92,NET,Npower Ltd,02663W
Gloucester City Council,,Planning Policy,PT300,Basic Pay - Temporary Staff,2751,REDACTED,28/06/2013 00:00,366292,1713.5,NET,Randstad Cpe Ltd,13987L
Gloucester City Council,,Planning Policy,PT300,Basic Pay - Temporary Staff,2751,REDACTED,14/06/2013 00:00,365551,1540,NET,Randstad Cpe Ltd,13987L
Gloucester City Council,,Folk Museum,LM210,Printing,5300,WHATS ON GUIDE,18/07/2013 00:00,367573,1074.5,NET,Severnprint Ltd,49030C
Gloucester City Council,,75/81 Eastgate Street,RB501,Rents,3200,75-81 Eastgate St rent Jun-Sep13,06/06/2013 00:00,364791,34250,NET,Knight Frank Llp,59489B
Gloucester City Council,,Crematorium,HC200,Fees For Services Received,5350,#EMPTY,04/07/2013 00:00,13805,853.52,NET,Dr C M Stretton,00306P
Gloucester City Council,,Improvement Grants,CY013,Disabled Facility Grants,74,REDACTED,05/09/2013 00:00,370125,1868,CAP,Tpg Disableaids,51324R
Gloucester City Council,,Human Resources,EH100,Employee Related Advertising,2920,People Management Jobs advertising,20/08/2013 00:00,369130,2103,NET,Haymarket Media Group Ltd,56642Y
REDACTED,,REDACTED,REDACTED,REDACTED,REDACTED,REDACTED,REDACTED,REDACTED,900,REDACTED,REDACTED,09925V
Gloucester City Council,,Pollution Control,HE300,Fees For Services Received,5350,Street survey JUN-SEPT13,12/07/2013 00:00,367209,1200,NET,Keep Britain Tidy,10053H
Gloucester City Council,,Business Transformation & Tech,RT700,Computer Software <5000,5425,SHBE APRIL 2013 IT COSTS,01/07/2013 00:00,366216,4462.94,NET,Civica Uk Ltd,10841X
Gloucester City Council,,Lt Consulting/Lean Work,RC120,Consultants Fees,5349,CONSULTANCY MAY/JUNE,21/06/2013 00:00,365856,2409.58,NET,Lt Consulting Ltd,11794V
Gloucester City Council,,Homelessness Prevention,CH122,Fees For Services Received,5350,L TENNANT,07/06/2013 00:00,365122,500,NET,Chetwyn Properties Ltd,12567Z
Gloucester City Council,,Homelessness Prevention,CH122,Fees For Services Received,5350,REDACTED,02/07/2013 00:00,366477,500,NET,REDACTED,12591C
Gloucester City Council,,Legal Services,RS200,Basic Pay - Temporary Staff,2751,REDACTED,15/08/2013 00:00,369186,641.88,NET,Sellick Partnership Group Ltd,11057C
Gloucester City Council,,Legal Services,RS200,Basic Pay - Temporary Staff,2751,REDACTED,08/04/2013 00:00,361614,1152.75,NET,Sellick Partnership Group Ltd,11057C
Gloucester City Council,,Improvement Grants,CY013,Disabled Facility Grants,74,REDACTED,09/05/2013 00:00,363306,9547.5,CAP,L Coward & Son Ltd,47989M
Gloucester City Council,,Pest Control,HD400,Fees For Services Received,5350,EGG OILING,04/07/2013 00:00,366476,4320,NET,Nbc Bird & Pest Solutions,13801P
Gloucester City Council,,Homelessness,CH120,Rent In Advance,5516,REDACTED,29/05/2013 00:00,364443,733.84,NET,REDACTED,13953E
Gloucester City Council,,Homelessness Prevention,CH122,Fees For Services Received,5350,REDACTED,23/07/2013 00:00,367794,500,NET,REDACTED,09706K
Gloucester City Council,,Asbru - Other Funders,FP846,Other Minor Supplies Services,5590,bike alarms & seat covers,27/08/2013 00:00,369628,739,NET,J N E Marketing,50340C
Gloucester City Council,,Off Street Car Parks,PP110,Maint Of Grounds - General,3030,"CAR PARK, EASTGATE SHOPPING CTR",15/07/2013 00:00,366981,2138,NET,Workman Llp Service Charge Account,11022K
Gloucester City Council,,Grants To Voluntary Sector,FG100,Funding Vol&Com Grps-Grants,7100C,community grant 2013/14,08/05/2013 00:00,363075,5000,NET,Gay Glos,04898V
Gloucester City Council,,Solace Project,FP843,Other Minor Supplies Services,5590,Jul13 ASB staff - Project Solace,25/07/2013 00:00,367972,3250,NET,Gloucester City Homes,05244T
Gloucester City Council,,Gf Lifelinks,CH180,Fees For Services Received,5350,May 2013 management fees,10/06/2013 00:00,363844,5270.83,NET,Gloucester City Homes,05244T
Gloucester City Council,,Decent Homes Grants,CY018,Contract Payments,20,18 Stansted House works,04/04/2013 00:00,361489,9452.16,CAP,Gloucester City Homes,05244T
Gloucester City Council,,Homelessness Prevention,CH122,Fees For Services Received,5350,Created by invoice listener,10/04/2013 00:00,361794,7250,NET,Gloucester City Homes,05244T
REDACTED,,REDACTED,REDACTED,REDACTED,REDACTED,REDACTED,REDACTED,REDACTED,620,REDACTED,REDACTED,58946D
Gloucester City Council,,Senior Management Restructurin,RO200,Fees For Services Received,5350,consultancy August 2013,28/08/2013 00:00,369545,4641,NET,Alexander Beaver Associates,06515Z
Gloucester City Council,,Homelessness Prevention,CH122,Fees For Services Received,5350,REDACTED,05/06/2013 00:00,364931,600,NET,Surelet,06858N
Gloucester City Council,,Homelessness Prevention,CH122,Fees For Services Received,5350,REDACTED,17/05/2013 00:00,363969,550,NET,Surelet,06858N
Gloucester City Council,,Homelessness Prevention,CH122,Fees For Services Received,5350,REDACTED,25/04/2013 00:00,362705,650,NET,Surelet,06858N
Gloucester City Council,,Parks Contract Management,LP100,Maint Of Grounds - General,3030,VARIOUS WORKS,31/07/2013 00:00,368156,1330.5,NET,Enterprise (Aol) Ltd,06695G
Gloucester City Council,,Tic Trading,LT110,Trade Refuse Sacks,5040,TRADE WASTE,28/05/2013 00:00,364411,1848.8,NET,Enterprise (Aol) Ltd,06695G
Gloucester City Council,,Crematorium,HC200,Repair/Maint Of Fixed Plant,3006,AD SYSTEMS,11/04/2013 00:00,361874,2556,NET,Revolution Multimedia,07880L
Gloucester City Council,,Pest Control,HD400,Fees For Services Received,5350,Pest control visits,25/07/2013 00:00,367885,1186.11,NET,Falconry Services Ltd,10692P
Gloucester City Council,,Corporate Reporting /Financing,RC504,Fees For Services Received,5350,pension fund FRS17 actuarial report,21/06/2013 00:00,365610,643.5,NET,Gloucestershire County Council,10614L
Gloucester City Council,,Projects & Maintenance,PT500,Basic Pay -Admin /Prof Staff,2601,REDACTED,18/06/2013 00:00,364639,1288.63,NET,Hays Specialist Recruitment Ltd,55516P
Gloucester City Council,,Tic Coach Tickets,LT105,Materials For Sale,5080,SALES JUNE 2013,04/07/2013 00:00,366632,12687.05,NET,National Express Ltd,31455K
Gloucester City Council,,Contact Centre,RB300,Basic Pay -Admin /Prof Staff,2601,REDACTED,06/08/2013 00:00,368450,741.75,NET,Cps Anystaff Recruitment Ltd,13945D
Gloucester City Council,,Decent Homes Loans,CY042,Housing Loans,64,GRANT REF DHL4765,13/05/2013 00:00,363639,4222.5,CAP,REDACTED,13866A
Gloucester City Council,,Economic Development,FP300,Business Grant,7116,BUSINESS GRANT,10/09/2013 00:00,370386,500,NET,The Laundry Lounge,14078B
Gloucester City Council,,Printing,RP103,Fees For Services Received,5350,Created by invoice listener,20/05/2013 00:00,364098,898,NET,Alpha Colour Printers Ltd,00945B
Gloucester City Council,,Photocopying,RS130,Printing,5300,Folk Museum & TIC leaflets,09/05/2013 00:00,361519,666,NET,Alpha Colour Printers Ltd,00945B
Gloucester City Council,,Emergency Planning,RO100,Other Minor Supplies Services,5590,SAFETY EQUIPMENT,23/07/2013 00:00,367642,716.14,NET,Safpro Industrial Supply Co,39190W
Gloucester City Council,,Nms Contract,HI102,General Repair/Maint Buildings,3000,SACKS,19/07/2013 00:00,367644,903,NET,Polystar Plastics Ltd,01120C
Gloucester City Council,,Safer Stronger Communities,FP841,Other Minor Supplies Services,5590,police operation tri signs,13/08/2013 00:00,368987,1053,NET,Alpha Graphics,03471Y
Gloucester City Council,,Grants To Voluntary Sector,FG100,Funding Vol&Com Grps-Grants,7100C,community grant 2013-14,17/06/2013 00:00,365422,1000,NET,Abbeydale Community Association,50263V
Gloucester City Council,,Flooding And Drainage,HE306,Maint Of Grounds - General,3030,Horsbere Brook footpath reinstatement,24/06/2013 00:00,365907,650,NET,Mr M G Horton T/A H&T Property Maintenance,09210X
Gloucester City Council,,General Drainage Works,PY241,Contract Payments,20,Horsbere Brook safety rail,11/06/2013 00:00,365306,1350,CAP,Mr M G Horton T/A H&T Property Maintenance,09210X
Gloucester City Council,,Hkp Accomodation Review,RY163,Contract Payments,20,HERBERT WAREHOUSE,01/08/2013 00:00,368157,16634.08,CAP,E G Carter & Co Ltd,09262B
Gloucester City Council,,Financial Services,RT200,Consultants Fees,5349,CONSULTANTS JULY 2013,20/08/2013 00:00,369013,5686.5,NET,Resources Consultancy Limited,10508L
Gloucester City Council,,Director Resources,MR102,Consultants Fees,5349,REDACTED,07/06/2013 00:00,364834,2050.4,NET,Resources Consultancy Limited,10508L
Gloucester City Council,,Director Resources,MR102,Consultants Fees,5349,REDACTED,10/04/2013 00:00,361465,2000,NET,Resources Consultancy Limited,10508L
Gloucester City Council,,Registration Of Electors,RS400,Fees For Services Received,5350,ROOM HIRE 02/05/13,14/05/2013 00:00,363681,500,NET,St Barnabas Pcc,10480H
Gloucester City Council,,Homelessness,CH120,Fees For Services Received,5350,REDACTED,07/08/2013 00:00,368652,576.92,NET,S & Sl Sadler,11856T
Gloucester City Council,,Blackfriars,LA609,Fees For Services Received,5350,Blackfriars opening day catering,28/08/2013 00:00,368585,825,NET,The Apple Tree Inn,01015RV
Gloucester City Council,,Guildhall Works,RY155,Contract Payments,20,Gloucester Guildhall works,16/05/2013 00:00,363420,9651.09,CAP,Dribuild,13474Y
Gloucester City Council,,Homelessness Prevention,CH122,Basic Pay - Temporary Staff,2751,REDACTED,08/07/2013 00:00,366782,737.41,NET,James Andrews Recruitment Solutions,13636W
Gloucester City Council,,Development Management,PT200,Application Fees,9312,REFUND FOR INVALID APPLICATION,18/04/2013 00:00,362306,770,NET,REDACTED,13735T
Gloucester City Council,,Homelessness Prevention,CH122,Fees For Services Received,5350,REDACTED,29/07/2013 00:00,368203,600,NET,REDACTED,13860N
Gloucester City Council,,Client Revs & Bens Contract,RT240,Consultants Fees,5349,#EMPTY,10/07/2013 00:00,13670,2000,NET,REDACTED,01533P
Gloucester City Council,,Client Revs & Bens Contract,RT240,Consultants Fees,5349,#EMPTY,24/07/2013 00:00,13673,2000,NET,REDACTED,01533P
Gloucester City Council,,Civic Admin And Hospitality,RC210,Events,5952,civic charity donation 2012-13 remainder,08/08/2013 00:00,368736,558,NET,The Family Haven,20980M
Gloucester City Council,,Improvement Grants,CY013,Disabled Facility Grants,74,REDACTED,28/06/2013 00:00,364956,3846.25,CAP,Nks Contracts (Central) Ltd,56355E
Gloucester City Council,,Docks Complex - Catering Servs,RB110,Catering Provisions -Food,5110,DOCKS FOOD,14/06/2013 00:00,365560,704.29,NET,3663,55585U
Gloucester City Council,,Guildhall Bar And Caf�,LA210,Catering Provisions -Liquor,5111,GUILDHALL DRINKS,14/06/2013 00:00,365549,555.18,NET,Cellar Supplies Cheltenham Ltd,01563L
Gloucester City Council,,Guildhall Bar And Caf�,LA210,Catering Provisions -Liquor,5111,Guildhall drinks 25/4/13,30/04/2013 00:00,362911,844.98,NET,Cellar Supplies Cheltenham Ltd,01563L
Gloucester City Council,,Summer Festival,LT300,Hire Of Equipment,5020,FIRST AID 31/07/13,02/09/2013 00:00,369298,546,NET,St John Ambulance*,03597Y
Gloucester City Council,,Folk Museum,LM210,Water Supply,3400,ACCT 3850427956,14/08/2013 00:00,368906,705.06,NET,Severn Trent Water,01823H
Gloucester City Council,,Crematorium,HC200,Water Supply,3400,ACCT 7890105225,11/07/2013 00:00,365281,608.72,NET,Severn Trent Water,01823H
Gloucester City Council,,Docks Complex - Services,RB100,Water Supply,3400,WATER CHARGES,09/05/2013 00:00,363465,1583.38,NET,Severn Trent Water,01823H
Gloucester City Council,,City Museum And Art Gallery,LM200,Water Supply,3400,ACCT 7890105225,11/04/2013 00:00,361750,24747.17,NET,Severn Trent Water,01823H
Gloucester City Council,,General Works Fund,RY203,Cap Repair/Maint Fixed Plant,14,N Warehouse chiller upgrade,17/07/2013 00:00,367348,5388.86,CAP,Hewer Facilities Mgt Ltd,05232A
Gloucester City Council,,Avenger Task Force,FP842,Other Minor Supplies Services,5590,Lattitude E5530,22/05/2013 00:00,362770,630.61,NET,Dell Computers Corporation Ltd,55920C
Gloucester City Council,,Civil Parking Enforcement,PT741,Computer Software Maintenance,5427,Jul13 electronic season tickets,19/08/2013 00:00,369002,862.85,NET,Chipside Ltd,06535T
Gloucester City Council,,Parking Cctv,PT745,Contracted Services,6970,Apr/May13 electronic season tickets,21/06/2013 00:00,365633,1663.4,NET,Chipside Ltd,06535T
Gloucester City Council,,Parking Cctv,PT745,Contracted Services,6970,May13 notice processing,26/06/2013 00:00,366125,609.84,NET,Chipside Ltd,06535T
Gloucester City Council,,Aspire Admin Charges,LC105,Contracted Services,6970,Apr-13,05/09/2013 00:00,370284,79792.5,NET,Aspire Sports & Cultural Trust,08135V
Gloucester City Council,,Aspire Admin Charges,LC105,Contracted Services,6970,June 2013 management fees,25/07/2013 00:00,365038,79792.5,NET,Aspire Sports & Cultural Trust,08135V
Gloucester City Council,,Marketing Gloucester Charges,RC433,Fees For Services Received,5350,TALL SHIPS FESTIVAL,17/05/2013 00:00,363783,25000,NET,Marketing Gloucester Ltd,08925E
Gloucester City Council,,Homelessness Prevention,CH122,Fees For Services Received,5350,REDACTED,09/05/2013 00:00,363428,600,NET,The Property Centre,09230R
Gloucester City Council,,Business Transformation & Tech,RT700,Computer Software Maintenance,5427,HOSTING FEE 2013/14,04/07/2013 00:00,366407,4443,NET,Abritas Ltd,10222J
Gloucester City Council,,Swrda Asset Transfer,RY184,Capital Intruder & Cctv,19,CCTV RELOCATIO ALBION COTTAGES,26/07/2013 00:00,367484,2023.25,CAP,Combined Property Solutions Ltd,10231H
Gloucester City Council,,Client Revs & Bens Contract,RT240,Fees For Services Received,5350,Changes to income codes,19/07/2013 00:00,366486,2800,NET,Banking Automation Ltd,10352U
Gloucester City Council,,Hempsted Market/Car Boot,HM234,Sewerage And Environ Charges,3402,Markets toilets,26/06/2013 00:00,366129,510.8,NET,Abbey Loos Limited,10787B
Gloucester City Council,,Hempsted Market/Car Boot,HM234,Sewerage And Environ Charges,3402,Markets toilets,16/04/2013 00:00,362156,540.4,NET,Abbey Loos Limited,10787B
Gloucester City Council,,Human Resources,EH100,Fees For Services Received,5350,FEB13 OH SERVICES,11/07/2013 00:00,367025,870.42,NET,Industrial Medical & Safety Services Ltd,10668L
Gloucester City Council,,Human Resources,EH100,Fees For Services Received,5350,NOV12 OH SERVICES,11/07/2013 00:00,367028,671.25,NET,Industrial Medical & Safety Services Ltd,10668L
Gloucester City Council,,City Museum And Art Gallery,LM200,Exhibits And Collections,5038,ESI GIGAPORT,12/08/2013 00:00,368900,588,NET,Studiospares Ltd,59773B
Gloucester City Council,,Business Transformation & Tech,RT700,Basic Pay - Temporary Staff,2751,REDACTED,14/08/2013 00:00,368982,1125,NET,Ffox Software Ltd,10665T
Gloucester City Council,,Business Transformation & Tech,RT700,Basic Pay - Temporary Staff,2751,REDACTED,18/06/2013 00:00,365649,1125,NET,Ffox Software Ltd,10665T
Gloucester City Council,,Homelessness Prevention,CH122,Fees For Services Received,5350,REDACTED,12/04/2013 00:00,362016,500,NET,REDACTED,13693H
Gloucester City Council,,Homelessness Prevention,CH122,Fees For Services Received,5350,REDACTED,12/07/2013 00:00,367227,500,NET,REDACTED,14066J
REDACTED,,REDACTED,REDACTED,REDACTED,REDACTED,REDACTED,REDACTED,REDACTED,4688.57,REDACTED,REDACTED,05077M
Gloucester City Council,,Registration Of Electors,RS400,Fees For Services Received,5350,hire of hall for polling stn 2/5/13,11/06/2013 00:00,365298,600,NET,Hucclecote Community Association,23020B
Gloucester City Council,,Crematorium,HC200,Repair/Maint Of Fixed Plant,3006,REAGENT WASTE REMOVAL,16/07/2013 00:00,367263,1265.5,NET,Facultatieve Technologies Ltd,51210H
Gloucester City Council,,Civica Admin Charges,RT105,Postages,5400,ACCT 0870585007 REVENUES,09/09/2013 00:00,370318,1282.27,NET,Royal Mail S.Wales & South West,35830S
Gloucester City Council,,Civica Admin Charges,RT105,Postages,5400,ACCT 0870585007 REVENUES,22/07/2013 00:00,366367,1744.05,NET,Royal Mail S.Wales & South West,35830S
Gloucester City Council,,Civica Admin Charges,RT105,Postages,5400,ACCT 0870585007 W/E 10/05/13,13/06/2013 00:00,364083,1499.97,NET,Royal Mail S.Wales & South West,35830S
Gloucester City Council,,Civica Admin Charges,RT105,Postages,5400,ACCT 0870585007 REVENUES,26/06/2013 00:00,364630,1571.5,NET,Royal Mail S.Wales & South West,35830S
Gloucester City Council,,Postal Services,RS120,Postages,5400,ACCT 0252446000 W/E 25/04/13,09/05/2013 00:00,363319,1439.42,NET,Royal Mail S.Wales & South West,35830S
Gloucester City Council,,Postal Services,RS120,Postages,5400,ACCT 0252446000 W/E 11/04/13,23/04/2013 00:00,362405,1248.01,NET,Royal Mail S.Wales & South West,35830S
Gloucester City Council,,Building Control,PT400,Basic Pay - Temporary Staff,2751,REDACTED,14/06/2013 00:00,365548,2325.15,NET,Cheltenham Borough Council,04176B
Gloucester City Council,,Homelessness Prevention,CH122,Fees For Services Received,5350,REDACTED,18/04/2013 00:00,362301,550,NET,2 Let Glos Ltd,74622M
Gloucester City Council,,Drivers Budget,RL501,Fees For Services Received,5350,HIRE 06/03/13,23/04/2013 00:00,361998,1150,NET,Chapter Of Gloucester Cathedral,53250RV
Gloucester City Council,,Green Transport Policy,PJ130,Management Fees,6001,April 2013 driving charges,23/05/2013 00:00,364178,619.17,NET,Co-Wheels Cic,11534A
Gloucester City Council,,Off Street Car Parks,PP110,General Repair/Maint Buildings,3000,Westgate St car park fence & patching re,18/06/2013 00:00,365704,647.99,NET,Rf Gardiner Limited,12299B
Gloucester City Council,,Museum Phase 2 Hlf,GY001,Contract Payments,20,REDACTED,05/08/2013 00:00,365875,636.5,CAP,Find The Engineer Recruitment Ltd*,12977Z
Gloucester City Council,,General Works Fund,RY203,Capital Fire Alarms,25,Blackfriars works 20/5/13,27/06/2013 00:00,364508,2688.66,CAP,A & E Fire Equipment Limited,54289L
Gloucester City Council,,Off Street Car Parks,PP110,Fees For Services Received,5350,AIRTIME SEPT 2013,30/08/2013 00:00,369720,504.4,NET,Parkeon Ltd,03238G
Gloucester City Council,,Off Street Car Parks,PP110,Fees For Services Received,5350,AIRTIME JUNE 2013,24/06/2013 00:00,364198,505.66,NET,Parkeon Ltd,03238G
Gloucester City Council,,Ranger Centre/Netheridge Wks,RY167,Contract Payments,20,RANGERS CENTRE,05/09/2013 00:00,368270,1272.49,CAP,Adt Fire & Security Plc,54086D
Gloucester City Council,,Cems/Crems Admin,HC100,Maintenance Of Equipment,5030,ALARM SYSTEM,11/04/2013 00:00,361861,915.49,NET,Adt Fire & Security Plc,54086D
Gloucester City Council,,Corporate Reporting /Financing,RC504,Audit Fees,5383,NFI fee 2012-13 2 of 2,21/06/2013 00:00,365910,1150,NET,Audit Commission For Local Authorities,02050N
Gloucester City Council,,Kings Square Car Park Works,PY277,Contract Payments,20,KINGS SQ CAR PARK,02/08/2013 00:00,368171,3150.94,CAP,Roadmark Ltd,37743T
Gloucester City Council,,General Works Fund,RY203,Cap Repair/Maint Fixed Plant,14,City Museum works,12/08/2013 00:00,368819,1460,CAP,Controlco Ltd,57047K
Gloucester City Council,,Contact Centre,RB300,Uniforms,5201,CLOTHING,26/06/2013 00:00,366030,649.48,NET,Meltemi Company Clothing Limited,54572N
Gloucester City Council,,Improvement Grants,CY013,Disabled Facility Grants,74,GRANT REF MDF4958,13/05/2013 00:00,363638,3993.42,CAP,Mears Home Improvement Ltd,00096G
Gloucester City Council,,Improvement Grants,CY013,Disabled Facility Grants,74,GRANT REF MDF4917,17/05/2013 00:00,363970,1305.55,CAP,Mears Home Improvement Ltd,00096G
Gloucester City Council,,Civic Admin And Hospitality,RC210,Events,5952,2013 Three Choirs Festival sponsorship,05/09/2013 00:00,369542,15000,NET,The Three Choirs Festival Association,24249RV
Gloucester City Council,,Gis Development Work,RY555,Contract Payments,20,REDACTED,03/07/2013 00:00,366351,1250,CAP,Badenoch & Clark,01536P
Gloucester City Council,,Gis Development Work,RY555,Contract Payments,20,REDACTED,04/06/2013 00:00,364706,1250,CAP,Badenoch & Clark,01536P
Gloucester City Council,,Gis Development Work,RY555,Contract Payments,20,REDACTED,11/06/2013 00:00,365293,1000,CAP,Badenoch & Clark,01536P
Gloucester City Council,,Gis Development Work,RY555,Contract Payments,20,REDACTED,23/04/2013 00:00,362427,1250,CAP,Badenoch & Clark,01536P
Gloucester City Council,,Civil Parking Enforcement,PT741,On Street Parking Charges,6550,parking income June13,07/08/2013 00:00,368015,29879,NET,Gloucestershire County Council,18650D
Gloucester City Council,,Land Searches,RO300,Fees For Services Received,5350,Land searches Q1 2013/14,30/08/2013 00:00,369282,1940,NET,Gloucestershire County Council,18650D
Gloucester City Council,,Corporate Expenses,RC110,Fees For Services Received,5350,Glos Health Overview & Scrutiny contrib,15/08/2013 00:00,366481,2500,NET,Gloucestershire County Council,18650D
Gloucester City Council,,Civil Parking Enforcement,PT741,On Street Parking Charges,6550,Bus Lane enforcement March 13,08/05/2013 00:00,363090,2806.45,NET,Gloucestershire County Council,18650D
Gloucester City Council,,Legal Services,RS200,Fees For Services Received,5350,Land charges Q3 2012/13,09/04/2013 00:00,361133,1440,NET,Gloucestershire County Council,18650D
Gloucester City Council,,Director Resources,MR102,Fees For Services Received,5350,REDACTED,02/08/2013 00:00,368446,3880.8,NET,Wragge & Co Llp,06590J
Gloucester City Council,,Director Resources,MR102,Fees For Services Received,5350,EMPLOYMENT ADVICE,20/05/2013 00:00,363994,786,NET,Wragge & Co Llp,06590J
Gloucester City Council,,Director Resources,MR102,Fees For Services Received,5350,REDACTED,20/05/2013 00:00,364003,13646.37,NET,Wragge & Co Llp,06590J
Gloucester City Council,,Director Resources,MR102,Fees For Services Received,5350,REDACTED,15/04/2013 00:00,361972,9489.15,NET,Wragge & Co Llp,06590J
Gloucester City Council,,3rd Floor North Warehouse,RY210,Contract Payments,20,NORTH WAREHOUSE,10/04/2013 00:00,361737,1474,CAP,Langley Wellington Solicitors,00123F
Gloucester City Council,,Human Resources,EH100,Basic Pay -Admin /Prof Staff,2601,Apprenticeship scheme mgmt Mar-May13,21/06/2013 00:00,365912,9750,NET,Hr Consulting Ltd,12559Y
Gloucester City Council,,Grants To Voluntary Sector,FG100,Funding Vol&Com Grps-Grants,7100C,GRANT 2013-14,31/05/2013 00:00,364570,6000,NET,Tongues Of Fire,12993B
Gloucester City Council,,Website Rebuild,RY573,Consultants Fees,30,REDACTED,14/08/2013 00:00,369099,2475,CAP,Patzone It Solutions Ltd,13059R
Gloucester City Council,,Website Rebuild,RY573,Consultants Fees,30,daily rate 29/5 - 10/6/13,13/06/2013 00:00,365455,2025,CAP,Patzone It Solutions Ltd,13059R
Gloucester City Council,,Grant Aid,LP205,Maint Of Grounds - General,3030,quedgeley nature reserve works,08/05/2013 00:00,363273,500,NET,Jpu Services Ltd,11056K
Gloucester City Council,,Business Transformation & Tech,RT700,Computer Hardware <5000,5420,new wifi AP,13/06/2013 00:00,365443,1344.83,NET,Cablecom Networking Ltd,56318L
Gloucester City Council,,Improvement Grants,CY013,Disabled Facility Grants,74,#EMPTY,16/04/2013 00:00,362120,4494.32,CAP,REDACTED,13710K
REDACTED,,REDACTED,REDACTED,REDACTED,REDACTED,REDACTED,REDACTED,REDACTED,541.03,REDACTED,REDACTED,13913T
Gloucester City Council,,Blackfriars,LA609,Materials For Sale,5080,FABRIC,23/07/2013 00:00,366979,506,NET,Rap Industries Ltd,13804Z
Gloucester City Council,,Legal Services,RS200,Basic Pay -Admin /Prof Staff,2601,REDACTED,16/08/2013 00:00,368848,1136.7,NET,Venn Group Ltd,04339P
Gloucester City Council,,Homelessness Prevention,CH122,Basic Pay - Temporary Staff,2751,REDACTED,15/07/2013 00:00,367288,740,NET,Venn Group Ltd,04339P
Gloucester City Council,,Legal Services,RS200,Basic Pay - Temporary Staff,2751,REDACTED,01/05/2013 00:00,362845,726.9,NET,Venn Group Ltd,04339P
Gloucester City Council,,Tree Planting Grant Funded,LY150,Contract Payments,20,tree watering Hempsted Jubilee wood,13/08/2013 00:00,368108,600,CAP,Greenfields Garden Services Ltd,48130G
Gloucester City Council,,Hillfield Gardens S106,LY112,Contract Payments,20,Hillfield Gardens litter bins/tree work,24/06/2013 00:00,366026,526.5,CAP,Greenfields Garden Services Ltd,48130G
Gloucester City Council,,Hillfield Gardens S106,LY112,Contract Payments,20,Hillfield Gardens works,03/06/2013 00:00,364648,616.85,CAP,Greenfields Garden Services Ltd,48130G
Gloucester City Council,,Summer Festival,LT300,Hire Of Equipment,5020,TOILET HIRE,05/08/2013 00:00,368407,720,NET,B & W Hire Ltd,55477Y
Gloucester City Council,,Youth Grant 2011/12,FP107,Funding Vol&Com Grps-Grants,7100C,youth grant 2013-14,30/07/2013 00:00,367881,1500,NET,Gymnasian Uk Ltd T/A The Friendship Cafe,55509L
Gloucester City Council,,Business Transformation & Tech,RT700,Computer Hardware <5000,5420,SPEAKERS,04/06/2013 00:00,364624,760,NET,Qual Technology,56512N
Gloucester City Council,,Investment Property,RB500,General Repair/Maint Buildings,3000,OITC WORKS,29/04/2013 00:00,362310,594,NET,Abbey Surfacing,03487G
Gloucester City Council,,Business Support,PT250,Basic Pay - Temporary Staff,2751,STAFF W/E 04/08/13,13/08/2013 00:00,368649,832.3,NET,One To One Recruitment,04752H
Gloucester City Council,,Business Support,PT250,Basic Pay - Temporary Staff,2751,STAFF W/E 12/07/13,24/07/2013 00:00,367582,899,NET,One To One Recruitment,04752H
Gloucester City Council,,Contact Centre,RB300,Basic Pay -Admin /Prof Staff,2601,REDACTED,28/06/2013 00:00,366214,553.52,NET,One To One Recruitment,04752H
Gloucester City Council,,General Drainage Works,PY241,Contract Payments,20,Bristol Road storm water sewer works,12/06/2013 00:00,365314,5600.54,CAP,Three Counties Drain Service,44033V
Gloucester City Council,,Corporate Reporting /Financing,RC504,Audit Fees,5383,Grant certification work 2012/13 Q3&4,13/06/2013 00:00,362679,6720,NET,Kpmg,06498X
Gloucester City Council,,Homelessness Prevention,CH122,Fees For Services Received,5350,REDACTED,05/07/2013 00:00,366766,500,NET,REDACTED,09662E
Gloucester City Council,,Folk Museum,LM210,Advertising And Publicity,5702,RADIO CAMPAIGN,16/07/2013 00:00,367402,1038.24,NET,Rathbone Media Ltd,10038D
Gloucester City Council,,Museum Phase 2 Hlf,GY001,Contract Payments,20,City Museum 1st floor survey,08/08/2013 00:00,368103,950,CAP,Esg Asbestos Ltd,11204B
Gloucester City Council,,General Drainage Works,PY241,Contract Payments,20,DINGLEWELL/GREEN LANE,11/09/2013 00:00,370521,1432,CAP,Rab Consultants,13415R
Gloucester City Council,,Armscroft Park Flood Mit S106,LY153,Contract Payments,20,Armscroft Park works,12/07/2013 00:00,367211,14024.16,CAP,Colin Richardson Contractors,13835S
Gloucester City Council,,Armscroft Park Flood Mit S106,LY153,Contract Payments,20,Armscroft park works,03/06/2013 00:00,364718,45306.98,CAP,Colin Richardson Contractors,13835S
Gloucester City Council,,Improvement Grants,CY013,Disabled Facility Grants,74,GRANT REF MDF4889,31/07/2013 00:00,368265,556.2,CAP,Tate Solutions Ltd,13830Y
Gloucester City Council,,Business Transformation & Tech,RT700,Computer Software Maintenance,5427,sundry debtors maintenanc 2013/14,16/04/2013 00:00,362164,2860,NET,Ash Information Systems Ltd,54890V
Gloucester City Council,,Financial Services,RT200,Basic Pay -Admin /Prof Staff,2601,REDACTED,05/09/2013 00:00,368834,717.12,NET,Robert Half Ltd,03959K
Gloucester City Council,,Financial Services,RT200,Consultants Fees,5349,REDACTED,09/08/2013 00:00,367713,3975,NET,Robert Half Ltd,03959K
Gloucester City Council,,Financial Services,RT200,Basic Pay - Temporary Staff,2751,REDACTED,14/08/2013 00:00,368644,2175,NET,Robert Half Ltd,03959K
Gloucester City Council,,Financial Services,RT200,Consultants Fees,5349,REDACTED,03/07/2013 00:00,365730,2175,NET,Robert Half Ltd,03959K
Gloucester City Council,,Financial Services,RT200,Consultants Fees,5349,REDACTED,12/07/2013 00:00,367141,4770,NET,Robert Half Ltd,03959K
Gloucester City Council,,Financial Services,RT200,Consultants Fees,5349,REDACTED,14/06/2013 00:00,365564,2175,NET,Robert Half Ltd,03959K
Gloucester City Council,,Financial Services,RT200,Consultants Fees,5349,REDACTED,24/06/2013 00:00,365563,2610,NET,Robert Half Ltd,03959K
Gloucester City Council,,Financial Services,RT200,Consultants Fees,5349,REDACTED,22/05/2013 00:00,362999,3975,NET,Robert Half Ltd,03959K
Gloucester City Council,,Financial Services,RT200,Consultants Fees,5349,REDACTED,09/04/2013 00:00,361688,870,NET,Robert Half Ltd,03959K
Gloucester City Council,,Internal Audit,RT300,Basic Pay - Temporary Staff,2751,REDACTED,11/04/2013 00:00,361901,1144,NET,Robert Half Ltd,03959K
Gloucester City Council,,Investment Property,RB500,General Repair/Maint Buildings,3000,AUG-OCT13 maintenance,06/08/2013 00:00,368026,540.02,NET,Gea Denco Ltd,57271C
REDACTED,,REDACTED,REDACTED,REDACTED,REDACTED,REDACTED,REDACTED,REDACTED,600,REDACTED,REDACTED,06234L
Gloucester City Council,,Legal Services,RS200,Fees For Services Received,5350,Governance issues,18/04/2013 00:00,362326,884.4,NET,Bevan Brittan,06630Y
Gloucester City Council,,Blackbridge Athletics Track,LY134,Contract Payments,20,POPLAR CLOSE,10/04/2013 00:00,360942,2900,CAP,Rj Contracting (Environmental) Ltd,07429H
Gloucester City Council,,City Museum And Art Gallery,LM200,Advertising And Publicity,5702,MUSEUMS CAMPAIGN,05/07/2013 00:00,366437,750,NET,Soglos,07953J
Gloucester City Council,,Folk Museum,LM210,Advertising And Publicity,5702,MUSEUMS CAMPAIGN,05/07/2013 00:00,366437,750,NET,Soglos,07953J
Gloucester City Council,,Off Street Car Parks,PP110,Contracted Services,6970,July13 variable services,12/08/2013 00:00,368679,13087.45,NET,Apcoa Parking (Uk) Ltd,09954M
Gloucester City Council,,Civil Parking Enforcement,PT741,Contracted Services,6970,June 2013 variable services,15/07/2013 00:00,366939,22738.07,NET,Apcoa Parking (Uk) Ltd,09954M
Gloucester City Council,,Docks Complex - Castlemeads Cp,RB210,Contracted Services,6970,June 2013 variable services,15/07/2013 00:00,366939,3021.6,NET,Apcoa Parking (Uk) Ltd,09954M
Gloucester City Council,,Civil Parking Enforcement,PT741,Contracted Services,6970,May-13,10/06/2013 00:00,365153,23281.32,NET,Apcoa Parking (Uk) Ltd,09954M
Gloucester City Council,,Docks Complex - Castlemeads Cp,RB210,Contracted Services,6970,April 2013 variable services,13/05/2013 00:00,363255,3172.68,NET,Apcoa Parking (Uk) Ltd,09954M
Gloucester City Council,,Civil Parking Enforcement,PT741,Contracted Services,6970,March 2013 variable services,09/04/2013 00:00,361632,26260.92,NET,Apcoa Parking (Uk) Ltd,09954M
Gloucester City Council,,Business Transformation & Tech,RT700,Basic Pay - Temporary Staff,2751,REDACTED,12/08/2013 00:00,368921,4433,NET,Vector Resourcing Ltd,11664K
Gloucester City Council,,Business Transformation & Tech,RT700,Basic Pay - Temporary Staff,2751,REDACTED,14/08/2013 00:00,369017,5457,NET,Vector Resourcing Ltd,11664K
Gloucester City Council,,Homelessness,CH120,Board And Lodging,5515,#EMPTY,03/05/2013 00:00,363141,2198.1,NET,Dorchester House Trust,12298D
Gloucester City Council,,Kings Quarter Redevelopment,RB600,Fees For Services Received,5350,Kings Quarter consultancy advice,02/09/2013 00:00,370050,1500,NET,Cb Richard Ellis Ltd,12446N
Gloucester City Council,,Barge Arm Car Spaces,RB551,Service Charges,3020,Barge Arm car park 1/10/12-31/3/13,15/05/2013 00:00,363716,1007.5,NET,Ash & Co Cs Llp (Barge Arm Car Park),12522Y
Gloucester City Council,,Investment Property,RB500,Service Charges,3020,Barge Arm car park 1/4/13-30/9/13,15/05/2013 00:00,363717,1007.5,NET,Ash & Co Cs Llp (Barge Arm Car Park),12522Y
REDACTED,,REDACTED,REDACTED,REDACTED,REDACTED,REDACTED,REDACTED,REDACTED,1400,REDACTED,REDACTED,13730D
Gloucester City Council,,Tic Rovercard Sales,LT101,Materials For Sale,5080,SALES PERIOD 13,16/05/2013 00:00,363784,7324,NET,Stagecoach Services Ltd*,56554W
Gloucester City Council,,Summer Festival,LT300,Ni -  Operational Staff,1009,STS Championsheeps event 28/7/13,07/05/2013 00:00,363153,2337.6,NET,Sga Productions Ltd,13942K
Gloucester City Council,,Guildhall Events,LA200,Artists Fees,5355,#EMPTY,24/06/2013 00:00,13780,750,NET,REDACTED,01561P
Gloucester City Council,,Planning Policy,PT300,Basic Pay - Temporary Staff,2751,REDACTED,19/07/2013 00:00,367579,1633.59,NET,Randstad Cpe Ltd,13987L
Gloucester City Council,,Planning Policy,PT300,Basic Pay - Temporary Staff,2751,REDACTED,14/06/2013 00:00,365550,1179.09,NET,Randstad Cpe Ltd,13987L
Gloucester City Council,,Homelessness Prevention,CH122,Fees For Services Received,5350,REDACTED,30/05/2013 00:00,364621,700,NET,Countrywide Lettings,13978M
Gloucester City Council,,Business Planning & Performanc,RL500,Consultants Fees,5349,credited invoice re EULA 0404PP5178,17/05/2013 00:00,363270,5576,NET,Inphase Ltd,02282N
Gloucester City Council,,Crematorium,HC200,Fees For Services Received,5350,#EMPTY,05/09/2013 00:00,13978,860.64,NET,Dr C M Stretton,00306P
REDACTED,,REDACTED,REDACTED,REDACTED,REDACTED,REDACTED,REDACTED,REDACTED,637.5,REDACTED,REDACTED,00106P
Gloucester City Council,,Registration Of Electors,RS400,Printing,5300,Polling Station letters,22/04/2013 00:00,362303,834,NET,Alpha Response Print & Mail Ltd,03029U
Gloucester City Council,,Improvement Grants,CY013,Disabled Facility Grants,74,GRANT REF MDF4960,18/04/2013 00:00,362296,3905,CAP,Tpg Disableaids,51324R
Gloucester City Council,,Homelessness Prevention,CH122,Fees For Services Received,5350,REDACTED,31/05/2013 00:00,364632,800,NET,2 Let Ltd,08804U
Gloucester City Council,,Civica Contract Revs & Bens,RT250,Contracted Services,6970,DEC13 core Revs & Bens service,12/09/2013 00:00,370530,136180.09,NET,Civica Uk Ltd,10841X
Gloucester City Council,,Civica Fod Contract,RT260,Fees For Services Received,5350,PRE CONTRACT WORK - OVERPAYMENTS,17/05/2013 00:00,363379,3963,NET,Civica Uk Ltd,10841X
Gloucester City Council,,Civica Contract Revs & Bens,RT250,Contracted Services,6970,MAY13 CORE REVS&BENS SERVICE,11/04/2013 00:00,361420,137835.18,NET,Civica Uk Ltd,10841X
Gloucester City Council,,Business Transformation & Tech,RT700,Internet Service Provider Fees,5429,HERBERT WAREHOUSE,08/05/2013 00:00,362669,999,NET,Vodafone Ltd,11843H
Gloucester City Council,,Legal Services,RS200,Basic Pay - Temporary Staff,2751,REDACTED,09/04/2013 00:00,361686,507.96,NET,Sellick Partnership Group Ltd,11057C
Gloucester City Council,,Legal Services,RS200,Basic Pay - Temporary Staff,2751,REDACTED,08/04/2013 00:00,361609,1580.13,NET,Sellick Partnership Group Ltd,11057C
Gloucester City Council,,Museum Phase 2 Hlf,GY001,Contract Payments,20,CITY MUSEUM,19/08/2013 00:00,368929,700,CAP,Ravenhill Design,13928D
Gloucester City Council,,Homelessness Prevention,CH122,Fees For Services Received,5350,REDACTED,29/05/2013 00:00,364443,700,NET,REDACTED,13953E
Gloucester City Council,,Members Support,RC300,Members Training,5535,REDACTED,30/04/2013 00:00,362893,1000,NET,Improvement & Development Agency,55793J
Gloucester City Council,,Solace Project,FP843,Other Minor Supplies Services,5590,AUG13 ASB salary,02/09/2013 00:00,369727,3250.3,NET,Gloucester City Homes,05244T
Gloucester City Council,,Dwelling Improvements,BY008,Contract Payments,20,Capital fees June13,12/08/2013 00:00,367342,200856.91,CAP,Gloucester City Homes,05244T
Gloucester City Council,,Dwelling Improvements,BY008,Contract Payments,20,GCH Capital fees APR-MAY13,04/07/2013 00:00,365984,1129074.68,CAP,Gloucester City Homes,05244T
Gloucester City Council,,Dwelling Improvements,BY008,Contract Payments,20,recharge of Capita inoice 92919284,23/05/2013 00:00,363943,18489.82,CAP,Gloucester City Homes,05244T
Gloucester City Council,,General Works Fund,RY203,Capital Lifts,24,GUILDHALL,23/07/2013 00:00,367791,888.55,CAP,Pickerings Europe Ltd*,58816U
Gloucester City Council,,Homelessness Prevention,CH122,Fees For Services Received,5350,REDACTED,12/04/2013 00:00,361941,550,NET,Surelet,06858N
Gloucester City Council,,Docks Complex - Services,RB100,Contracted Services,6970,TRADE WASTE OCT-DEC 2013,06/09/2013 00:00,370132,13932.47,NET,Enterprise (Aol) Ltd,06695G
Gloucester City Council,,Nms Contract,HI102,Additional Non-Tender Items,6973,Sports booking April 13,23/08/2013 00:00,365353,1805,NET,Enterprise (Aol) Ltd,06695G
Gloucester City Council,,Nms Contract,HI102,General Repair/Maint Buildings,3000,STREET CLEANER,10/07/2013 00:00,366884,1235.26,NET,Enterprise (Aol) Ltd,06695G
Gloucester City Council,,Parks Contract Management,LP100,Maint Of Grounds - General,3030,CARIOUS WORKS,31/07/2013 00:00,368174,1545.64,NET,Enterprise (Aol) Ltd,06695G
Gloucester City Council,,Nms Contract,HI102,General Repair/Maint Buildings,3000,WALK BEHIND MAY 2013,19/06/2013 00:00,364843,563.33,NET,Enterprise (Aol) Ltd,06695G
Gloucester City Council,,Tic Trading,LT110,Trade Refuse Sacks,5040,TRADE WASTE,03/04/2013 00:00,361267,924.4,NET,Enterprise (Aol) Ltd,06695G
Gloucester City Council,,Flooding And Drainage,HE306,Maint Of Grounds - General,3030,FLOODING DEC 2012,25/04/2013 00:00,362089,1643.11,NET,Enterprise (Aol) Ltd,06695G
Gloucester City Council,,Homelessness,CH120,Board And Lodging,5515,JUN13 B&B PAYMENTS,26/06/2013 00:00,366150,1432.63,NET,Kalmwood Ltd,08568G
Gloucester City Council,,Stationery Services,RS150,Stationery,5302,PAPER,25/04/2013 00:00,362654,902,NET,Premier Paper Group Ltd,09166Y
Gloucester City Council,,Nms Contract,HI102,General Repair/Maint Buildings,3000,domestic waste labels,11/06/2013 00:00,365305,697,NET,Eurolabel,10252Z
Gloucester City Council,,Pest Control,HD400,Fees For Services Received,5350,pest control,06/09/2013 00:00,370278,2278.28,NET,Falconry Services Ltd,10692P
Gloucester City Council,,Pest Control,HD400,Fees For Services Received,5350,pest control,14/06/2013 00:00,365539,1123.27,NET,Falconry Services Ltd,10692P
Gloucester City Council,,Registration Of Electors,RS400,Fees For Services Received,5350,REDACTED,06/08/2013 00:00,368554,1293.9,NET,Gloucestershire County Council,10614L
Gloucester City Council,,Senior Management Restructurin,RO200,Pension Contribs Incl Backf,2901,Dec12 & Jan 13 pension payments,15/04/2013 00:00,356330,25213.44,NET,Gloucestershire County Council,10614L
Gloucester City Council,,Improvement Grants,CY013,Disabled Facility Grants,74,#EMPTY,18/04/2013 00:00,362302,1370,CAP,Dolphin Lifts (Western) Ltd,10661B
Gloucester City Council,,Asset Management,RS300,Basic Pay - Temporary Staff,2751,REDACTED,15/08/2013 00:00,368439,1250.5,NET,Hays Specialist Recruitment Ltd,55516P
Gloucester City Council,,Asset Management,RS300,Basic Pay - Temporary Staff,2751,REDACTED,16/08/2013 00:00,368445,1189.5,NET,Hays Specialist Recruitment Ltd,55516P
Gloucester City Council,,Projects & Maintenance,PT500,Basic Pay -Admin /Prof Staff,2601,REDACTED,08/07/2013 00:00,366666,1113.25,NET,Hays Specialist Recruitment Ltd,55516P
Gloucester City Council,,Asset Management,RS300,Basic Pay -Admin /Prof Staff,2601,REDACTED,01/05/2013 00:00,362894,625.25,NET,Hays Specialist Recruitment Ltd,55516P
Gloucester City Council,,Asset Management,RS300,Basic Pay -Admin /Prof Staff,2601,REDACTED,01/05/2013 00:00,362895,991.26,NET,Hays Specialist Recruitment Ltd,55516P
Gloucester City Council,,Asset Management,RS300,Basic Pay -Admin /Prof Staff,2601,REDACTED,01/05/2013 00:00,362896,1235.26,NET,Hays Specialist Recruitment Ltd,55516P
Gloucester City Council,,Tic Coach Tickets,LT105,Materials For Sale,5080,SALES AUG 2013,06/09/2013 00:00,370237,17231.1,NET,National Express Ltd,31455K
Gloucester City Council,,Homelessness,CH120,Board And Lodging,5515,REDACTED,22/08/2013 00:00,369533,1610.3,NET,Carbrey Housing Ltd,11098G
Gloucester City Council,,Homelessness,CH120,Board And Lodging,5515,jun/jul13 b&b payments,23/07/2013 00:00,367799,2254.63,NET,Carbrey Housing Ltd,11098G
Gloucester City Council,,Homelessness,CH120,Board And Lodging,5515,REDACTED,31/05/2013 00:00,364560,1045.93,NET,Carbrey Housing Ltd,11098G
Gloucester City Council,,Active Space At Abbeydale,LY149,Contract Payments,20,Abbeydale active space works,11/07/2013 00:00,367034,14590.74,CAP,Hfn Landscapes,13574T
Gloucester City Council,,Projects & Maintenance,PT500,Licences,5703,KEL Sigma rental fees,01/05/2013 00:00,362521,1545,NET,Kel,13644X
Gloucester City Council,,Museum Phase 2 Hlf,GY001,Contract Payments,20,city museum environmental advice,22/08/2013 00:00,369502,720.35,CAP,Geodiversity Consulting,13899J
Gloucester City Council,,Eastgate Viewing Chamber,LY100,Contract Payments,20,EASTGATE ST VIEWING CHAMBER,10/09/2013 00:00,370387,7238,CAP,Talus Construction Ltd,10401G
Gloucester City Council,,Photocopying,RS130,Printing,5300,March13 print room sales,16/04/2013 00:00,362165,1954.13,NET,Alpha Colour Printers Ltd,00945B
Gloucester City Council,,Crematorium,HC200,Repair/Maint Of Monuments,3004,Honeycomb Granite Sanctum 2000,17/05/2013 00:00,363723,1390,NET,The Columbaria Company,55078T
Gloucester City Council,,Homelessness,CH120,Board And Lodging,5515,B&B LABURNUM LODGE MAY13,31/05/2013 00:00,364574,969.26,NET,REDACTED,10975Y
Gloucester City Council,,Website Rebuild,RY573,Consultants Fees,30,REDACTED,07/05/2013 00:00,363086,12987,CAP,G2 Recruitment Solutions Ltd,04261C
Gloucester City Council,,Tic Theatre Ticket Sales,LT107,Materials For Sale,5080,TICKET SALES COMEDY OF ERRORS,13/08/2013 00:00,369035,836,NET,Rain Or Shine Theatre Co Ltd,58757J
Gloucester City Council,,Business Transformation & Tech,RT700,Computer Software Maintenance,5427,2013/14 maintenance agreement,05/04/2013 00:00,360925,48218.33,NET,Idox Group,07229U
Gloucester City Council,,Business Transformation & Tech,RT700,Computer Software Maintenance,5427,STRM Strand maintenance apr13-mar14,17/04/2013 00:00,361766,11750,NET,Idox Group,07229U
Gloucester City Council,,Folk Museum,LM210,Publications For Sale,5064,Folk Museum goods,28/06/2013 00:00,364921,564.7,NET,Half Moon Bay Ltd,08240F
Gloucester City Council,,Publications,RC450,Subscriptions,5600,licence L00053860 for 2013/14,01/05/2013 00:00,363003,1242,NET,Newspaper Licensing Agency Ltd,10001D
Gloucester City Council,,Investment Property,RB500,Consultants Fees,5349,REDACTED,16/08/2013 00:00,369016,2054.6,NET,Resources Consultancy Limited,10508L
Gloucester City Council,,Homelessness Prevention,CH122,Fees For Services Received,5350,REDACTED,24/04/2013 00:00,362671,500,NET,REDACTED,11930M
Gloucester City Council,,General Works Fund,RY203,Cap Repair/Maint Fixed Plant,14,Guildhall cafe-bar works,27/06/2013 00:00,365460,5261.1,CAP,Dl Spencer & Company Ltd,11885R
Gloucester City Council,,Blackfriars,LA609,Fees For Services Received,5350,Sherrifs AGM catering,28/08/2013 00:00,368582,936,NET,The Apple Tree Inn,01015RV
Gloucester City Council,,Flooding And Drainage,HE306,Maint Of Grounds - General,3030,RIVER TWYVER,24/07/2013 00:00,367860,853.9,NET,Rdb Safety Boat Ltd,13507J
Gloucester City Council,,Homelessness Prevention,CH122,Rent In Advance,5516,REDACTED,03/05/2013 00:00,363145,520,NET,Movearound Ltd,13118A
Gloucester City Council,,Homelessness,CH120,Rent In Advance,5516,REDACTED,29/05/2013 00:00,364442,733.84,NET,REDACTED,13410B
Gloucester City Council,,Homelessness Prevention,CH122,Basic Pay - Temporary Staff,2751,REDACTED,26/07/2013 00:00,368034,558.04,NET,James Andrews Recruitment Solutions,13636W
Gloucester City Council,,Homelessness Prevention,CH122,Basic Pay - Temporary Staff,2751,REDACTED,21/06/2013 00:00,365909,657.82,NET,James Andrews Recruitment Solutions,13636W
Gloucester City Council,,Homelessness Prevention,CH122,Basic Pay - Temporary Staff,2751,REDACTED,14/06/2013 00:00,365530,700.41,NET,James Andrews Recruitment Solutions,13636W
Gloucester City Council,,Homelessness Prevention,CH122,Basic Pay - Temporary Staff,2751,REDACTED,05/04/2013 00:00,361527,829.91,NET,James Andrews Recruitment Solutions,13636W
Gloucester City Council,,Hillfield Gardens S106,LY112,Contract Payments,20,litter bin,01/05/2013 00:00,363005,660,CAP,Wybone Limited,13540L
Gloucester City Council,,Homelessness Prevention,CH122,Fees For Services Received,5350,REDACTED,12/04/2013 00:00,361937,540,NET,REDACTED,13826N
Gloucester City Council,,Homelessness Prevention,CH122,Fees For Services Received,5350,REDACTED,14/05/2013 15:12,363146,500,NET,REDACTED,13962D
Gloucester City Council,,Dwelling Acquisitions,BY006,Purchase Cost -Buildings,10,REDACTED,11/09/2013 00:00,370545,6250,CAP,Tayntons Llp,52854U
Gloucester City Council,,Homelessness Prevention,CH122,Fees For Services Received,5350,REDACTED,26/06/2013 00:00,366145,640,NET,Tayntons Llp,52854U
Gloucester City Council,,Improvement Grants,CY013,Disabled Facility Grants,74,REDACTED,15/08/2013 00:00,366457,7683.55,CAP,Nks Contracts (Central) Ltd,56355E
REDACTED,,REDACTED,REDACTED,REDACTED,REDACTED,REDACTED,REDACTED,REDACTED,5053.1,REDACTED,REDACTED,57749T
Gloucester City Council,,Countryside Unit,LP201,Maint Of Grounds - General,3030,Bins for Robinswood Hill,26/07/2013 00:00,368027,519,NET,Streetmaster Products,00534D
Gloucester City Council,,Guildhall Bar And Caf�,LA210,Catering Provisions -Liquor,5111,GUILDHALL DRINKS,05/07/2013 00:00,366668,984.86,NET,Cellar Supplies Cheltenham Ltd,01563L
Gloucester City Council,,Off Street Car Parks,PP110,Water Supply,3400,WATER CHARGES,09/05/2013 00:00,363465,2862.06,NET,Severn Trent Water,01823H
Gloucester City Council,,Investment Property,RB500,Repair/Maint Of Fixed Plant,3006,quarterly checks,08/07/2013 00:00,366215,2348.26,NET,Hewer Facilities Mgt Ltd,05232A
Gloucester City Council,,3rd Floor North Warehouse,RY210,Contract Payments,20,N WAREHOUSE AHU & CHILLER SERVICE,17/05/2013 00:00,363419,1403.39,CAP,Hewer Facilities Mgt Ltd,05232A
Gloucester City Council,,North Warehouse Works,RY154,Contract Payments,20,N WAREHOUSE CHILLER REPAIRS,17/05/2013 00:00,363418,1200,CAP,Hewer Facilities Mgt Ltd,05232A
Gloucester City Council,,Townscape Heritage Initiative,LY145,Contract Payments,20,Lattitude E5530,19/04/2013 00:00,362327,559.2,CAP,Dell Computers Corporation Ltd,55920C
Gloucester City Council,,Parking Cctv,PT745,Contracted Services,6970,Notice processing services,26/07/2013 00:00,367891,958.32,NET,Chipside Ltd,06535T
REDACTED,,REDACTED,REDACTED,REDACTED,REDACTED,REDACTED,REDACTED,REDACTED,2470.82,REDACTED,REDACTED,00141D
Gloucester City Council,,Investment Property,RB500,Lift Maintenance,3051,SERVICE 10/05/13-09/08/13,17/04/2013 00:00,361142,609.04,NET,Schindler Ltd,06826C
Gloucester City Council,,Aspire Admin Charges,LC105,Fees For Services Received,5350,April13 staff payroll deduction,24/05/2013 00:00,364357,571,NET,Aspire Sports & Cultural Trust,08135V
Gloucester City Council,,Aspire Admin Charges,LC105,Reimbursements,9100,#EMPTY,30/04/2013 00:00,362876,9266,NET,Aspire Sports & Cultural Trust,08135V
Gloucester City Council,,Rehousing,CH111,Vocational Training,2970,Delivery for EU Nationals training MAY12,04/09/2013 00:00,369557,1030,NET,Shelter Training,08860H
Gloucester City Council,,Swrda Asset Transfer,RY184,Capital Intruder & Cctv,19,ALBION COTTAGES CCTV BALANCE,23/08/2013 00:00,368046,2023.25,CAP,Combined Property Solutions Ltd,10231H
Gloucester City Council,,Business Transformation & Tech,RT700,Computer Software Maintenance,5427,"hosting of ProRegister, Pronotice etc",02/09/2013 00:00,369904,1444.75,NET,Due North Ltd,12447L
Gloucester City Council,,Business Transformation & Tech,RT700,Computer Software Maintenance,5427,software licence,15/07/2013 00:00,366941,54525,NET,Civica Services Ltd,58099E
Gloucester City Council,,Business Transformation & Tech,RT700,Basic Pay - Temporary Staff,2751,REDACTED,04/09/2013 00:00,369999,1125,NET,Ffox Software Ltd,10665T
Gloucester City Council,,Business Transformation & Tech,RT700,Basic Pay - Temporary Staff,2751,REDACTED,19/08/2013 00:00,369380,1125,NET,Ffox Software Ltd,10665T
Gloucester City Council,,Business Transformation & Tech,RT700,Basic Pay - Temporary Staff,2751,REDACTED,10/05/2013 00:00,363265,1125,NET,Ffox Software Ltd,10665T
Gloucester City Council,,Business Transformation & Tech,RT700,Basic Pay - Temporary Staff,2751,REDACTED,10/04/2013 00:00,361793,720,NET,Ffox Software Ltd,10665T
Gloucester City Council,,Economic Development,FP300,Other Minor Supplies Services,5590,START UP GUIDE,02/08/2013 00:00,368401,1492.5,NET,Absolute Creative Marketing Ltd,11153T
Gloucester City Council,,Programme Of Works Cem&Crem,HY045,Contract Payments,20,CREMATOR SERVICE,16/07/2013 00:00,367265,1834.16,CAP,Facultatieve Technologies Ltd,51210H
Gloucester City Council,,Crematorium,HC200,Repair/Maint Of Fixed Plant,3006,WASTE REMOVAL,12/04/2013 00:00,361891,1443.64,NET,Facultatieve Technologies Ltd,51210H
Gloucester City Council,,Cemeteries,HC300,Trade Refuse Tipping Fees,6297,inert waste rolonof exchange,11/09/2013 00:00,370536,1080,NET,Allstone Sand & Gravel Aggregates Ltd,00940M
Gloucester City Council,,Asbru - Other Funders,FP846,Other Minor Supplies Services,5590,REDACTED,13/08/2013 00:00,369019,541.88,NET,Travail Employment Ltd,49371W
Gloucester City Council,,Asbru - Other Funders,FP846,Other Minor Supplies Services,5590,REDACTED,19/06/2013 00:00,365772,544.19,NET,Travail Employment Ltd,49371W
Gloucester City Council,,Civica Admin Charges,RT105,Postages,5400,ACCT 0870585007 REVENUES,06/09/2013 00:00,369644,1453.23,NET,Royal Mail S.Wales & South West,35830S
Gloucester City Council,,Postal Services,RS120,Postages,5400,ACCT 0252446000 W/E 01/08/13,21/08/2013 00:00,368745,1394.7,NET,Royal Mail S.Wales & South West,35830S
Gloucester City Council,,Postal Services,RS120,Postages,5400,ACCT 0252446000 W/E 09/05/13,21/05/2013 00:00,363888,1312.63,NET,Royal Mail S.Wales & South West,35830S
Gloucester City Council,,Homelessness,CH120,Removal And Storage Fees,5513,Maxine Hall furniture removal 9/5/13,29/05/2013 00:00,363942,600,NET,Advanced Removals & Storage Ltd,57142R
REDACTED,,REDACTED,REDACTED,REDACTED,REDACTED,REDACTED,REDACTED,REDACTED,500,REDACTED,REDACTED,01596V
Gloucester City Council,,Allotments,HI104,Fees For Services Received,5350,Estcourt Close allotments plant hire,03/09/2013 00:00,369800,1036.3,NET,Ken Pink Plant Hire Ltd,56884V
Gloucester City Council,,Homelessness Prevention,CH122,Fees For Services Received,5350,REDACTED,29/04/2013 00:00,362849,500,NET,REDACTED,18106RV
Gloucester City Council,,Gang Injunctions,FP824,Other Minor Supplies Services,5590,#EMPTY,06/08/2013 00:00,13886,1150,NET,REDACTED,00108P
Gloucester City Council,,Development Management,PT200,Consultants Fees,5349,Retail impact study works,03/06/2013 00:00,363626,800,NET,Dpds Ltd,05404V
Gloucester City Council,,Business Transformation & Tech,RT700,Computer Software Maintenance,5427,SUPPORT MAY 13-MAY 14,31/05/2013 00:00,364461,1480.61,NET,Oracle Corportation Uk Ltd,06156F
Gloucester City Council,,Homelessness,CH120,Board And Lodging,5515,VARIOUS TENANTS,24/07/2013 00:00,367900,2087.1,NET,James Legge Property (Ltd),07844R
Gloucester City Council,,Homelessness,CH120,Board And Lodging,5515,VARIOUS TENANTS,30/05/2013 00:00,364515,1116.34,NET,James Legge Property (Ltd),07844R
Gloucester City Council,,Grants To Voluntary Sector,FG100,Funding Vol&Com Grps-Grants,7100C,COMMUNITY GRANT 2013-14,05/08/2013 00:00,368405,15838.5,NET,Gl Communities,09535X
Gloucester City Council,,Business Transformation & Tech,RT700,Computer Software Maintenance,5427,VMWARE support,04/09/2013 00:00,369905,12686.09,NET,Ans Group Plc,11058J
Gloucester City Council,,Electrical Investigatory Works,RY142,Cap Repair/Maint Fixed Plant,14,GUILDHALL ELECTRICAL WORKS,18/07/2013 00:00,366790,697.27,CAP,Rf Gardiner Limited,12299B
Gloucester City Council,,Homelessness Prevention,CH122,Fees For Services Received,5350,REDACTED,06/06/2013 00:00,365030,500,NET,REDACTED,12664A
Gloucester City Council,,Hempsted Market/Car Boot,HM234,Security Services Fees,5351,security staff May13,17/06/2013 00:00,365620,1800.8,NET,Nsgl Ltd,12539E
Gloucester City Council,,Gloucester Guildhall,LA100,Security Services Fees,5351,SECURITY APR 2013,21/05/2013 00:00,364138,1060.75,NET,Nsgl Ltd,12539E
Gloucester City Council,,Tic Theatre Ticket Sales,LT107,Materials For Sale,5080,Carducci Festival 24-26 May13 Highnam,06/06/2013 00:00,364977,2130,NET,Carducci Music Trust,12940Z
Gloucester City Council,,Nms Contract,HI102,General Repair/Maint Buildings,3000,SCRUBBER HIRE,09/05/2013 00:00,363440,1200,NET,Sweeping Solutions Ltd,12872R
Gloucester City Council,,Hkp Accomodation Review,RY163,Contract Payments,20,REDACTED,30/08/2013 00:00,369775,959.5,CAP,Find The Engineer Recruitment Ltd*,12977Z
Gloucester City Council,,Homelessness Prevention,CH122,Fees For Services Received,5350,REDACTED,11/06/2013 00:00,365315,500,NET,REDACTED,12804J
Gloucester City Council,,Guildhall Works,RY155,Contract Payments,20,Guildhall WC refurb works,06/06/2013 00:00,364922,1585,CAP,Engineering Services Consultancy Ltd,13039X
Gloucester City Council,,Improvement Grants,CY013,Disabled Facility Grants,74,REDACTED,30/05/2013 00:00,364512,4911,CAP,Beard & Tandy,03160V
Gloucester City Council,,Off Street Car Parks,PP110,General Repair/Maint Buildings,3000,KINGSWALK CAR PARK,18/04/2013 00:00,362323,775,NET,Beard & Tandy,03160V
Gloucester City Council,,Economic Development,FP300,Other Minor Supplies Services,5590,bulk buy annual,24/07/2013 00:00,367478,1500,NET,Adestra Ltd,14101J
Gloucester City Council,,Business Transformation & Tech,RT700,Basic Pay - Temporary Staff,2751,REDACTED,17/04/2013 00:00,361889,6230,NET,Sanderson Recruitment Plc,05772K
Gloucester City Council,,Legal Services,RS200,Publications,5060,CREDITED ON 363693,17/05/2013 00:00,359984,2149,NET,Lexis Nexis Ltd,01712U
Gloucester City Council,,Grants To Voluntary Sector,FG100,Funding Vol&Com Grps-Sla'S,7100B,community grant 2013-14 part 1 of 4,21/05/2013 00:00,364128,21076.75,NET,Gloucester & District Citizens Advice Bureau,07709Y
Gloucester City Council,,Refurb Of Crem Toilets,HY046,Contract Payments,20,CREM,06/08/2013 00:00,367783,809.22,CAP,Snape Construction Ltd,40958T
Gloucester City Council,,Summer Festival,LT300,Printing,5300,banner installation,19/07/2013 00:00,367498,1700,NET,Hanman Split Ltd,56889J
Gloucester City Council,,Retail Market - Landlord,HM300,Buildings Insurance,3800,MARKET HALL,10/07/2013 00:00,366656,754.49,NET,Workman Llp Insurance Account,11024F
Gloucester City Council,,Improvement Grants,CY013,Disabled Facility Grants,74,GRANT REF MDF4966,22/07/2013 00:00,367706,4312.08,CAP,Mears Home Improvement Ltd,00096G
Gloucester City Council,,Improvement Grants,CY013,Disabled Facility Grants,74,GRANT REF MDF4961,22/07/2013 00:00,367707,6369.81,CAP,Mears Home Improvement Ltd,00096G
Gloucester City Council,,Improvement Grants,CY013,Disabled Facility Grants,74,GRANT REF MDF4967,08/05/2013 00:00,363249,2557.32,CAP,Mears Home Improvement Ltd,00096G
Gloucester City Council,,Improvement Grants,CY013,Disabled Facility Grants,74,GRANT REF MDF4917,24/04/2013 00:00,362579,5600,CAP,Mears Home Improvement Ltd,00096G
Gloucester City Council,,Tic Theatre Ticket Sales,LT107,Materials For Sale,5080,TICKET SALES JULY 2013,29/08/2013 00:00,369764,8245,NET,Raf Charitable Trust Enterprise,05292F
Gloucester City Council,,Asbru - Other Funders,FP846,Other Minor Supplies Services,5590,1500 yellow bugs & 2500 pens,03/06/2013 00:00,364644,849.5,NET,Icontact Advertising,05548T
Gloucester City Council,,Grants To Voluntary Sector,FG100,Grants To Voluntary Orgs-Rents,7100,Grant 2013 parts 2&3 of 4,30/07/2013 00:00,368013,1333,NET,Gavca,06129J
Gloucester City Council,,Gis Development Work,RY555,Contract Payments,20,REDACTED,04/09/2013 00:00,369995,1250,CAP,Badenoch & Clark,01536P
Gloucester City Council,,Gis Development Work,RY555,Contract Payments,20,REDACTED,12/07/2013 00:00,366926,1250,CAP,Badenoch & Clark,01536P
Gloucester City Council,,Crematorium,HC200,Memorial Plaques,5053,plaque,15/05/2013 00:00,363117,807,NET,Arkell & Hurcombe,59812T
Gloucester City Council,,Council Streetcare Team,HI101,Signs / Nameplates,3039,SIGNAGE FOR EASTGATE MALL,21/08/2013 00:00,366663,1506.48,NET,Gloucestershire County Council,18650D
Gloucester City Council,,Gloucester Partnership,FP106,Fees For Services Received,5350,MAIDEN partnership 2013/14,05/06/2013 00:00,363978,10000,NET,Gloucestershire County Council,18650D
Gloucester City Council,,Legal Services,RS200,Service Charges,9510,Land searches Jan-Mar13,03/05/2013 00:00,363091,7060.98,NET,Gloucestershire County Council,18650D
Gloucester City Council,,Flood Defence Grants To Househ,CY011,Other Capital Grants,89,Safe at Home Q4 MAR-MAY13,03/06/2013 00:00,364634,4934,CAP,Gloucestershire County Council,18650D
Gloucester City Council,,Emergency Planning,RO100,Fees For Services Received,5350,LRF Secretariat funding 2013/14,17/05/2013 00:00,363982,2000,NET,Gloucestershire County Council,18650D
Gloucester City Council,,Homelessness,CH120,Rent In Advance,5516,REDACTED,10/09/2013 00:00,370463,576.92,NET,Andrews Lettings,08513J
Gloucester City Council,,Grants To Voluntary Sector,FG100,Funding Vol&Com Grps-Grants,7100C,GRANT 2013-14,21/05/2013 00:00,364081,5000,NET,Third Sector Services,09599K
Gloucester City Council,,Docks Complex - Telephones,RB120,Lease Lines,5411,July13 fixed charges,18/07/2013 00:00,367547,3948.11,NET,Gamma Business Communications,10260A
REDACTED,,REDACTED,REDACTED,REDACTED,REDACTED,REDACTED,REDACTED,REDACTED,3997.11,REDACTED,REDACTED,09684U
Gloucester City Council,,Client Revs & Bens Contract,RT240,Bailiffs Fees,5368,REDACTED,17/06/2013 00:00,13767,650,NET,Jenny Wigley,01302P
REDACTED,,REDACTED,REDACTED,REDACTED,REDACTED,REDACTED,REDACTED,REDACTED,631.67,REDACTED,REDACTED,01348P
Gloucester City Council,,Gloucester Partnership,FP106,Fees For Services Received,5350,CLES membership 2013/14,01/07/2013 00:00,366126,560,NET,Cles Ltd,02293H
Gloucester City Council,,Group Mgr Cult Ser & Tourism,GR102,Fees For Services Received,5350,EVENTS GRANT 2013/14,08/08/2013 00:00,368751,2000,NET,Global Arts Inc Ltd,13333U
Gloucester City Council,,Website Rebuild,RY573,Consultants Fees,30,daily rate 11/6/13 - 21/6/13,26/06/2013 00:00,366127,2025,CAP,Patzone It Solutions Ltd,13059R
Gloucester City Council,,Development Management,PT200,Application Fees,9312,REFUND FOR RETURNED APPLICATION,08/08/2013 00:00,368762,600,NET,REDACTED,14092H
Gloucester City Council,,Homelessness Prevention,CH122,Basic Pay - Temporary Staff,2751,REDACTED,19/08/2013 00:00,369366,735,NET,Venn Group Ltd,04339P
Gloucester City Council,,Legal Services,RS200,Basic Pay -Admin /Prof Staff,2601,REDACTED,02/08/2013 00:00,368440,1079.87,NET,Venn Group Ltd,04339P
Gloucester City Council,,Legal Services,RS200,Basic Pay - Temporary Staff,2751,REDACTED,26/06/2013 00:00,365155,751.2,NET,Venn Group Ltd,04339P
Gloucester City Council,,Legal Services,RS200,Basic Pay - Temporary Staff,2751,REDACTED,04/06/2013 00:00,364756,583.5,NET,Venn Group Ltd,04339P
Gloucester City Council,,S.106 Coney Hill School Dev,LY098,Contract Payments,20,Coney Hill Park works,16/07/2013 00:00,367352,993,CAP,Greenfields Garden Services Ltd,48130G
Gloucester City Council,,Hillfield Gardens S106,LY112,Contract Payments,20,Hillfield Gardens landscaping,24/06/2013 00:00,365986,958.5,CAP,Greenfields Garden Services Ltd,48130G
Gloucester City Council,,Robinswood Hill Sita,RY211,Contract Payments,20,Robinswood Hill works,31/05/2013 00:00,364487,7677.52,CAP,Greenfields Garden Services Ltd,48130G
Gloucester City Council,,Summer Festival,LT300,Hire Of Equipment,5020,TOILET HIRE,05/08/2013 00:00,368408,720,NET,B & W Hire Ltd,55477Y
Gloucester City Council,,Summer Festival,LT300,Hire Of Equipment,5020,BARRIERS,09/09/2013 00:00,370305,1992.02,NET,Show Services Group Ltd,56329F
Gloucester City Council,,Homelessness Prevention,CH122,Fees For Services Received,5350,REDACTED,30/08/2013 00:00,369885,500,NET,Ack Residential Lettings,73749V
Gloucester City Council,,Eastgate Viewing Chamber,LY100,Contract Payments,20,Eastgate canopy retention,16/05/2013 00:00,363216,1635.12,CAP,J M Grail (General Engineering) Ltd,03204A
Gloucester City Council,,Business Support,PT250,Basic Pay - Temporary Staff,2751,STAFF W/E 09/08/13,16/08/2013 00:00,369201,939.6,NET,One To One Recruitment,04752H
Gloucester City Council,,Mortgage Rescue,CH128,Fees For Services Received,5350,STAFF W/E 24&31/05/13,10/06/2013 00:00,365156,856.8,NET,One To One Recruitment,04752H
Gloucester City Council,,Mortgage Rescue,CH128,Fees For Services Received,5350,STAFF W/E 06/04/13,15/04/2013 00:00,361903,558.17,NET,One To One Recruitment,04752H
Gloucester City Council,,Business Support,PT250,Basic Pay - Temporary Staff,2751,STAFF W/E 28/03/13,09/04/2013 00:00,361618,690.88,NET,One To One Recruitment,04752H
Gloucester City Council,,Business Support,PT250,Basic Pay - Temporary Staff,2751,STAFF W/E 14/04/13,18/04/2013 00:00,362231,898.4,NET,One To One Recruitment,04752H
Gloucester City Council,,Development Management,PT200,Other Minor Supplies Services,5590,REDACTED,18/06/2013 00:00,364758,980,NET,Rex Bishop & Son Demolition,59058K
Gloucester City Council,,Flooding And Drainage,HE306,Maint Of Grounds - General,3030,GREEN LANE,10/07/2013 00:00,366650,1896,NET,Three Counties Drain Service,44033V
Gloucester City Council,,Improvement Grants,CY013,Disabled Facility Grants,74,GRANT REF MDF5003,03/07/2013 00:00,366556,1149,CAP,Stroud Stairlifts,10315A
Gloucester City Council,,Business Transformation & Tech,RT700,Computer Software Maintenance,5427,GUILDHALL THEATREFLEX,31/05/2013 00:00,364620,3829.72,NET,Clarity Retail Systems,10290R
Gloucester City Council,,General Drainage Works,PY241,Contract Payments,20,GREEN LANE,27/08/2013 00:00,369605,1180,CAP,Monument Geomatics,11065F
REDACTED,,REDACTED,REDACTED,REDACTED,REDACTED,REDACTED,REDACTED,REDACTED,1250,REDACTED,REDACTED,13107F
Gloucester City Council,,General Drainage Works,PY241,Contract Payments,20,PORCHESTER RD,04/07/2013 00:00,366619,750,CAP,Rab Consultants,13415R
Gloucester City Council,,Improvement Grants,CY013,Disabled Facility Grants,74,GRANT REF MDF4889,16/07/2013 00:00,367418,2084.4,CAP,Tate Solutions Ltd,13830Y
Gloucester City Council,,Summer Festival,LT300,Artists Fees,5355,#EMPTY,22/07/2013 00:00,13859,842.8,NET,REDACTED,01566P
REDACTED,,REDACTED,REDACTED,REDACTED,REDACTED,REDACTED,REDACTED,REDACTED,3443.75,REDACTED,REDACTED,01562P
Gloucester City Council,,Homelessness Prevention,CH122,Fees For Services Received,5350,REDACTED,16/07/2013 00:00,367417,500,NET,Michael Tuck Lettings Ltd,04887A
Gloucester City Council,,Nms Contract,HI102,General Repair/Maint Buildings,3000,WHEELIE BINS,30/05/2013 00:00,364462,600,NET,Ssi Schaefer Ltd,49777L
Gloucester City Council,,Hackney Carriages,HL100,Fees For Services Received,5350,June13 CRB checks,09/07/2013 00:00,366559,792,NET,Disclosure And Barring Service,00119W
Gloucester City Council,,Hackney Carriages,HL100,Fees For Services Received,5350,April 13 CRB checks,30/05/2013 00:00,363151,660,NET,Disclosure And Barring Service,00119W
Gloucester City Council,,Youth Grant 2011/12,FP107,Funding Vol&Com Grps-Grants,7100C,Youth Grant 2013-14,22/07/2013 00:00,367704,2358,NET,Gloucestershire Dance,01965K
Gloucester City Council,,Human Resources,EH100,Fees For Services Received,5350,NOV12-OCT13 EMPLOYEE COUNSELLING,17/05/2013 00:00,13682,1323.37,NET,REDACTED,00040P
Gloucester City Council,,Statutory Testing,RS310,Lightning Conductor,3026,lightning conductor tests and inspection,15/05/2013 00:00,363725,921,NET,Brooke Edgeley Specialist Technical Services,03873X
Gloucester City Council,,Financial Services,RT200,Basic Pay -Admin /Prof Staff,2601,REDACTED,10/09/2013 00:00,370445,691.38,NET,Robert Half Ltd,03959K
Gloucester City Council,,Financial Services,RT200,Consultants Fees,5349,REDACTED,14/08/2013 00:00,367712,2175,NET,Robert Half Ltd,03959K
Gloucester City Council,,Financial Services,RT200,Basic Pay -Admin /Prof Staff,2601,REDACTED,17/07/2013 00:00,366552,671.94,NET,Robert Half Ltd,03959K
Gloucester City Council,,Financial Services,RT200,Fees For Services Received,5350,REDACTED,28/06/2013 00:00,366291,685.44,NET,Robert Half Ltd,03959K
Gloucester City Council,,Financial Services,RT200,Consultants Fees,5349,REDACTED,14/06/2013 00:00,365561,2175,NET,Robert Half Ltd,03959K
Gloucester City Council,,Financial Services,RT200,Consultants Fees,5349,REDACTED,24/06/2013 00:00,365565,2610,NET,Robert Half Ltd,03959K
Gloucester City Council,,Financial Services,RT200,Consultants Fees,5349,REDACTED,01/05/2013 00:00,362133,3180,NET,Robert Half Ltd,03959K
Gloucester City Council,,City Museum And Art Gallery,LM200,Publications For Sale,5064,Folk museumshop stock,02/07/2013 00:00,366428,558.57,NET,Emblem Print Products Limited,54871Z
Gloucester City Council,,General Drainage Works,PY241,Contract Payments,20,ARMSCROFT PARK,21/08/2013 00:00,368503,3255,CAP,Rj Contracting (Environmental) Ltd,07429H
Gloucester City Council,,Investment Property,RB500,Land Registry Fees,5382,REGISTRATION,09/04/2013 00:00,361677,705,NET,Land Registry,73834D
Gloucester City Council,,Registration Of Electors,RS400,Fees For Services Received,5350,REF 083PF00085330,10/07/2013 00:00,366974,1264.23,NET,Hm Revenue & Customs,07644B
REDACTED,,REDACTED,REDACTED,REDACTED,REDACTED,REDACTED,REDACTED,REDACTED,6000,REDACTED,REDACTED,07953J
Gloucester City Council,,Forest Of Dean Cpe,PT744,Contracted Services,6970,July13 variable services,12/08/2013 00:00,368679,2476.32,NET,Apcoa Parking (Uk) Ltd,09954M
Gloucester City Council,,Parking Cctv,PT745,Contracted Services,6970,July13 variable services,12/08/2013 00:00,368679,844.2,NET,Apcoa Parking (Uk) Ltd,09954M
Gloucester City Council,,Off Street Car Parks,PP110,Contracted Services,6970,March 2013 variable services,09/04/2013 00:00,361632,12759.84,NET,Apcoa Parking (Uk) Ltd,09954M
Gloucester City Council,,Registration Of Electors,RS400,Fees For Services Received,5350,ROOM HIRE 02/05/13,30/07/2013 00:00,368149,600,NET,Spartans Rfc,10264S
Gloucester City Council,,Business Transformation & Tech,RT700,Basic Pay - Temporary Staff,2751,REDACTED,13/06/2013 00:00,365448,5644,NET,Vector Resourcing Ltd,11664K
Gloucester City Council,,Utilities,PT502,Electricity Supply,3110,UTILITIES TO JULY 2013,15/08/2013 00:00,369113,34549.51,NET,West Mercia Energy,11669Z
Gloucester City Council,,Homelessness,CH120,Board And Lodging,5515,JUN13 B&B PAYMENTS,26/06/2013 00:00,366147,1460.33,NET,Dorchester House Trust,12298D
Gloucester City Council,,Group Mgr Cult Ser & Tourism,GR102,Events,5952,ENGLISH CIVIL WAR WEEKEND 23-24MAR13,04/04/2013 00:00,361459,2000,NET,Captain Henry Hazzards Company,13378V
Gloucester City Council,,Contact Centre,RB300,Basic Pay -Admin /Prof Staff,2601,REDACTED,14/06/2013 00:00,365541,705,NET,Hbhc Synergy Ltd,13363J
Gloucester City Council,,Hillfield Gardens S106,LY112,Contract Payments,20,HILLFIELD GARDENS,10/06/2013 00:00,365232,5280,CAP,A Murray Masonry,13836K
Gloucester City Council,,Gl1 Pool Air Handling System,LY152,Contract Payments,20,GL1,28/06/2013 00:00,364458,1500,CAP,Smith Consult Ltd,13842R
Gloucester City Council,,Website Rebuild,RY573,Contract Payments,20,Project deposit,08/04/2013 00:00,361275,5971.87,CAP,Bright Starr Uk,13575R
Gloucester City Council,,External Communications,RC431,Printing,5300,MAGAZINE,02/07/2013 00:00,366360,8081.86,NET,Stephens & George Ltd,13959S
Gloucester City Council,,Development Management,PT200,Consultants Fees,5349,#EMPTY,05/07/2013 00:00,13806,831,NET,REDACTED,01563P
Gloucester City Council,,Planning Policy,PT300,Basic Pay - Temporary Staff,2751,REDACTED,06/08/2013 00:00,368544,1602.37,NET,Randstad Cpe Ltd,13987L
Gloucester City Council,,Planning Policy,PT300,Basic Pay - Temporary Staff,2751,REDACTED,23/07/2013 00:00,367807,1519.13,NET,Randstad Cpe Ltd,13987L
Gloucester City Council,,City Museum And Art Gallery,LM200,Printing,5300,WHATS ON GUIDE,18/07/2013 00:00,367573,1074.5,NET,Severnprint Ltd,49030C
Gloucester City Council,,Tic Coach Tickets,LT105,Materials For Sale,5080,SALES JUNE 2013,17/07/2013 00:00,367471,6366,NET,Marchants Coaches Ltd,48151Y
Gloucester City Council,,Tic Coach Tickets,LT105,Materials For Sale,5080,May 2013 ticket sales,04/07/2013 00:00,366069,4242.5,NET,Marchants Coaches Ltd,48151Y
Gloucester City Council,,Retail Market - Landlord,HM300,Trade Refuse Sacks,5040,markets skips Jan-Mar13,02/05/2013 00:00,362990,1782,NET,Barnwood Shopfitting Ltd,02590Y
REDACTED,,REDACTED,REDACTED,REDACTED,REDACTED,REDACTED,REDACTED,REDACTED,1999.42,REDACTED,REDACTED,01542V
Gloucester City Council,,Crematorium,HC200,Fees For Services Received,5350,#EMPTY,01/08/2013 00:00,13876,979.52,NET,Dr C M Stretton,00306P
REDACTED,,REDACTED,REDACTED,REDACTED,REDACTED,REDACTED,REDACTED,REDACTED,715,REDACTED,REDACTED,00106P
Gloucester City Council,,Docks Complex - Services,RB100,Operational Equipment <5000,5012,ST/STEEL DISPENSER,10/04/2013 00:00,361461,532,NET,Core Hygiene Ltd,03885P
Gloucester City Council,,Homelessness Prevention,CH122,Fees For Services Received,5350,REDACTED,15/08/2013 00:00,369235,500,NET,Cgt Lettings,05899H
Gloucester City Council,,Crematorium,HC200,Fees For Services Received,5350,#EMPTY,10/05/2013 00:00,13655,867.76,NET,Dr D Martin,00890P
Gloucester City Council,,Homelessness Prevention,CH122,Fees For Services Received,5350,REDACTED,13/08/2013 00:00,369007,500,NET,REDACTED,64928B
REDACTED,,REDACTED,REDACTED,REDACTED,REDACTED,REDACTED,REDACTED,REDACTED,730.4,REDACTED,REDACTED,08556P
Gloucester City Council,,S.106 Brionne Way Pos Works,LY081,Contract Payments,20,#EMPTY,08/07/2013 00:00,366829,2779.21,CAP,Landscape To Play Ltd,09116P
Gloucester City Council,,Asset Management,RS300,Basic Pay - Temporary Staff,2751,AUG13 CONSULTANCY SERVICES,04/09/2013 00:00,370136,6300,NET,Ardley Associates,09369F
Gloucester City Council,,Asset Management,RS300,Basic Pay -Admin /Prof Staff,2601,Consultancy services June13,16/07/2013 00:00,367350,6000,NET,Ardley Associates,09369F
Gloucester City Council,,Financial Services,RT200,Advertising And Publicity,5702,ADVERT MAY 2013,04/06/2013 00:00,364754,1500,NET,Redactive Publishing Limited,09929L
Gloucester City Council,,Civica Contract Revs & Bens,RT250,Contracted Services,6970,NOV13 core Revs & Bens service,12/09/2013 00:00,370529,136180.09,NET,Civica Uk Ltd,10841X
Gloucester City Council,,Civica Contract Revs & Bens,RT250,Contracted Services,6970,Pension excess June 2013,21/08/2013 00:00,366565,10701.59,NET,Civica Uk Ltd,10841X
Gloucester City Council,,Business Transformation & Tech,RT700,Computer Software <5000,5425,New Burdens NNDR1 CTX Empty Properties,14/08/2013 00:00,369135,4070,NET,Civica Uk Ltd,10841X
Gloucester City Council,,Civica Contract Revs & Bens,RT250,Contracted Services,6970,AUGUST 2013 CORE REVS & BENS SERVICE,15/07/2013 00:00,366423,136180.09,NET,Civica Uk Ltd,10841X
Gloucester City Council,,Client Revs & Bens Contract,RT240,Fees For Services Received,5350,Revs & Bens change requests,17/05/2013 00:00,363466,89875.22,NET,Civica Uk Ltd,10841X
Gloucester City Council,,Business Transformation & Tech,RT700,Internet Service Provider Fees,5429,QUARTERLY CHARGE,08/07/2013 00:00,366817,2462.74,NET,Vodafone Ltd,11843H
Gloucester City Council,,Tic Trading,LT110,Materials For Sale,5080,GOODS FOR RESALE,20/06/2013 00:00,365857,529.6,NET,Norfolk China Ltd,12863S
Gloucester City Council,,Improvement Grants,CY013,Disabled Facility Grants,74,REDACTED,17/05/2013 00:00,361999,1493.05,CAP,Akw Medi-Care Ltd,13094N
Gloucester City Council,,Civic Admin And Hospitality,RC210,Events,5952,civic donation 2012-13,13/05/2013 00:00,363641,5000,NET,Carers Gloucestershire,13335P
Gloucester City Council,,Improvement Grants,CY013,Disabled Facility Grants,74,REDACTED,23/07/2013 00:00,367786,14102.27,CAP,L Coward & Son Ltd,47989M
Gloucester City Council,,Postal Services,RS120,Postages,5400,envelopes,26/07/2013 00:00,368030,905.3,NET,Tompla Uk Ltd,13782H
Gloucester City Council,,Corporate Reporting /Financing,RC504,Subscriptions,5600,CIPFAstats Full Internet Access,11/07/2013 00:00,365052,2300,NET,Cipfa Business Limited,09260F
Gloucester City Council,,Corporate Reporting /Financing,RC504,Subscriptions,5600,TISonline Full subscription,11/07/2013 00:00,365053,2420,NET,Cipfa Business Limited,09260F
Gloucester City Council,,Flooding And Drainage,HE306,Maint Of Grounds - General,3030,whaddon brook clearance work,11/07/2013 00:00,367011,675,NET,Btcv T/A The Conservation Volunteers,55897V
Gloucester City Council,,Flooding And Drainage,HE306,Maint Of Grounds - General,3030,Whaddon & Daniels Brook & Milton Ave,21/06/2013 00:00,365782,675,NET,Btcv T/A The Conservation Volunteers,55897V
Gloucester City Council,,Senior Management Restructurin,RO200,Fees For Services Received,5350,CONSULTANCY SERVICES MAR-MAY13,24/06/2013 00:00,366036,19510.4,NET,Alexander Beaver Associates,06515Z
Gloucester City Council,,Nms Contract,HI102,Additional Non-Tender Items,6973,SPORTS BOOKINGS,23/08/2013 00:00,368155,1805,NET,Enterprise (Aol) Ltd,06695G
Gloucester City Council,,Council Streetcare Team,HI101,General Repair/Maint Buildings,3000,ESTCOURT RD,17/06/2013 00:00,364832,703,NET,Enterprise (Aol) Ltd,06695G
Gloucester City Council,,Tic Trading,LT110,Materials For Sale,5080,TIC goods,30/05/2013 00:00,364506,589.26,NET,Gift Republic Ltd,10337P
Gloucester City Council,,Pest Control,HD400,Fees For Services Received,5350,Pest control MAR-MAY13,23/05/2013 00:00,364287,1566.05,NET,Falconry Services Ltd,10692P
Gloucester City Council,,Democratic Services,RS100,Basic Pay -Admin /Prof Staff,2601,REDACTED,02/08/2013 00:00,365611,13419.68,NET,Gloucestershire County Council,10614L
Gloucester City Council,,Asset Management,RS300,Basic Pay - Temporary Staff,2751,REDACTED,04/09/2013 00:00,369615,1250.5,NET,Hays Specialist Recruitment Ltd,55516P
Gloucester City Council,,Asset Management,RS300,Basic Pay -Admin /Prof Staff,2601,REDACTED,15/04/2013 00:00,361758,1197.13,NET,Hays Specialist Recruitment Ltd,55516P
Gloucester City Council,,Tic Coach Tickets,LT105,Materials For Sale,5080,Jul-13,05/08/2013 00:00,368507,17395.2,NET,National Express Ltd,31455K
Gloucester City Council,,Homelessness,CH120,Board And Lodging,5515,#EMPTY,05/04/2013 00:00,361540,1540.33,NET,Carbrey Housing Ltd,11098G
Gloucester City Council,,Swrda Asset Transfer,RY184,Capital Intruder & Cctv,19,Albion Cottages CCTV ducting,12/09/2013 00:00,370212,3102.5,CAP,Drainaway Gloucester,12923Z
REDACTED,,REDACTED,REDACTED,REDACTED,REDACTED,REDACTED,REDACTED,REDACTED,600,REDACTED,REDACTED,13476U
Gloucester City Council,,Active Space At Abbeydale,LY149,Contract Payments,20,ABBEYMEAD PROJECT,06/08/2013 00:00,368533,6400,CAP,Wild Wood Carving,13438C
Gloucester City Council,,Docks Complex - Telephones,RB120,Mobile Phones,5409,CALLS MAY 2013,06/06/2013 00:00,364975,1946.71,NET,Everything Everywhere Ltd (T-Mobile),57543S
Gloucester City Council,,Homelessness Prevention,CH122,Fees For Services Received,5350,REDACTED,23/07/2013 00:00,367780,500,NET,REDACTED,13653W
Gloucester City Council,,External Communications,RC431,Other Minor Supplies Services,5590,BEACH BALLS,11/07/2013 00:00,367036,599,NET,Merchandise Mania,13883A
Gloucester City Council,,Contact Centre,RB300,Basic Pay -Admin /Prof Staff,2601,REDACTED,09/09/2013 00:00,370327,626.75,NET,Cps Anystaff Recruitment Ltd,13945D
REDACTED,,REDACTED,REDACTED,REDACTED,REDACTED,REDACTED,REDACTED,REDACTED,500.63,REDACTED,REDACTED,46098V
Gloucester City Council,,Printing,RP103,Fees For Services Received,5350,May 2013 printing,07/06/2013 00:00,364720,1945,NET,Alpha Colour Printers Ltd,00945B
Gloucester City Council,,Homelessness,CH120,Board And Lodging,5515,JUN13 B&B PAYMENTS,26/06/2013 00:00,366153,1301.3,NET,REDACTED,10975Y
REDACTED,,REDACTED,REDACTED,REDACTED,REDACTED,REDACTED,REDACTED,REDACTED,1050,REDACTED,REDACTED,57707K
Gloucester City Council,,Homelessness Prevention,CH122,Fees For Services Received,5350,REDACTED,14/05/2013 00:00,363728,550,NET,Michael Tuck Lettings,70616W
Gloucester City Council,,General Drainage Works,PY241,Contract Payments,20,installation of protection barrier,22/07/2013 00:00,367689,1705.08,CAP,Mr M G Horton T/A H&T Property Maintenance,09210X
Gloucester City Council,,75/81 Eastgate Street,RB501,Fire Risk Assessment,3019,75/81 Eastgate fire door repairs,15/07/2013 00:00,365810,2137.5,NET,E G Carter & Co Ltd,09262B
Gloucester City Council,,Homelessness Prevention,CH122,Fees For Services Received,5350,REDACTED,26/07/2013 00:00,368045,500,NET,Mr S Sadler,64096RV
Gloucester City Council,,Improvement Grants,CY013,Disabled Facility Grants,74,REDACTED,13/08/2013 00:00,369033,5603.24,CAP,Care & Repair,12734E
Gloucester City Council,,Homelessness Prevention,CH122,Basic Pay - Temporary Staff,2751,REDACTED,06/09/2013 00:00,370280,642.74,NET,James Andrews Recruitment Solutions,13636W
Gloucester City Council,,Homelessness Prevention,CH122,Basic Pay - Temporary Staff,2751,REDACTED,02/08/2013 00:00,368413,697.55,NET,James Andrews Recruitment Solutions,13636W
Gloucester City Council,,Homelessness Prevention,CH122,Basic Pay - Temporary Staff,2751,REDACTED,08/08/2013 00:00,368562,627.8,NET,James Andrews Recruitment Solutions,13636W
Gloucester City Council,,Homelessness Prevention,CH122,Basic Pay - Temporary Staff,2751,Created by invoice listener,12/07/2013 00:00,367201,737.41,NET,James Andrews Recruitment Solutions,13636W
Gloucester City Council,,Homelessness Prevention,CH122,Basic Pay - Temporary Staff,2751,REDACTED,26/07/2013 00:00,368035,627.8,NET,James Andrews Recruitment Solutions,13636W
Gloucester City Council,,Homelessness Prevention,CH122,Basic Pay - Temporary Staff,2751,REDACTED,05/04/2013 00:00,361526,504.68,NET,James Andrews Recruitment Solutions,13636W
Gloucester City Council,,Building Control,PT400,Application Fees,9312,WITHDRAWN APP 13/00468/OTHFPC,29/05/2013 00:00,364356,536.25,NET,REDACTED,13933L
Gloucester City Council,,Grants To Voluntary Sector,FG100,Funding Vol&Com Grps-Grants,7100C,GRANT 2013-14,13/05/2013 00:00,363597,2000,NET,St Hilda'S Lunch Club,03586D
Gloucester City Council,,Improvement Grants,CY013,Disabled Facility Grants,74,17 WEST LODGE DRIVE,05/07/2013 00:00,364955,4378.25,CAP,Nks Contracts (Central) Ltd,56355E
Gloucester City Council,,Improvement Grants,CY013,Disabled Facility Grants,74,41 SEBERT STREET,09/04/2013 00:00,361685,4285.25,CAP,Nks Contracts (Central) Ltd,56355E
Gloucester City Council,,Off Street Car Parks,PP110,Water Supply,3400,ACCT 7890105225,11/07/2013 00:00,365281,1541.78,NET,Severn Trent Water,01823H
Gloucester City Council,,Business Transformation & Tech,RT700,Computer Software Maintenance,5427,Eprocurement/eFinancials 2013/14,05/04/2013 00:00,360832,20000,NET,Advanced Business Solutions,06072N
Gloucester City Council,,Investment Property,RB500,Lift Maintenance,3051,MAINT 08/13-11/13,03/07/2013 00:00,366355,638.88,NET,Schindler Ltd,06826C
Gloucester City Council,,Aspire Admin Charges,LC105,Fees For Services Received,5350,JULY 2013 MEMBERSHIPS,31/07/2013 00:00,368183,760,NET,Aspire Sports & Cultural Trust,08135V
Gloucester City Council,,Blackfriars,LA609,Hire Of Equipment,5020,CHAIRS,27/06/2013 00:00,365971,525,NET,Valley Furniture Hire Ltd,08324P
Gloucester City Council,,Youth Grant 2011/12,FP107,Funding Vol&Com Grps-Grants,7100C,YOUTH GRANT 2013/14,05/08/2013 00:00,368452,600,NET,Marketing Gloucester Ltd,08925E
Gloucester City Council,,Business Transformation & Tech,RT700,Computer Network Maintenance,5443,PHILPOTTS,30/08/2013 00:00,369716,996.24,NET,Scs Installations Ltd,10383G
Gloucester City Council,,Street Trading Licences,HM520,Electrical Fitts Serv/Repair,3063,EASTGATE ST,31/07/2013 00:00,367510,4932.9,NET,Scs Installations Ltd,10383G
Gloucester City Council,,Human Resources,EH100,Fees For Services Received,5350,MAY13 OH SERVICES,19/07/2013 00:00,367010,785.33,NET,Industrial Medical & Safety Services Ltd,10668L
Gloucester City Council,,Human Resources,EH100,Fees For Services Received,5350,OH services JUN13,22/07/2013 00:00,367693,644.58,NET,Industrial Medical & Safety Services Ltd,10668L
Gloucester City Council,,Human Resources,EH100,Fees For Services Received,5350,JAN13 OH SERVICES,11/07/2013 00:00,367026,1053.83,NET,Industrial Medical & Safety Services Ltd,10668L
Gloucester City Council,,Cemeteries,HC300,Purch Vehicles/M. Plant <5000,4000,danarm brushcutter,19/04/2013 00:00,362424,930,NET,Garden Machinery Gloucester,55641K
Gloucester City Council,,Business Transformation & Tech,RT700,Computer Software Maintenance,5427,Visual Studio Pro x 5,09/07/2013 00:00,366784,694,NET,Civica Services Ltd,58099E
Gloucester City Council,,Business Transformation & Tech,RT700,Basic Pay - Temporary Staff,2751,REDACTED,29/08/2013 00:00,369724,1125,NET,Ffox Software Ltd,10665T
Gloucester City Council,,Business Transformation & Tech,RT700,Basic Pay - Temporary Staff,2751,REDACTED,17/07/2013 00:00,367349,1125,NET,Ffox Software Ltd,10665T
Gloucester City Council,,Business Transformation & Tech,RT700,Basic Pay - Temporary Staff,2751,consultancy services w/e 5/7/13,11/07/2013 00:00,366948,1125,NET,Ffox Software Ltd,10665T
Gloucester City Council,,Business Transformation & Tech,RT700,Basic Pay - Temporary Staff,2751,Jun-13,10/06/2013 00:00,365183,1125,NET,Ffox Software Ltd,10665T
Gloucester City Council,,Business Transformation & Tech,RT700,Basic Pay - Temporary Staff,2751,REDACTED,04/04/2013 00:00,361443,975,NET,Ffox Software Ltd,10665T
Gloucester City Council,,Business Transformation & Tech,RT700,Basic Pay - Temporary Staff,2751,REDACTED,01/05/2013 00:00,362891,1125,NET,Ffox Software Ltd,10665T
Gloucester City Council,,Homelessness,CH120,Rent In Advance,5516,REDACTED,31/05/2013 11:57,364402,733.84,NET,M Minett,13882C
Gloucester City Council,,The Fleece,RB530,General Repair/Maint Buildings,3000,23 Westgate St works,31/05/2013 00:00,364505,950,NET,Gloucester Scaffolding Ltd,14032C
Gloucester City Council,,Grants To Voluntary Sector,FG100,Funding Vol&Com Grps-Grants,7100C,community grant 2013-14,17/06/2013 00:00,365635,2500,NET,Stroud Road Golden Years Club,52998S
Gloucester City Council,,Asbru - Other Funders,FP846,Other Minor Supplies Services,5590,REDACTED,02/09/2013 00:00,369744,534.65,NET,Travail Employment Ltd,49371W
Gloucester City Council,,Asbru - Other Funders,FP846,Other Minor Supplies Services,5590,REDACTED,08/08/2013 00:00,368252,624.96,NET,Travail Employment Ltd,49371W
Gloucester City Council,,Asbru - Other Funders,FP846,Other Minor Supplies Services,5590,REDACTED,30/07/2013 00:00,368169,524.97,NET,Travail Employment Ltd,49371W
Gloucester City Council,,Asbru - Other Funders,FP846,Other Minor Supplies Services,5590,REDACTED,05/04/2013 00:00,361342,514.13,NET,Travail Employment Ltd,49371W
Gloucester City Council,,Business Transformation & Tech,RT700,Operational Equipment <5000,5012,herbert warehousee battery replacement,17/05/2013 00:00,363980,626.8,NET,Emerson Network Power Ltd,48138P
Gloucester City Council,,Postal Services,RS120,Postages,5400,ACCT 0252446000 W/E 29/08/13,06/09/2013 00:00,370239,1285.92,NET,Royal Mail S.Wales & South West,35830S
Gloucester City Council,,Postal Services,RS120,Postages,5400,ACCT 0252446000 W/E 20/06/13,03/07/2013 00:00,366365,1159.91,NET,Royal Mail S.Wales & South West,35830S
Gloucester City Council,,Registration Of Electors,RS400,Postages,5400,ACCT 0870585031 APR 2013,14/05/2013 00:00,363686,7644.27,NET,Royal Mail S.Wales & South West,35830S
Gloucester City Council,,Civica Admin Charges,RT105,Postages,5400,ACCT 0870585007 REVENUES,18/04/2013 00:00,361340,1068.83,NET,Royal Mail S.Wales & South West,35830S
Gloucester City Council,,Docks Complex - Services,RB100,Service Charges,3020,CREDITED ON 95021,16/08/2013 00:00,366978,1040,NET,Wessex Products (Leasing) Ltd,03684C
Gloucester City Council,,Development Management,PT200,Consultants Fees,5349,108 Eastern Avenue,09/05/2013 00:00,361763,500,NET,Dpds Ltd,05404V
Gloucester City Council,,Homelessness,CH120,Board And Lodging,5515,#EMPTY,03/05/2013 00:00,363143,2460.83,NET,James Legge Property (Ltd),07844R
Gloucester City Council,,Business Transformation & Tech,RT700,Computer Software Maintenance,5427,SUPPORT 06/13-06/14,22/05/2013 00:00,363830,1596.81,NET,Northgate Information Solutions Uk Ltd,08982S
Gloucester City Council,,Homelessness Prevention,CH122,Fees For Services Received,5350,REDACTED,17/06/2013 00:00,365627,500,NET,REDACTED,09282V
Gloucester City Council,,Homelessness,CH120,Rent In Advance,5516,REDACTED,16/05/2013 00:00,363971,576.92,NET,Ashgrove Property Services,10041R
Gloucester City Council,,Retail Market - Landlord,HM300,Events,5952,NIGHT TIME MARKET,30/05/2013 00:00,364455,650,NET,Ru Electrical Services,10389U
Gloucester City Council,,Green Transport Policy,PJ130,Management Fees,6001,July 2013 driving charges,04/09/2013 00:00,370139,809.65,NET,Co-Wheels Cic,11534A
Gloucester City Council,,75/81 Eastgate Street,RB501,Fixed Wire Electrical Insp,3005,75-81 Eastgate St electrical works,20/05/2013 00:00,364060,806.8,NET,Rf Gardiner Limited,12299B
Gloucester City Council,,Hkp Accomodation Review,RY163,Contract Payments,20,1st flr Kimberley works,08/04/2013 00:00,361644,6305.5,CAP,Rf Gardiner Limited,12299B
Gloucester City Council,,Hempsted Market/Car Boot,HM234,Security Services Fees,5351,SECURITY APRIL 2013,30/05/2013 00:00,364464,1580.2,NET,Nsgl Ltd,12539E
Gloucester City Council,,Homelessness Prevention,CH122,Fees For Services Received,5350,REDACTED,02/07/2013 00:00,366499,700,NET,REDACTED,13111R
Gloucester City Council,,Green Transport Policy,PJ130,Management Fees,6001,Oxstalls tennis court works,14/08/2013 00:00,369133,1500,NET,Engineering Services Consultancy Ltd,13039X
Gloucester City Council,,The Fleece,RB530,General Repair/Maint Buildings,3000,FLEECE HOTEL WORKS,09/05/2013 00:00,363405,3980,NET,Beard & Tandy,03160V
Gloucester City Council,,Off Street Car Parks,PP110,Fees For Services Received,5350,AIRTIME AUG 2013,06/08/2013 00:00,368158,532.54,NET,Parkeon Ltd,03238G
Gloucester City Council,,Tourism Marketing,LT100,Rents,3200,RENT JUN-AUG 2013,06/06/2013 00:00,364844,5725,NET,P W Fido & Associates,01210A
Gloucester City Council,,Ranger Centre/Netheridge Wks,RY167,Contract Payments,20,Ranger Centre intruder alarm,05/09/2013 00:00,369446,1037.49,CAP,Adt Fire & Security Plc,54086D
Gloucester City Council,,Ranger Centre/Netheridge Wks,RY167,Contract Payments,20,Ranger Centre CCTV,12/08/2013 00:00,368866,1423.8,CAP,Adt Fire & Security Plc,54086D
Gloucester City Council,,Homelessness Prevention,CH122,Fees For Services Received,5350,REDACTED,08/05/2013 00:00,363422,500,NET,REDACTED,76862RV
Gloucester City Council,,Homelessness Prevention,CH122,Fees For Services Received,5350,REDACTED,14/08/2013 00:00,369184,600,NET,REDACTED,13900C
Gloucester City Council,,Business Transformation & Tech,RT700,Computer Software <5000,5425,AIRWATCH,04/06/2013 00:00,364810,3105,NET,Satisnet,13892Z
Gloucester City Council,,Homelessness Prevention,CH122,Fees For Services Received,5350,REDACTED,10/06/2013 00:00,365233,500,NET,REDACTED,14018W
Gloucester City Council,,Warm And Well,CY048,Contract Payments,20,WARM & WELL PLUS 13/14,02/09/2013 00:00,369946,10000,CAP,Severn Wye Energy Agency Ltd,56930P
Gloucester City Council,,Director Regeneration,ME105,Basic Pay - Temporary Staff,2751,REDACTED,12/04/2013 00:00,359511,10850,NET,Solace Enterprises,54405K
Gloucester City Council,,Cemeteries,HC300,Fuel,4012,red diesel,05/06/2013 00:00,364730,530.26,NET,Cpl Petroleum,55192U
Gloucester City Council,,Investment Property,RB500,Consultants Fees,5349,Robinswood Hill cafe marketing,09/09/2013 00:00,370341,750,NET,Alder King*,02367D
Gloucester City Council,,Gis Development Work,RY555,Contract Payments,20,REDACTED,11/09/2013 00:00,370434,1000,CAP,Badenoch & Clark,01536P
Gloucester City Council,,Gis Development Work,RY555,Contract Payments,20,REDACTED,22/05/2013 00:00,364056,1000,CAP,Badenoch & Clark,01536P
Gloucester City Council,,Director Resources,MR102,Fees For Services Received,5350,REDACTED,02/08/2013 00:00,368447,5479.5,NET,Wragge & Co Llp,06590J
Gloucester City Council,,Director Resources,MR102,Fees For Services Received,5350,REDACTED,21/06/2013 00:00,365919,5510,NET,Wragge & Co Llp,06590J
Gloucester City Council,,Director Resources,MR102,Fees For Services Received,5350,REDACTED,15/04/2013 00:00,361974,3671.7,NET,Wragge & Co Llp,06590J
Gloucester City Council,,Docks Complex - Telephones,RB120,Telephones And Fax,5410,call charges July13,22/07/2013 00:00,367698,2557.15,NET,Gamma Business Communications,10260A
Gloucester City Council,,Docks Complex - Telephones,RB120,Telephones And Fax,5410,call charges to 31/5/13,14/06/2013 00:00,365538,2401.33,NET,Gamma Business Communications,10260A
Gloucester City Council,,Docks Complex - Telephones,RB120,Lease Lines,5411,Jan13 call charges,08/04/2013 00:00,361642,3948.11,NET,Gamma Business Communications,10260A
Gloucester City Council,,Homelessness,CH120,Rent In Advance,5516,REDACTED,05/06/2013 00:00,364929,576.92,NET,REDACTED,57329RV
Gloucester City Council,,Guildhall Events,LA200,Artists Fees,5355,#EMPTY,12/04/2013 00:00,13597,1334.08,NET,REDACTED,01258P
Gloucester City Council,,Human Resources,EH100,Basic Pay -Admin /Prof Staff,2601,June13 Apprenticeship scheme mgmt,10/07/2013 00:00,366950,3250,NET,Hr Consulting Ltd,12559Y
Gloucester City Council,,Blackfriars Inn,RY191,Contract Payments,20,BLACKFRIARS,28/06/2013 00:00,364831,1200,CAP,Waylett Property Inspections,12810P
Gloucester City Council,,Investment Property,RB500,General Repair/Maint Buildings,3000,CITY MUSEUM,07/06/2013 00:00,365132,1200,NET,Traditional Leadwork And Roofing Services Ltd,13527C
REDACTED,,REDACTED,REDACTED,REDACTED,REDACTED,REDACTED,REDACTED,REDACTED,976.5,REDACTED,REDACTED,13913T
REDACTED,,REDACTED,REDACTED,REDACTED,REDACTED,REDACTED,REDACTED,REDACTED,1499.4,REDACTED,REDACTED,13913T
Gloucester City Council,,Business Transformation & Tech,RT700,Computer Software Maintenance,5427,2013/14 SUBSCRIPTION,01/05/2013 00:00,362837,699,NET,Snap Surveys Ltd,05834N
Gloucester City Council,,Legal Services,RS200,Basic Pay - Temporary Staff,2751,REDACTED,01/07/2013 00:00,365976,763.8,NET,Venn Group Ltd,04339P
Gloucester City Council,,Business Transformation & Tech,RT700,Computer Software Maintenance,5427,payment maintenance systems 2013/14,23/04/2013 00:00,361631,19828.23,NET,Capita Business Services Limited*,54095C
Gloucester City Council,,Council Streetcare Team,HI101,Maint Of Grounds - General,3030,Willow Way path & allotment works,22/05/2013 00:00,364186,3200,NET,Greenfields Garden Services Ltd,48130G
Gloucester City Council,,Armscroft Park Flood Mit S106,LY153,Contract Payments,20,Armscroft Park works,29/04/2013 00:00,362155,610,CAP,Greenfields Garden Services Ltd,48130G
Gloucester City Council,,Summer Festival,LT300,Hire Of Equipment,5020,TOILET HIRE,05/08/2013 00:00,368409,620,NET,B & W Hire Ltd,55477Y
Gloucester City Council,,Business Transformation & Tech,RT700,Computer Hardware <5000,5420,MONITOR,04/07/2013 00:00,366608,505,NET,Qual Technology,56512N
Gloucester City Council,,Homelessness,CH120,Rent In Advance,5516,REDACTED,07/05/2013 00:00,363222,553.85,NET,REDACTED,58971RV
Gloucester City Council,,Play Area Refurbishment,LY071,Contract Payments,20,PLAYGROUND EQUIPMENT,12/04/2013 00:00,361906,4882.6,CAP,Kompan Ltd,03575J
Gloucester City Council,,Contact Centre,RB300,Basic Pay -Admin /Prof Staff,2601,STAFF W/E 26/07/13,02/08/2013 00:00,368254,843.5,NET,One To One Recruitment,04752H
Gloucester City Council,,Contact Centre,RB300,Basic Pay -Admin /Prof Staff,2601,STAFF W/E 04/08/13,13/08/2013 00:00,368648,1074.54,NET,One To One Recruitment,04752H
Gloucester City Council,,Business Support,PT250,Basic Pay - Temporary Staff,2751,STAFF W/E 14/06/13,20/06/2013 00:00,365817,922.2,NET,One To One Recruitment,04752H
Gloucester City Council,,Mortgage Rescue,CH128,Fees For Services Received,5350,STAFF W/E 14/04/13,19/04/2013 00:00,362230,528.96,NET,One To One Recruitment,04752H
Gloucester City Council,,Homelessness,CH120,Basic Pay - Temporary Staff,2751,STAFF W/E 14/04/13,19/04/2013 00:00,362230,509.86,NET,One To One Recruitment,04752H
Gloucester City Council,,Grants To Voluntary Sector,FG100,Funding Vol&Com Grps-Grants,7100C,GRANT 2013-14,22/07/2013 00:00,367646,8424,NET,Play Gloucestershire,06404K
Gloucester City Council,,Corporate Reporting /Financing,RC504,Audit Fees,5383,2013/14 audit fee - 1 of 4,11/07/2013 00:00,364725,20925,NET,Kpmg,06498X
Gloucester City Council,,Homelessness Prevention,CH122,Fees For Services Received,5350,REDACTED,09/08/2013 00:00,368846,650,NET,Rent It,76015X
Gloucester City Council,,Crematorium,HC200,Fees For Services Received,5350,May 2013 Doctors fees,06/06/2013 00:00,365040,509.44,NET,Dr D J Conaty & Partners,10022V
Gloucester City Council,,General Works Fund,RY203,Capital General Repairs & Main,13,Folk museum toilet works,27/06/2013 00:00,364633,1817.96,CAP,Drain Doctor Plumbing (Glos) Ltd,11450H
Gloucester City Council,,Armscroft Park Flood Mit S106,LY153,Contract Payments,20,50% deposit for bridge,09/09/2013 00:00,370335,4735,CAP,Abc Bridges,01465M
